Workbook

Sheet 432.1 MHz Table
A2: Issue: July 2, 2024 | F2: VE7BQH Antenna Table
B4: Old Reference: Tsky=20K Tearth=350K | F4: Reference: Estimated Values for man made noise (Tearth) on 432.1 MHz:
B5: New Reference: Tsky=27K | F5: Rural = | H5: 760 | L5: Man-Made Noise in Our Living Environments
F6: Residential = | H6: 1800 | L6: U.R.S.I. Radio Science Bulletins No. 334, 09.2010
F7: City = 7900 | H7: 8200
B8: Enter Tsky > | D8: 27 | E8: K | F8: Enter Tearth, K > | H8: 1800 | I8: Enter Receive System NF > | M8: 0.75 | N8: dB | Q8: K
F9: DL6WU Optimal Stacking | M9: 1 Ant. | T9: Internal use only
C10: 1 Ant. | G10: 4 Antennas | K10: < | L10: H Plane | M10: > | T10: archive
A11: TYPE OF | B11: Length | C11: GAIN | D11: E | E11: H | F11: GA | G11: Tloss | H11: TA | I11: G/T | J11: S/N | K11: F/R | L11: 1st SL | M11: 2nd SL | N11: Z | O11: e | P11: VSWR | Q11: Feed | R11: Convergence | T11: Ta | V11: New
A12: ANTENNA | B12: (m) | C12: (dBi) | D12: (m) | E12: (m) | F12: (dBi) | G12: (K) | H12: (K) | I12: (dB/K) | J12: (dB) | K12: (dB) | L12: (dB) | M12: (dB) | N12: (ohms) | O12: (%) | P12: Bandwidth | Q12: System | R12: Correction req. | T12: Old | U12: Tpat | V12: "S" | W12: avg gain
A14: F5FOD Isotropic Lossless Radiator | B14: 0 | C14: 0 | D14: - | E14: - | F14: - | G14: =290*(1/W14-1) -> 0.00700016897 | H14: =S14/350*H$8+(1-S14/350)*D$8+290*(1/W14-1) -> 913.5044356 | I14: =C14-10*LOG((S14/350*H$8+(1-S14/350)*D$8)+290*(10^(0.1*M$8)/W14-1))+10*LOG(1/W14) -> -29.85941767 | J14: =10*LOG(10^(C14/10)*5E-22/W14/1.380649E-23/2500/(S14/350*H$8+(1-S14/350)*D$8+290*(10^(M$8/10)/W14-1))) -> -48.24995054 | K14: - | L14: - | M14: - | N14: - | P14: - | Q14: - | R14: No | S14: 174.9994937 | T14: 185.003 | U14: 185.0004655 | V14: =(U14-20)*1.0606 -> 174.9994937 | W14: 0.9999758621
A15: KF2YN Boxkite 4 | B15: 0.30527332 | C15: 13.24 | D15: 1.2 | E15: 0.85 | F15: 19.3 | G15: =290*(1/W15-1) -> 5.01525941 | H15: 186.7467344 | I15: =F15-10*LOG((S15/350*H$8+(1-S15/350)*D$8)+290*(10^(0.1*M$8)/W15-1))+10*LOG(1/W15) -> -4.470104619 | J15: =10*LOG(10^(F15/10)*5E-22/W15/1.380649E-23/2500/(S15/350*H$8+(1-S15/350)*D$8+290*(10^(M$8/10)/W15-1))) -> -22.86063749 | K15: 26.1 | L15: 21.5 | M15: none | N15: 52.5 | O15: =(1-((P15-1)/(P15+1))^2)*10^2 -> 99.77324263 | P15: 1.1 | Q15: Bent Dipole | R15: Yes | S15: 30.54484842 | T15: 52.9 | U15: 48.79959308 | V15: 30.54484842 | W15: 0.983
A16: KF2YN Boxkite 7 | B16: 0.92969602 | C16: 15.64 | D16: 1.4 | E16: 1.17 | F16: 21.56 | G16: =290*(1/W16-1) -> 8.375079827 | H16: 116.5316573 | I16: -0.6911892641 | J16: -19.08172213 | K16: 27.6 | L16: 27.5 | M16: 21.3 | N16: 51.7 | O16: =(1-((P16-1)/(P16+1))^2)*10^2 -> 99.9405116 | P16: 1.05 | Q16: Bent Dipole | R16: Yes | S16: 16.02075697 | T16: 42.26 | U16: 35.10537146 | V16: 16.02075697 | W16: 0.9719310345
A17: DG7YBN GTV70-8n | B17: 1.27659752 | C17: 13.6 | D17: 1.07 | E17: 0.93 | F17: 19.56 | G17: 4.984216065 | H17: 126.1901444 | I17: -2.96181933 | J17: -21.3523522 | K17: 24.8 | L17: 16.5 | M17: 21.7 | N17: 49.8 | O17: 91.39831937 | P17: 1.83 | Q17: Bent Dipole | R17: Yes | S17: 18.59677096 | T17: 41.8 | U17: 37.53419853 | V17: 18.59677096 | W17: 0.9831034483
A18: DG7YBN GTV70-9w | B18: 1.378 | C18: 13.5 | D18: 0.9994 | E18: 0.8837 | F18: 19.374 | G18: =290*(1/W18-1) -> 2.191435768 | H18: =S18/350*H$8+(1-S18/350)*D$8+290*(1/W18-1) -> 93.95929294 | I18: =F18-10*LOG((S18/350*H$8+(1-S18/350)*D$8)+290*(10^(0.1*M$8)/W18-1))+10*LOG(1/W18) -> -2.326276151 | J18: =10*LOG(10^(F18/10)*5E-22/W18/1.380649E-23/2500/(S18/350*H$8+(1-S18/350)*D$8+290*(10^(M$8/10)/W18-1))) -> -20.71680902 | K18: 25.05 | L18: 18.93 | M18: 25.05 | N18: 48.96 | O18: =(1-((P18-1)/(P18+1))^2)*10^2 -> 99.90385193 | P18: 1.064 | Q18: Bent Dipole | R18: Yes | S18: 12.785533 | T18: 36.35 | U18: 32.055 | V18: 12.785533 | W18: 0.9925
A19: DG7YBN GTV70-10w | B19: 1.552 | C19: 14.07 | D19: 1.075 | E19: 0.9764 | F19: 20.01 | G19: =290*(1/W19-1) -> 2.161998791 | H19: =S19/350*H$8+(1-S19/350)*D$8+290*(1/W19-1) -> 108.4039005 | I19: =F19-10*LOG((S19/350*H$8+(1-S19/350)*D$8)+290*(10^(0.1*M$8)/W19-1))+10*LOG(1/W19) -> -2.092311641 | J19: =10*LOG(10^(F19/10)*5E-22/W19/1.380649E-23/2500/(S19/350*H$8+(1-S19/350)*D$8+290*(10^(M$8/10)/W19-1))) -> -20.48284451 | K19: 24.87 | L19: 15.49 | M19: 21.3 | N19: 48.87 | O19: =(1-((P19-1)/(P19+1))^2)*10^2 -> 99.84488055 | P19: 1.082 | Q19: Bent Dipole | R19: Yes | S19: 15.6427894 | T19: 36.35 | U19: 34.749 | V19: 15.6427894 | W19: 0.9926
A20: KF2YN Boxkite 10 | B20: 1.64431311 | C20: 16.55 | D20: 1.5 | E20: 1.3 | F20: 22.46 | G20: 9.000959932 | H20: 92.4040546 | I20: 0.8676972655 | J20: -17.5228356 | K20: 28.3 | L20: 19.2 | M20: 28 | N20: 48.7 | O20: 99.85207101 | P20: 1.08 | Q20: Bent Dipole | R20: Yes | S20: 11.13428265 | T20: 38.31 | U20: 30.49809791 | V20: 11.13428265 | W20: 0.9698965517
A21: InnoV 10 LFA | B21: 1.68594129 | C21: 14.43 | D21: 1.12 | E21: 1.03 | F21: 20.36 | G21: 3.717039779 | H21: 101.0933041 | I21: -1.528711274 | J21: -19.91924414 | K21: 23.8 | L21: 17.2 | M21: 23.3 | N21: 50.7 | O21: 99.62749895 | P21: 1.13 | Q21: LFA-LOOP | R21: Yes | S21: 13.89266357 | T21: 36.35 | U21: 33.09887193 | V21: 13.89266357 | W21: 0.9873448276
A22: InnoV 10 LFA 2018 | B22: 1.713998683 | C22: 14.35 | D22: 1.11 | E22: 1.009 | F22: 20.27 | G22: 3.696525231 | H22: 97.30595459 | I22: -1.512483544 | J22: -19.90301641 | K22: 22.06 | L22: 18.57 | M22: 21.42 | N22: 48.8 | O22: 98.7654321 | P22: 1.25 | Q22: LFA-LOOP | R22: Yes | S22: 13.14906953 | T22: 35.64 | U22: 32.39776497 | V22: 13.14906953 | W22: 0.9874137931
A23: YU7EF EF7010-5 | B23: 1.79694977 | C23: 14.64 | D23: 1.14 | E23: 1.05 | F23: 20.56 | G23: 5.087719298 | H23: 99.57632886 | I23: -1.273414367 | J23: -19.66394724 | K23: 22.5 | L23: 16.9 | M23: 24.1 | N23: 50 | O23: 99.91516637 | P23: 1.06 | Q23: Dipole | R23: No | S23: 13.32262456 | T23: 37 | U23: 32.56140351 | V23: 13.32262456 | W23: 0.9827586207
A24: +DG7YBN GTV 70-11w | B24: 1.94958643 | C24: 14.97 | D24: 1.179 | E24: 1.09 | F24: 20.9 | G24: 2.725374173 | H24: 85.50941132 | I24: -0.5419714227 | J24: -18.93250429 | K24: 27.8 | L24: 15.9 | M24: 23.4 | N24: 50.01 | O24: 99.91516637 | P24: 1.06 | Q24: Bent Dipole | R24: No | S24: 11.01207727 | T24: 32.8 | U24: 30.38287504 | V24: 11.01207727 | W24: 0.9906896552
A25: YU7EF EF7011B-5 | B25: 1.99121461 | C25: 15.07 | D25: 1.2 | E25: 1.11 | F25: 21 | G25: 4.77742727 | H25: 95.80535697 | I25: -0.7294805645 | J25: -19.12001343 | K25: 25.39 | L25: 16.93 | M25: 20.14 | N25: 48.95 | O25: 95.21484375 | P25: 1.56 | Q25: Dipole | R25: No | S25: 12.63946723 | T25: 36.1 | U25: 31.91728006 | V25: 12.63946723 | W25: 0.9837931034
A26: Innov 11 LFA | B26: 1.99121461 | C26: 15.05 | D26: 1.2 | E26: 1.1 | F26: 20.98 | G26: 4.00454466 | H26: 85.81337481 | I26: -0.4598286404 | J26: -18.85036151 | K26: 25.6 | L26: 16.4 | M26: 23.8 | N26: 50.4 | O26: 99.88564494 | P26: 1.07 | Q26: LFA-LOOP | R26: Yes | S26: 10.81956602 | T26: 33.74 | U26: 30.2013634 | V26: 10.81956602 | W26: 0.9863793103
A27: *Innov 11 LFA | B27: 1.99121461 | C27: 15.05 | D27: 1.19 | E27: 1.1 | F27: 20.96 | G27: 4.00454466 | H27: 85.26868612 | I27: -0.4630470711 | J27: -18.85357994 | K27: 25.61 | L27: 16.4 | M27: 23.8 | N27: 50.44 | O27: 99.88564494 | P27: 1.07 | Q27: LFA-LOOP | R27: Yes | S27: 10.71204146 | T27: 33.64 | U27: 30.09998252 | V27: 10.71204146 | W27: 0.9863793103
A28: EAntenna 432LFA11 | B28: 2.037699411 | C28: 15.09 | D28: 1.199 | E28: 1.11 | F28: 21.02 | G28: 3.983989933 | H28: 87.9056132 | I28: -0.4838793597 | J28: -18.87441223 | K28: 25.35 | L28: 17 | M28: 24.9 | N28: 47.91 | O28: 98.49184364 | P28: 1.28 | Q28: LFA-LOOP | R28: Yes | S28: 11.23664306 | T28: 34.11 | U28: 30.59460971 | V28: 11.23664306 | W28: 0.9864482759
A29: *YU7EF EF7011V6 | B29: 2.09 | C29: 15.128 | D29: 1.18 | E29: 1.1 | F29: 21.017 | G29: 4.328661172 | H29: 68.62173953 | I29: 0.1435106004 | J29: -18.24702227 | K29: 28.05 | L29: 18.77 | M29: 22.42 | N29: 50.39 | O29: 99.97816011 | P29: 1.03 | Q29: Bent Dipole | R29: Yes | S29: 7.3618598 | T29: 30.81 | U29: 26.94122176 | V29: 7.3618598 | W29: 0.9852931034
A30: *KF2YN Polly 12 CR | B30: 2.19935551 | C30: 15.7 | D30: 1.3 | E30: 1.3 | F30: 21.74 | G30: 3.225480283 | H30: 80.7472984 | I30: 0.4519789008 | J30: -17.93855397 | K30: 25.4 | L30: 16.1 | M30: 22.1 | N30: 48.3 | O30: 99.38626856 | P30: 1.17 | Q30: Multi-Pol loop | R30: No | S30: 9.973286148 | T30: 32.27 | U30: 29.40343782 | V30: 9.973286148 | W30: 0.989
A31: +*InnoV 12Y | B31: 2.26873581 | C31: 15.59 | D31: 1.26 | E31: 1.17 | F31: 21.52 | G31: 3.143713618 | H31: 77.41722596 | I31: 0.3389195611 | J31: -18.05161331 | K31: 27.6 | L31: 15.9 | M31: 21.8 | N31: 49.7 | O31: 96.86870226 | P31: 1.43 | Q31: LFA-Loop | R31: Yes | S31: 9.332052633 | T31: 31.6 | U31: 28.79884276 | V31: 9.332052633 | W31: 0.9892758621
A32: +InnoV 12Y | B32: 2.271511022 | C32: 15.59 | D32: 1.274 | E32: 1.193 | F32: 21.54 | G32: 3.430096647 | H32: 78.77892955 | I32: 0.3170652276 | J32: -18.07346764 | K32: 27.6 | L32: 15.9 | M32: 21.8 | N32: 49.7 | O32: 96.86870226 | P32: 1.43 | Q32: LFA-Loop | R32: Yes | S32: 9.544326855 | T32: 32.05 | U32: 28.99898817 | V32: 9.544326855 | W32: 0.9883103448
A33: InnoV 12 LFA | B33: 2.28261187 | C33: 15.48 | D33: 1.24 | E33: 1.16 | F33: 21.4 | G33: 4.00454466 | H33: 71.81487541 | I33: 0.4134813086 | J33: -17.97705156 | K33: 28.34 | L33: 16.8 | M33: 23.3 | N33: 50.1 | O33: 99.88564494 | P33: 1.07 | Q33: LFA-LOOP | R33: Yes | S33: 8.056184863 | T33: 31.17 | U33: 27.59587485 | V33: 8.056184863 | W33: 0.9863793103
A34: *InnoV 12 LFA | B34: 2.28261187 | C34: 15.48 | D34: 1.23 | E34: 1.15 | F34: 21.37 | G34: 4.055944056 | H34: 70.58471373 | I34: 0.426100168 | J34: -17.9644327 | K34: 28.3 | L34: 16.8 | M34: 23.3 | N34: 50.12 | O34: 99.88564494 | P34: 1.07 | Q34: LFA-LOOP | R34: Yes | S34: 7.803197622 | T34: 30.98 | U34: 27.35734266 | V34: 7.803197622 | W34: 0.9862068966
A35: YU7EF EF7012B-5 | B35: 2.2895499 | C35: 15.58 | D35: 1.26 | E35: 1.17 | F35: 21.5 | G35: 4.984216065 | H35: 79.73733115 | I35: 0.259665447 | J35: -18.13086742 | K35: 23.95 | L35: 17.62 | M35: 21.3 | N35: 48.57 | O35: 97.22222222 | P35: 1.4 | Q35: Dipole | R35: No | S35: 9.426728867 | T35: 33.3 | U35: 28.88810944 | V35: 9.426728867 | W35: 0.9831034483
A36: EAntenna 432LFA12 | B36: 2.293018915 | C36: 15.32 | D36: 1.228 | E36: 1.14 | F36: 21.24 | G36: 4.385326239 | H36: 81.38668571 | I36: -0.05818585051 | J36: -18.44871872 | K36: 28.58 | L36: 16.1 | M36: 24.5 | N36: 50.1 | O36: 96.62640566 | P36: 1.45 | Q36: LFA-LOOP | R36: Yes | S36: 9.870544735 | T36: 33.19 | U36: 29.30656679 | V36: 9.870544735 | W36: 0.9851034483
A37: InnoV 12 LFA-430 | B37: 2.301968974 | C37: 15.59 | D37: 1.274 | E37: 1.193 | F37: 21.54 | G37: 3.143713618 | H37: 78.5034137 | I37: 0.3235094841 | J37: -18.06702339 | K37: 26.35 | L37: 15.51 | M37: 21.66 | N37: 49.93 | O37: 97.33723149 | P37: 1.39 | Q37: LFA-LOOP | R37: Yes | S37: 9.546472097 | T37: 31.8 | U37: 29.00101084 | V37: 9.546472097 | W37: 0.9892758621
A38: WD5AGO 12B | B38: 2.31 | C38: 15.59 | D38: 1.266 | E38: 1.179 | F38: 21.52 | G38: 4.745400955 | H38: 82.7537822 | I38: 0.1818306526 | J38: -18.20870222 | K38: 24.94 | L38: 15.43 | M38: 22.95 | N38: 39.2 | O38: 97.99406878 | P38: 1.33 | Q38: Dipole | R38: No | S38: 10.0693364 | T38: 33.3 | U38: 29.494 | V38: 10.0693364 | W38: 0.9839
A39: WD5AGO 12C | B39: 2.32 | C39: 15.5 | D39: 1.24 | E39: 1.15 | F39: 21.398 | G39: 4.296732291 | H39: 68.12119459 | I39: 0.54180271 | J39: -17.84873016 | K39: 29.22 | L39: 16.57 | M39: 24.98 | N39: 35.83 | O39: 97.78180172 | P39: 1.35 | Q39: Dipole | R39: yes | S39: 7.2693524 | T39: 27.377 | U39: 26.854 | V39: 7.2693524 | W39: 0.9854
A40: KF2YN Boxkite 13 | B40: 2.33811611 | C40: 17.38 | D40: 1.63 | E40: 1.5 | F40: 23.3 | G40: 9.58677686 | H40: 97.30712861 | I40: 1.572250591 | J40: -16.81828228 | K40: 28 | L40: 18 | M40: 29 | N40: 50.9 | O40: 99.81456468 | P40: 1.09 | Q40: Bent Dipole | R40: Yes | S40: 11.98653306 | T40: 39.58 | U40: 31.30165289 | V40: 11.98653306 | W40: 0.968
A41: +DG7YBN GTV70-13m | B41: 2.487977558 | C41: 15.75 | D41: 1.25 | E41: 1.173 | F41: 21.567 | G41: 2.684624487 | H41: 56.25697877 | I41: 1.137049152 | J41: -17.25348372 | K41: 29.22 | L41: 17.13 | M41: 22.37 | N41: 49.21 | O41: 99.57201502 | P41: 1.14 | Q41: Bent Dipole | R41: Yes | S41: 5.24552961 | T41: 27.377 | U41: 24.94581332 | V41: 5.24552961 | W41: 0.9908275862
A42: Innov 13 LFA | B42: 2.58094716 | C42: 15.92 | D42: 1.31 | E42: 1.23 | F42: 21.85 | G42: 4.570928196 | H42: 68.13725642 | I42: 0.995467252 | J42: -17.39506562 | K42: 29.54 | L42: 16.5 | M42: 23.2 | N42: 50.06 | O42: 99.51325041 | P42: 1.15 | Q42: LFA-LOOP | R42: Yes | S42: 7.218395306 | T42: 30.89 | U42: 26.80595447 | V42: 7.218395306 | W42: 0.9844827586
A43: *InnoV 13 LFA | B43: 2.58094716 | C43: 15.92 | D43: 1.3 | E43: 1.22 | F43: 21.83 | G43: 4.570928196 | H43: 67.59151841 | I43: 0.9946753074 | J43: -17.39585756 | K43: 29.54 | L43: 16.5 | M43: 23.2 | N43: 50.06 | O43: 99.51325041 | P43: 1.15 | Q43: LFA-LOOP | R43: Yes | S43: 7.110663608 | T43: 30.79 | U43: 26.70437828 | V43: 7.110663608 | W43: 0.9844827586
A44: WD5AGO 13 | B44: 2.643 | C44: 15.88 | D44: 1.281 | E44: 1.2 | F44: 21.76 | G44: =290*(1/W44-1) -> 4.565769426 | H44: 64.17803761 | I44: 1.046743784 | J44: -17.34378909 | K44: 25.81 | L44: 17.14 | M44: 21.35 | N44: 33.59 | O44: 97.10576609 | P44: 1.41 | Q44: Dipole | R44: No | S44: 6.437842 | T44: 32.9 | U44: 26.07 | V44: 6.437842 | W44: 0.9845
A45: YU7EF EF7013M-6 | B45: 2.65726549 | C45: 16.11 | D45: 1.33 | E45: 1.25 | F45: 22.01 | G45: 4.77742727 | H45: 78.32949851 | I45: 0.813295957 | J45: -17.57723691 | K45: 26.41 | L45: 18.67 | M45: 21.8 | N45: 49.44 | O45: 99.91516637 | P45: 1.06 | Q45: Dipole | R45: No | S45: 9.189636172 | T45: 32.9 | U45: 28.66456362 | V45: 9.189636172 | W45: 0.9837931034
A46: M2 432-12EME | B46: 2.76133594 | C46: 16.22 | D46: 1.39 | E46: 1.32 | F46: 22.11 | G46: 3.973713647 | H46: 122.8549382 | I46: -0.3416688176 | J46: -18.73220169 | K46: 19.71 | L46: 12.3 | M46: 16 | N46: 200.43 | O46: 96.12748181 | P46: 1.49 | Q46: Folded Dipole | R46: Yes | S46: 18.13786158 | T46: 40.52 | U46: 37.10151007 | V46: 18.13786158 | W46: 0.9864827586
A47: *M2 432-12EME | B47: 2.76133594 | C47: 16.22 | D47: 1.42 | E47: 1.37 | F47: 22.17 | G47: 3.973713647 | H47: 125.0334644 | I47: -0.3344196749 | J47: -18.72495255 | K47: 19.71 | L47: 12.3 | M47: 16 | N47: 200.43 | O47: 96.12748181 | P47: 1.49 | Q47: Folded Dipole | R47: Yes | S47: 18.56791471 | T47: 40.92 | U47: 37.50699105 | V47: 18.56791471 | W47: 0.9864827586
A48: F9FT 19 | B48: 2.78908806 | C48: 15.96 | D48: 1.332 | E48: 1.259 | F48: 21.88 | G48: 6.199767548 | H48: =S48/350*H$8+(1-S48/350)*D$8+290*(1/W48-1) -> 106.7803354 | I48: -0.1397295676 | J48: -18.53026244 | K48: 21.53 | L48: 14.05 | M48: 17.46 | N48: 55.71 | O48: 99.57201502 | P48: 1.14 | Q48: Folded Dipole | R48: Yes | S48: 14.52521079 | T48: 39.06 | U48: 33.695277 | V48: 14.52521079 | W48: 0.9790689655
A49: DG7YBN Tonna 19 mod | B49: 2.78908806 | C49: 16.17 | D49: 1.35 | E49: 1.27 | F49: 22.07 | G49: 6.199767548 | H49: 76.21464391 | I49: =F49-10*LOG((S49/350*H$8+(1-S49/350)*D$8)+290*(10^(0.1*M$8)/W49-1))+10*LOG(1/W49) -> 0.954517308 | J49: =10*LOG(10^(F49/10)*5E-22/W49/1.380649E-23/2500/(S49/350*H$8+(1-S49/350)*D$8+290*(10^(M$8/10)/W49-1))) -> -17.43601556 | K49: 22.36 | L49: 14.3 | M49: 18.7 | N49: 44.74 | O49: 99.51325041 | P49: 1.15 | Q49: Folded Dipole | R49: Yes | S49: 8.491374353 | T49: 33.49 | U49: 28.00619871 | V49: 8.491374353 | W49: 0.9790689655
A50: InnoV 14 LFA | B50: 2.79602609 | C50: 16.46 | D50: 1.38 | E50: 1.32 | F50: 22.31 | G50: 4.570928196 | H50: 67.53694461 | I50: 1.476600794 | J50: -16.91393208 | K50: 30.78 | L50: 16 | M50: 22.3 | N50: 52.59 | O50: 99.57201502 | P50: 1.14 | Q50: LFA-LOOP | R50: Yes | S50: 7.099890438 | T50: 30.78 | U50: 26.69422067 | V50: 7.099890438 | W50: 0.9844827586
A51: *InnoV 14 LFA | B51: 2.79602609 | C51: 16.46 | D51: 1.36 | E51: 1.29 | F51: 22.26 | G51: 4.570928196 | H51: 66.5000424 | I51: 1.463348174 | J51: -16.9271847 | K51: 30.6 | L51: 16 | M51: 22.3 | N51: 52.59 | O51: 99.57201502 | P51: 1.14 | Q51: LFA-LOOP | R51: Yes | S51: 6.89520021 | T51: 30.59 | U51: 26.50122592 | V51: 6.89520021 | W51: 0.9844827586
A52: +DG7YBN GTV70-14m | B52: 2.818921589 | C52: 16.38 | D52: 1.38 | E52: 1.31 | F52: 22.31 | G52: 3.850454228 | H52: 75.28502021 | I52: 1.205309232 | J52: -17.18522364 | K52: 26.9 | L52: 15.88 | M52: 20.6 | N52: 49.4 | O52: 95.8714941 | P52: 1.51 | Q52: Bent Dipole | R52: No | S52: 8.771628931 | T52: 31.7 | U52: 28.27044025 | V52: =(U52-20)*1.0606 -> 8.771628931 | W52: 0.9868965517
A53: YU7EF EF7014M-6 | B53: 2.94172472 | C53: 16.5 | D53: 1.39 | E53: 1.32 | F53: 22.39 | G53: 4.570928196 | H53: 81.28954235 | I53: 1.096523982 | J53: -17.29400889 | K53: 23.76 | L53: 17.91 | M53: 20.48 | N53: 49.47 | O53: 99.72821814 | P53: 1.11 | Q53: Dipole | R53: No | S53: 9.814729247 | T53: 33.3 | U53: 29.25394046 | V53: 9.814729247 | W53: 0.9844827586
A54: RA3AQ AQ70-14f | B54: 2.9833529 | C54: 16.65 | D54: 1.41 | E54: 1.34 | F54: 22.54 | G54: 7.110153324 | H54: 73.3490978 | I54: 1.527361964 | J54: -16.86317091 | K54: 26.11 | L54: 15.9 | M54: 20 | N54: 53.3 | O54: 99.81456468 | P54: 1.09 | Q54: Folded Dipole | R54: Yes | S54: 7.745984526 | T54: 33.59 | U54: 27.30339857 | V54: 7.745984526 | W54: 0.9760689655
A55: KF2YN Boxkite 16 | B55: 3.03191911 | C55: 18.02 | D55: 1.74 | E55: 1.61 | F55: 23.85 | G55: 10.53961334 | H55: 103.0821723 | I55: 1.971048387 | J55: -16.41948448 | K55: 27.4 | L55: 17 | M55: 25 | N55: 49.09 | O55: 99.91516637 | P55: 1.06 | Q55: Bent Dipole | R55: Yes | S55: 12.93846342 | T55: 41.24 | U55: 32.19919237 | V55: 12.93846342 | W55: 0.9649310345
A56: *KF2YN Polly 15 CR | B56: 3.08048532 | C56: 16.76 | D56: 1.4 | E56: 1.4 | F56: 22.66 | G56: 3.542757417 | H56: 68.29227992 | I56: 1.791644549 | J56: -16.59888832 | K56: 26.7 | L56: 16.3 | M56: 20.3 | N56: 47.4 | O56: 99.09707008 | P56: 1.21 | Q56: Multi-pol loop | R56: No | S56: 7.451964398 | T56: 30.2 | U56: 27.02617801 | V56: 7.451964398 | W56: 0.9879310345
A57: I0JXX 16JXX70 old ver | B57: 3.09436138 | C57: 16.53 | D57: 1.41 | E57: 1.33 | F57: 22.44 | G57: 4.942835099 | H57: 81.3681012 | I57: 1.147287206 | J57: -17.24324566 | K57: 23.43 | L57: 16.6 | M57: 21.3 | N57: 201.8 | O57: 99.9405116 | P57: 1.05 | Q57: T Match | R57: Yes | S57: 9.75682072 | T57: 33.57 | U57: 29.19934067 | V57: 9.75682072 | W57: 0.9832413793
A58: I0JXX 32JXX70 XPOL H new ver | B58: 3.09436138 | C58: 16.28 | D58: 1.37 | E58: 1.37 | F58: 22.17 | G58: 6.064211786 | H58: 123.2913178 | I58: -0.2710786744 | J58: -18.66161154 | K58: 18.61 | L58: 15 | M58: 18 | N58: 206.56 | O58: 99.97816011 | P58: 1.03 | Q58: T Match | R58: Yes | S58: 17.81132944 | T58: 41.98 | U58: 36.79363515 | V58: 17.81132944 | W58: 0.9795172414
A59: I0JXX 32JXX70 XPOL V new ver | B59: 3.09436138 | C59: 16.28 | D59: 1.37 | E59: 1.37 | F59: 22.18 | G59: 4.447167565 | H59: 124.9586485 | I59: -0.317778162 | J59: -18.70831103 | K59: 18.61 | L59: 15 | M59: 18 | N59: 206.56 | O59: 99.97816011 | P59: 1.03 | Q59: T Match | R59: Yes | S59: 18.45968322 | T59: 41.22 | U59: 37.40494363 | V59: 18.45968322 | W59: 0.9848965517
A60: EAntenna 432LFA15 | B60: 3.174703767 | C60: 15.66 | D60: 1.22 | E60: 1.14 | F60: 21.36 | G60: 4.086792321 | H60: 56.84650232 | I60: 0.9176538018 | J60: -17.47287907 | K60: 29.16 | L60: 26.2 | M60: 29.1 | N60: 48.37 | O60: 98.7654321 | P60: 1.25 | Q60: LFA-LOOP | R60: Yes | S60: 5.085109137 | T60: 28.48 | U60: 24.79455887 | V60: 5.085109137 | W60: 0.9861034483
A61: InnoV 15 LFA | B61: 3.18455577 | C61: 16.68 | D61: 1.42 | E61: 1.34 | F61: 22.57 | G61: 4.849770361 | H61: 61.94274811 | I61: 1.940814546 | J61: -16.44971832 | K61: 31.06 | L61: 15.8 | M61: 22.1 | N61: 51.05 | O61: 99.85207101 | P61: 1.08 | Q61: LFA-LOOP | R61: Yes | S61: 5.940520142 | T61: 29.95 | U61: 25.60109385 | V61: 5.940520142 | W61: 0.9835517241
A62: YU7EF EF7015M-5 | B62: 3.25393607 | C62: 16.8 | D62: 1.425 | E62: 1.36 | F62: 22.66 | G62: 5.502459592 | H62: 79.43332283 | I62: 1.433914168 | J62: -16.9566187 | K62: 24.25 | L62: 18.96 | M62: 21.1 | N62: 49.45 | O62: 99.97816011 | P62: 1.03 | Q62: Dipole | R62: No | S62: 9.264411806 | T62: 33.6 | U62: 28.73506676 | V62: 9.264411806 | W62: 0.9813793103
A63: Konni F20 | B63: 3.305971295 | C63: 16.69 | D63: 1.444 | E63: 1.362 | F63: 22.61 | G63: 1.750503018 | H63: 82.47746873 | I63: 1.253959262 | J63: -17.13657361 | K63: 21.93 | L63: 14 | M63: 16.4 | N63: 210.667 | O63: 99.91516637 | P63: 1.06 | Q63: Folded Dipole | R63: Yes | S63: 10.606 | T63: 31.56 | U63: 30 | V63: 10.606 | W63: 0.994
A64: WiMo 15 (YU7EF) | B64: 3.39269667 | C64: 17.06 | D64: 1.46 | E64: 1.3 | F64: 22.87 | G64: 4.364718236 | H64: 64.06727105 | I64: 2.159175577 | J64: -16.23135729 | K64: 22.3 | L64: 17.2 | M64: 20.8 | N64: 174.5 | O64: 74.37890565 | P64: 3.05 | Q64: Folded Dipole | R64: Yes | S64: 6.455664683 | T64: 30 | U64: 26.08680434 | V64: 6.455664683 | W64: 0.9851724138
A65: InnoV 16 LFA | B65: 3.60083757 | C65: 17.27 | D65: 1.5 | E65: 1.43 | F65: 23.15 | G65: 4.849770361 | H65: 60.35860976 | I65: 2.579753127 | J65: -15.81077974 | K65: 29.29 | L65: 18.1 | M65: 23.3 | N65: 48.4 | O65: 99.2473051 | P65: 1.19 | Q65: LFA-LOOP | R65: Yes | S65: 5.627802475 | T65: 29.66 | U65: 25.30624408 | V65: 5.627802475 | W65: 0.9835517241
A66: +DG7YBN GTV70-17w | B66: 3.62858969 | C66: 17.29 | D66: 1.51 | E66: 1.44 | F66: 23.2 | G66: 3.031358885 | H66: 65.89925655 | I66: 2.412417236 | J66: -15.97811563 | K66: 31.5 | L66: 14.7 | M66: 20.8 | N66: 49.9 | O66: 99.97816011 | P66: 1.03 | Q66: Bent Dipole | R66: No | S66: 7.080521254 | T66: 29.4 | U66: 26.67595819 | V66: 7.080521254 | W66: 0.9896551724
A67: InnoV 17 LFA | B67: 3.69796999 | C67: 17.25 | D67: 1.49 | E67: 1.42 | F67: 23.11 | G67: 4.344113118 | H67: 61.96464755 | I67: 2.4760741 | J67: -15.91445877 | K67: 27.36 | L67: 18.1 | M67: 23.5 | N67: 49.85 | O67: 99.97816011 | P67: 1.03 | Q67: LFA-LOOP | R67: Yes | S67: 6.044662747 | T67: 29.6 | U67: 25.69928601 | V67: 6.044662747 | W67: 0.9852413793
A68: *InnoV 17 LFA | B68: 3.69796999 | C68: 17.25 | D68: 1.45 | E68: 1.45 | F68: 23.11 | G68: 4.344113118 | H68: 61.41932975 | I68: 2.496285398 | J68: -15.89424747 | K68: 27.36 | L68: 18.1 | M68: 23.5 | N68: 49.85 | O68: 99.97816011 | P68: 1.03 | Q68: LFA-LOOP | R68: Yes | S68: 5.937014 | T68: 29.5 | U68: 25.59778804 | V68: 5.937014 | W68: 0.9852413793
A69: YU7EF EF7017M-5 | B69: 3.85754468 | C69: 17.41 | D69: 1.52 | E69: 1.44 | F69: 23.22 | G69: 5.710267229 | H69: 77.55830401 | I69: 2.056371224 | J69: -16.33416165 | K69: 25 | L69: 18.45 | M69: 22.33 | N69: 50.66 | O69: 99.91516637 | P69: 1.06 | Q69: Dipole | R69: No | S69: 8.853250352 | T69: 33.4 | U69: 28.34739803 | V69: 8.853250352 | W69: 0.9806896552
A70: *KF2YN Polly 18 CR | B70: 3.94773907 | C70: 17.79 | D70: 1.95 | E70: 1.95 | F70: 23.96 | G70: 3.747816975 | H70: 74.04090461 | I70: 2.895986697 | J70: -15.49454617 | K70: 28.3 | L70: 14.8 | M70: 20 | N70: 48.1 | O70: 99.31823921 | P70: 1.18 | Q70: Multi-Pol loop | R70: No | S70: 8.546294796 | T70: 31.4 | U70: 28.05798114 | V70: 8.546294796 | W70: 0.9872413793
A71: YU7EF EF7017XM-5 | B71: 3.979654008 | C71: 17.61 | D71: 1.553 | E71: 1.486 | F71: 23.451 | G71: 6.503654293 | H71: 68.14198536 | I71: 2.611927571 | J71: -15.7786053 | K71: 27.46 | L71: 21.58 | M71: 23.98 | N71: 52.16 | O71: 99.2473051 | P71: 1.19 | Q71: Dipole | R71: Yes | S71: 6.837798011 | T71: 32.228 | U71: 26.44710354 | V71: 6.837798011 | W71: 0.9780655172
A72: RA3AQ AQ70-18f | B72: 3.98242922 | C72: 17.76 | D72: 1.59 | E72: 1.53 | F72: 23.64 | G72: 6.210200056 | H72: 71.34627853 | I72: 2.687744456 | J72: -15.70278841 | K72: 27.24 | L72: 16.1 | M72: 20.5 | N72: 51.7 | O72: 99.85207101 | P72: 1.08 | Q72: Folded Dipole | R72: Yes | S72: 7.528272682 | T72: 32.61 | U72: 27.09812623 | V72: 7.528272682 | W72: 0.9790344828
A73: InnoV 18 LFA | B73: 3.99630528 | C73: 17.49 | D73: 1.52 | E73: 1.45 | F73: 23.33 | G73: 4.344113118 | H73: 58.20195476 | I73: 2.837485529 | J73: -15.55304734 | K73: 28.2 | L73: 18.5 | M73: 24.8 | N73: 49.8 | O73: 99.9405116 | P73: 1.05 | Q73: LFA-LOOP | R73: Yes | S73: 5.301886392 | T73: 28.91 | U73: 24.99895002 | V73: 5.301886392 | W73: 0.9852413793
A74: +DG7YBN GTV70-19m | B74: 4.115986298 | C74: 17.8 | D74: 1.6 | E74: 1.54 | F74: 23.68 | G74: 3.645251397 | H74: 64.09328906 | I74: 2.96253108 | J74: -15.42800179 | K74: 29.6 | L74: 15.4 | M74: 20.2 | N74: 49.3 | O74: 98.49184364 | P74: 1.28 | Q74: Bent Dipole | R74: No | S74: 6.602827514 | T74: 29.5 | U74: 26.22555866 | V74: 6.602827514 | W74: 0.9875862069
A75: +Konni F20 Mod YBN | B75: 4.120496017 | C75: 17.57 | D75: 1.58 | E75: 1.5 | F75: 23.42 | G75: 1.750503018 | H75: 85.72054513 | I75: 1.962696256 | J75: -16.42783661 | K75: 24.66 | L75: 14.25 | M75: 16.12 | N75: 223.4 | O75: 99.62749895 | P75: 1.13 | Q75: Folded Dipole | R75: Yes | S75: 11.24620121 | T75: 32.16 | U75: 30.60362173 | V75: 11.24620121 | W75: 0.994
A76: YU7EF EF7018M-5 | B76: 4.162818 | C76: 17.58 | D76: 1.53 | E76: 1.46 | F76: 23.33 | G76: 5.606326889 | H76: 69.73364309 | I76: 2.428239647 | J76: -15.96229322 | K76: 26.49 | L76: 17.49 | M76: 22.43 | N76: 49.17 | O76: 99.91516637 | P76: 1.06 | Q76: Dipole | R76: No | S76: 7.329137434 | T76: 31.9 | U76: 26.91036907 | V76: 7.329137434 | W76: 0.9810344828
A77: K1FO 22 | B77: 4.2321983 | C77: 17.85 | D77: 1.63 | E77: 1.56 | F77: 23.75 | G77: 4.829097283 | H77: 81.79470452 | I77: 2.44278404 | J77: -15.94774883 | K77: 20.55 | L77: 15.4 | M77: 21.2 | N77: 200.8 | O77: 97.88881584 | P77: 1.34 | Q77: T Match | R77: Yes | S77: 9.863487046 | T77: 33.57 | U77: 29.29991236 | V77: 9.863487046 | W77: 0.9836206897
A78: *InnoV 18 LFA 2019 | B78: 4.243992951 | C78: 17.84 | D78: 1.56 | E78: 1.53 | F78: 23.71 | G78: 5.170574196 | H78: 55.30417013 | I78: 3.3356936 | J78: -15.05483927 | K78: 30.7 | L78: 16.49 | M78: 28.5 | N78: 48.24 | O78: 99.38626856 | P78: 1.17 | Q78: LFA-LOOP | R78: Yes | S78: 4.566699705 | T78: 28.96 | U78: 24.30577004 | V78: 4.566699705 | W78: 0.9824827586
A79: EAntenna 432LFA18 | B79: 4.253706193 | C79: 17.88 | D79: 1.614 | E79: 1.553 | F79: 23.76 | G79: 5.710267229 | H79: 57.45225281 | I79: 3.306438598 | J79: -15.08409427 | K79: 30.35 | L79: 16 | M79: 26.2 | N79: 47.58 | O79: 96.98791066 | P79: 1.42 | Q79: LFA-LOOP | R79: Yes | S79: 4.884204712 | T79: 29.73 | U79: 24.60513361 | V79: 4.884204712 | W79: 0.9806896552
A80: YU7EF EF7019B-5 | B80: 4.46115329 | C80: 17.91 | D80: 1.6 | E80: 1.54 | F80: 23.72 | G80: 5.814280689 | H80: =S80/350*H$8+(1-S80/350)*D$8+290*(1/W80-1) -> 73.33155628 | I80: 2.69717748 | J80: -15.69335539 | K80: 25.7 | L80: 17.8 | M80: 23.4 | N80: 50.5 | O80: 99.67960128 | P80: 1.12 | Q80: Dipole | R80: No | S80: 7.998334154 | T80: 32.7 | U80: 27.54132958 | V80: 7.998334154 | W80: 0.9803448276
A81: KF2YN Polly 20 CR | B81: 4.5097195 | C81: 18.3 | D81: 1.9 | E81: 1.9 | F81: 24.43 | G81: 3.850454228 | H81: 72.01860091 | I81: =F81-10*LOG((S81/350*H$8+(1-S81/350)*D$8)+290*(10^(0.1*M$8)/W81-1))+10*LOG(1/W81) -> 3.435246276 | J81: =10*LOG(10^(F81/10)*5E-22/W81/1.380649E-23/2500/(S81/350*H$8+(1-S81/350)*D$8+290*(10^(M$8/10)/W81-1))) -> -14.95528659 | K81: 28.7 | L81: 14.4 | M81: 19.5 | N81: 48.75 | O81: 99.09707008 | P81: 1.21 | Q81: Multi-Pol loop | R81: No | S81: 8.126819706 | T81: 31.1 | U81: 27.66247379 | V81: 8.126819706 | W81: 0.9868965517
A82: InnoV 19 LFA | B82: 4.53747162 | C82: 18.18 | D82: 1.68 | E82: 1.63 | F82: 24.1 | G82: 5.108428662 | H82: 56.8000586 | I82: 3.667066016 | J82: -14.72346685 | K82: 34.3 | L82: 15 | M82: 20.1 | N82: 47.6 | O82: =(1-((P82-1)/(P82+1))^2)*10^2 -> 99.81456468 | P82: 1.09 | Q82: LFA-LOOP | R82: Yes | S82: 4.874264229 | T82: 29.19 | U82: 24.59576111 | V82: 4.874264229 | W82: 0.9826896552
A83: InnoV 19 LFA 2019 | B83: 4.554816695 | C83: 18.12 | D83: 1.71 | E83: 1.654 | F83: 24.05 | G83: =290*(1/W83-1) -> 7.194147996 | H83: 60.70069151 | I83: 3.484878594 | J83: -14.90565428 | K83: 26.97 | L83: 15.19 | M83: 30 | N83: 50.1 | O83: 68.3747588 | P83: 3.57 | Q83: LFA-LOOP | R83: Yes | S83: 5.232538201 | T83: 31.35 | U83: 24.93356421 | V83: 5.232538201 | W83: 0.9757931034
A84: Tonna 21 DX | B84: 4.584650224 | C84: 17.91 | D84: 1.668 | E84: 1.609 | F84: 23.8 | G84: 6.806070231 | H84: 117.1051467 | I84: 1.518937611 | J84: -16.87159526 | K84: 20.48 | L84: 14.48 | M84: 18.18 | N84: 58.39 | O84: 84.19219045 | P84: 2.32 | Q84: Folded Dipole | R84: Yes | S84: 16.44369811 | T84: 41.34 | U84: 35.50414681 | V84: =(U84-20)*1.0606 -> 16.44369811 | W84: 0.9770689655
A85: KF2YN Boxkite 22 | B85: 4.6484801 | C85: 19.26 | D85: 1.99 | E85: 1.9 | F85: 25.14 | G85: 11.16383169 | H85: 95.13846502 | I85: 3.488226889 | J85: -14.90230598 | K85: 29 | L85: 16.2 | M85: 21.2 | N85: 52.1 | O85: 99.38626856 | P85: 1.17 | Q85: Bent Dipole | R85: Yes | S85: 11.24710754 | T85: 40.22 | U85: 30.60447628 | V85: 11.24710754 | W85: 0.9629310345
A86: DG7YBN GTV70-21n | B86: 4.694964901 | C86: 18.82 | D86: 1.682 | E86: 1.628 | F86: 24.081 | G86: 7.247719392 | H86: 53.3660263 | I86: 3.798116134 | J86: -14.59241674 | K86: 32.35 | L86: 14.82 | M86: 21.14 | N86: 48.3 | O86: 96.25390219 | P86: 1.48 | Q86: Bent Dipole | R86: Yes | S86: 3.774059457 | T86: 30.055 | U86: 23.55841925 | V86: 3.774059457 | W86: 0.9756172414
A87: InnoV 20 LFA | B87: 4.84968297 | C87: 18.28 | D87: 1.73 | E87: 1.67 | F87: 24.31 | G87: 5.108428662 | H87: 50.89533347 | I87: 4.111364368 | J87: -14.2791685 | K87: 35.15 | L87: 15.1 | M87: 20.7 | N87: 50.46 | O87: 99.81456468 | P87: 1.09 | Q87: LFA-LOOP | R87: Yes | S87: 3.708638852 | T87: 28.11 | U87: 23.49673661 | V87: 3.708638852 | W87: 0.9826896552
A88: InnoV 20 LFA 2019 | B88: 4.855927197 | C88: 18.44 | D88: 1.755 | E88: 1.696 | F88: 24.38 | G88: 5.980854508 | H88: 49.94756329 | I88: 4.226237954 | J88: -14.16429492 | K88: 30 | L88: 14.67 | M88: 22.37 | N88: 48 | O88: 95.61155463 | P88: 1.53 | Q88: LFA-LOOP | R88: Yes | S88: 3.349322095 | T88: 28.55 | U88: 23.15795031 | V88: 3.349322095 | W88: 0.9797931034
A89: +YU7XL QY721104D14 | B89: 4.88437312 | C89: 18.42 | D89: 1.88 | E89: 1.82 | F89: 24.47 | G89: 3.440334962 | H89: 52.3735345 | I89: 4.199557457 | J89: -14.19097541 | K89: 27.68 | L89: 18.54 | M89: 22.82 | N89: 201.1 | O89: 98.49184364 | P89: 1.28 | Q89: LFA 200 Ώ | R89: Yes | S89: 4.329734822 | T89: 27.2 | U89: 24.08234473 | V89: 4.329734822 | W89: 0.9882758621
A90: RA3AQ AQ70-21f | B90: 4.95375342 | C90: 18.54 | D90: 1.73 | E90: 1.67 | F90: 24.41 | G90: 7.110153324 | H90: 58.81742078 | I90: 3.914892955 | J90: -14.47563991 | K90: 27.87 | L90: 16.8 | M90: 21.3 | N90: 52.3 | O90: 99.88564494 | P90: 1.07 | Q90: Folded Dipole | R90: Yes | S90: 4.877351162 | T90: 30.95 | U90: 24.59867166 | V90: 4.877351162 | W90: 0.9760689655
A91: BVO70-7.2 WL modified | B91: 4.969017086 | C91: 18.49 | D91: 1.755 | E91: 1.696 | F91: 24.42 | G91: 3.850454228 | H91: 81.81785881 | I91: 3.103447439 | J91: -15.28708543 | K91: 22.56 | L91: 14.9 | M91: 19.1 | N91: 49.51 | O91: 99.91516637 | P91: 1.06 | Q91: Dipole | R91: No | S91: 10.06124738 | T91: 32.9 | U91: 29.48637317 | V91: 10.06124738 | W91: 0.9868965517
A92: Directive DSEFO432-25 | B92: 5.126996029 | C92: 18.57 | D92: 1.74 | E92: 1.689 | F92: 24.47 | G92: 5.18093433 | H92: 66.58459733 | I92: 3.675236469 | J92: -14.7152964 | K92: 25.39 | L92: 15.9 | M92: 20.5 | N92: 198.196 | O92: 97.450745 | P92: 1.38 | Q92: T Match | R92: Yes | S92: 6.791473237 | T92: 31.03 | U92: 26.40342564 | V92: 6.791473237 | W92: 0.9824482759
A93: *Directive DSEFO432-25 | B93: 5.126996029 | C93: 18.57 | D93: 1.778 | E93: 1.676 | F93: 24.47 | G93: 4.984216065 | H93: 66.34799087 | I93: 3.682076774 | J93: -14.7084561 | K93: 25.39 | L93: 15.9 | M93: 20.5 | N93: 198.196 | O93: 97.450745 | P93: 1.38 | Q93: T Match | R93: Yes | S93: 6.783599088 | T93: 30.85 | U93: 26.3960014 | V93: 6.783599088 | W93: 0.9831034483
A94: Directive DSEFO432-25XPOL H | B94: 5.12720417 | C94: 18.57 | D94: 1.727 | E94: 1.727 | F94: 24.48 | G94: 5.20165678 | H94: 66.06837201 | I94: 3.70378324 | J94: -14.68674963 | K94: 25.4 | L94: 15.9 | M94: 20.5 | N94: 198.2 | O94: 97.450745 | P94: 1.38 | Q94: T Match | R94: Yes | S94: 6.685476781 | T94: 30.95 | U94: 26.30348556 | V94: 6.685476781 | W94: 0.9823793103
A95: Directive DSEFO432-25XPOL V | B95: 5.12720417 | C95: 18.57 | D95: 1.727 | E95: 1.727 | F95: 24.48 | G95: 5.502459592 | H95: 65.85622032 | I95: 3.713756542 | J95: -14.67677633 | K95: 25.4 | L95: 15.9 | M95: 20.5 | N95: 198.2 | O95: 97.450745 | P95: 1.38 | Q95: T Match | R95: Yes | S95: 6.584216725 | T95: 31.12 | U95: 26.20801124 | V95: 6.584216725 | W95: 0.9813793103
A96: InnoV 22 LFA 2019-2 | B96: 5.184789819 | C96: 18.84 | D96: 1.818 | E96: 1.755 | F96: 24.74 | G96: 6.847975716 | H96: 45.95460623 | I96: 4.759145582 | J96: -13.63138729 | K96: 31.15 | L96: 14 | M96: 28.03 | N96: 46.2 | O96: 79.29378049 | P96: 2.67 | Q96: LFA Loop | R96: Yes | S96: 2.389915781 | T96: 28.43 | U96: 22.25336204 | V96: 2.389915781 | W96: 0.9769310345
A97: InnoV 21 LFA 2019 | B97: 5.206991515 | C97: 18.53 | D97: 1.818 | E97: 1.755 | F97: 24.58 | G97: 6.575801389 | H97: 48.97941359 | I97: 4.470259356 | J97: -13.92027351 | K97: 28.19 | L97: 14.13 | M97: 26.35 | N97: 47.9 | O97: 95.61155463 | P97: 1.53 | Q97: LFA Loop | R97: Yes | S97: 3.04075819 | T97: 28.79 | U97: 22.86701696 | V97: 3.04075819 | W97: 0.9778275862
A98: +DG7YBN GTV70-23m | B98: 5.23821265 | C98: 18.65 | D98: 1.76 | E98: 1.7 | F98: 24.51 | G98: 3.850454228 | H98: 54.05329477 | I98: 4.175333955 | J98: -14.21519891 | K98: 32.3 | L98: 15.7 | M98: 21.8 | N98: 48.4 | O98: 95.21484375 | P98: 1.56 | Q98: Bent Dipole | R98: Yes | S98: 4.580368973 | T98: 27.8 | U98: 24.31865828 | V98: 4.580368973 | W98: 0.9868965517
A99: YU7EF EF7021B-5 | B99: 5.26596477 | C99: 18.66 | D99: 1.74 | E99: 1.68 | F99: 24.5 | G99: 8.015591779 | H99: 62.83100528 | I99: 3.862662618 | J99: -14.52787025 | K99: 29.6 | L99: 20.26 | M99: 21.74 | N99: 50.2 | O99: 97.99406878 | P99: 1.33 | Q99: Dipole | R99: No | S99: 5.490916371 | T99: 32.3 | U99: 25.17717931 | V99: 5.490916371 | W99: 0.9731034483
A100: EA1DDO 22 Quad V3 | B100: 5.438 | C100: 17.54 | D100: 1.519 | E100: 1.496 | F100: 22.926 | G100: 3.76012966 | H100: 76.44416861 | I100: 1.782181342 | J100: -16.60835153 | K100: 22.22 | L100: 14.75 | M100: 20.78 | N100: 50.88 | O100: 98.93623439 | P100: 1.23 | Q100: Dipole | R100: Yes | S100: 9.0182818 | T100: 28.28 | U100: 28.503 | V100: 9.0182818 | W100: 0.9872
A101: I0JXX 25JXX70 | B101: 5.48798173 | C101: 18.53 | D101: 1.74 | E101: 1.68 | F101: 24.41 | G101: 5.720665284 | H101: 73.51983373 | I101: 3.380066307 | J101: -15.01046656 | K101: 23.91 | L101: 21.3 | M101: 24.8 | N101: 198.6 | O101: 99.67960128 | P101: 1.12 | Q101: T Match | R101: Yes | S101: 8.053981364 | T101: 32.67 | U101: 27.59379725 | V101: 8.053981364 | W101: 0.9806551724
A102: InnoV 22 LFA 2019 | B102: 5.517815259 | C102: 18.84 | D102: 1.851 | E102: 1.801 | F102: 24.77 | G102: 6.921338794 | H102: 44.84731403 | I102: 4.837068517 | J102: -13.55346435 | K102: 32 | L102: 13.91 | M102: 28.46 | N102: 46.2 | O102: 79.42906626 | P102: 2.66 | Q102: LFA Loop | R102: Yes | S102: 2.156847903 | T102: 28.28 | U102: 22.03361107 | V102: 2.156847903 | W102: 0.9766896552
A103: KF2YN Polly 24 CR | B103: 5.65449445 | C103: 19.15 | D103: 1.9 | E103: 1.9 | F103: 25.11 | G103: 3.747816975 | H103: 71.86405235 | I103: 4.119660616 | J103: -14.27087225 | K103: 29.5 | L103: 13.1 | M103: 19.14 | N103: 51.8 | O103: 99.57201502 | P103: 1.14 | Q103: Multi-Pol loop | R103: No | S103: 8.116572127 | T103: 31 | U103: 27.65281174 | V103: 8.116572127 | W103: 0.9872413793
A104: *Antennas-Amplifiers PA432-23-6A | B104: 5.694735024 | C104: 18.88 | D104: 1.9 | E104: 1.9 | F104: 24.9 | G104: 6.858453936 | H104: 47.94921833 | I104: 4.835036994 | J104: -13.55549588 | K104: 36.26 | L104: 16.96 | M104: 26.91 | N104: 49.14 | O104: 99.81456468 | P104: 1.09 | Q104: Hair Pin | R104: Yes | S104: 2.781594776 | T104: 28.8 | U104: 22.62266149 | V104: 2.781594776 | W104: 0.9768965517
A105: +YU7XL QY724104D17 | B105: 5.79325505 | C105: 19.01 | D105: 2 | E105: 1.9 | F105: 24.99 | G105: 3.440334962 | H105: 51.8298911 | I105: 4.74153762 | J105: -13.64899525 | K105: 31.67 | L105: 18.71 | M105: 22.77 | N105: 199 | O105: 98.93623439 | P105: 1.23 | Q105: LFA 200 Ώ | R105: Yes | S105: 4.222416609 | T105: 27.1 | U105: 23.98115841 | V105: 4.222416609 | W105: 0.9882758621
A106: +DG7YBN GTV70-25m | B106: 5.82100717 | C106: 18.97 | D106: 1.801 | E106: 1.74 | F106: 24.84 | G106: 3.235704324 | H106: 48.81908995 | I106: 4.713903441 | J106: -13.67662943 | K106: 32.6 | L106: 16.3 | M106: 22.1 | N106: 41.2 | O106: 98.7654321 | P106: 1.25 | Q106: Bent Dipole | R106: No | S106: 3.66846304 | T106: 26.4 | U106: 23.45885635 | V106: 3.66846304 | W106: 0.9889655172
A107: InnoV 23 LFA | B107: 5.8279452 | C107: 19.16 | D107: 1.87 | E107: 1.82 | F107: 25.08 | G107: 5.699869906 | H107: 48.83628357 | I107: 4.970195823 | J107: -13.42033705 | K107: 31.75 | L107: 15.9 | M107: 21.7 | N107: 45.2 | O107: 98.93623439 | P107: 1.23 | Q107: LFA-LOOP | R107: Yes | S107: 3.18541725 | T107: 28.15 | U107: 23.00341057 | V107: 3.18541725 | W107: 0.9807241379
A108: *InnoV 23 LFA | B108: 5.8279452 | C108: 19.16 | D108: 1.89 | E108: 1.85 | F108: 25.06 | G108: 5.699869906 | H108: 48.83628357 | I108: 4.950195823 | J108: -13.44033705 | K108: 31.8 | L108: 15.9 | M108: 21.7 | N108: 45.2 | O108: 98.93623439 | P108: 1.23 | Q108: LFA-LOOP | R108: Yes | S108: 3.18541725 | T108: 28.15 | U108: 23.00341057 | V108: 3.18541725 | W108: 0.9807241379
A109: DJ9BV BVO70-8.5wl | B109: 5.847371684 | C109: 19.14 | D109: 1.949 | E109: 1.903 | F109: 25.13 | G109: 5.087719298 | H109: 100.1230243 | I109: 3.281314494 | J109: -15.10921838 | K109: 24.25 | L109: 14.85 | M109: 17.75 | N109: 203.9 | O109: 96.62640566 | P109: 1.45 | Q109: Folded Dipole | R109: Yes | S109: 13.43054526 | T109: 37.1 | U109: 32.66315789 | V109: 13.43054526 | W109: 0.9827586207
A110: InnoV 23 LFA 2019 | B110: 5.84875929 | C110: 19.02 | D110: 1.868 | E110: 1.818 | F110: 24.94 | G110: 6.544428773 | H110: 43.99049679 | I110: 5.041707054 | J110: -13.34882582 | K110: 32.19 | L110: 14.4 | M110: 27.59 | N110: 47.4 | O110: 98.09750297 | P110: 1.32 | Q110: LFA-LOOP | R110: Yes | S110: 2.062111566 | T110: 27.86 | U110: 21.94428773 | V110: 2.062111566 | W110: 0.9779310345
A111: DJ9BV OPT70-8.5wl | B111: 5.85569732 | C111: 19.04 | D111: 1.8 | E111: 1.754 | F111: 24.87 | G111: 4.96352413 | H111: 83.03919072 | I111: 3.524802872 | J111: -14.86573 | K111: 23.22 | L111: 15.8 | M111: 20.12 | N111: 186.1 | O111: 95.21484375 | P111: 1.56 | Q111: Folded Dipole | R111: Yes | S111: 10.0826189 | T111: 33.89 | U111: 29.50652357 | V111: 10.0826189 | W111: 0.9831724138
A112: EAntenna 432LFA23 | B112: 5.858472532 | C112: 18.96 | D112: 1.902 | E112: 1.842 | F112: 24.89 | G112: 8.279836851 | H112: =S112/350*H$8+(1-S112/350)*D$8+290*(1/W112-1) -> 47.07899882 | I112: 4.871028229 | J112: -13.51950464 | K112: 31.99 | L112: 14.2 | M112: 30.9 | N112: 47.84 | O112: 64.09612813 | P112: 3.99 | Q112: LFA-LOOP | R112: Yes | S112: 2.329219791 | T112: 29.63 | U112: 22.19613407 | V112: 2.329219791 | W112: 0.9722413793
A113: YU7EF EF7023B-5 | B113: 5.87651141 | C113: 18.98 | D113: 1.79 | E113: 1.73 | F113: 24.78 | G113: 6.533972709 | H113: 56.66644259 | I113: =F113-10*LOG((S113/350*H$8+(1-S113/350)*D$8)+290*(10^(0.1*M$8)/W113-1))+10*LOG(1/W113) -> 4.362778782 | J113: =10*LOG(10^(F113/10)*5E-22/W113/1.380649E-23/2500/(S113/350*H$8+(1-S113/350)*D$8+290*(10^(M$8/10)/W113-1))) -> -14.02775409 | K113: 30.47 | L113: 19.6 | M113: 21.9 | N113: 48.6 | O113: 99.09707008 | P113: 1.21 | Q113: Dipole | R113: No | S113: 4.566477416 | T113: 30.16 | U113: 24.30556045 | V113: 4.566477416 | W113: 0.9779655172
A114: RA3AQ AQ70-24f | B114: 5.91120156 | C114: 19.22 | D114: 1.87 | E114: 1.82 | F114: 24.82 | G114: 6.199767548 | H114: 51.46576269 | I114: 4.605866752 | J114: -13.78466612 | K114: 30 | L114: 15.1 | M114: 21 | N114: 52.04 | O114: 99.62749895 | P114: 1.13 | Q114: Folded Dipole | R114: Yes | S114: 3.605808403 | T114: 28.98 | U114: 23.39978164 | V114: 3.605808403 | W114: 0.9790689655
A115: InnoV 24 LFA | B115: 6.16790867 | C115: 19.32 | D115: 1.92 | E115: 1.87 | F115: 25.25 | G115: 5.991271601 | H115: 46.94632763 | I115: 5.22135674 | J115: -13.16917613 | K115: 33.42 | L115: 15.3 | M115: 22.1 | N115: 46.38 | O115: 99.2473051 | P115: 1.19 | Q115: LFA-LOOP | R115: Yes | S115: 2.754805195 | T115: 28.01 | U115: 22.5974026 | V115: 2.754805195 | W115: 0.9797586207
A116: *InnoV 24 LFA | B116: 6.16790867 | C116: 19.32 | D116: 1.89 | E116: 1.84 | F116: 25.22 | G116: 5.991271601 | H116: 46.39795822 | I116: 5.21459876 | J116: -13.17593411 | K116: 33.4 | L116: 15.3 | M116: 22.1 | N116: 46.4 | O116: 99.2473051 | P116: 1.19 | Q116: LFA-LOOP | R116: Yes | S116: 2.646554042 | T116: 27.91 | U116: 22.49533664 | V116: 2.646554042 | W116: 0.9797586207
A117: YU7EF EF7024B-5 | B117: 6.1748467 | C117: 19.19 | D117: 1.84 | E117: 1.79 | F117: 25.02 | G117: 7.699115044 | H117: 59.06167897 | I117: 4.520076551 | J117: -13.87045632 | K117: 30.3 | L117: 20.5 | M117: 22.4 | N117: 50.1 | O117: 94.67455621 | P117: 1.6 | Q117: Dipole | R117: No | S117: 4.809304779 | T117: 31.4 | U117: 24.53451327 | V117: =(U117-20)*1.0606 -> 4.809304779 | W117: 0.974137931
A118: Innov 24 LFA 2019-b | B118: 6.205374032 | C118: 19.2 | D118: 1.885 | E118: 1.834 | F118: 25.11 | G118: 6.293686584 | H118: 44.07920838 | I118: 5.206231743 | J118: -13.18430113 | K118: 33.23 | L118: 30.61 | M118: 29.43 | N118: 50.1 | O118: 94.67455621 | P118: 1.6 | Q118: LFA-LOOP | R118: Yes | S118: 2.129121618 | T118: 27.7 | U118: 22.007469 | V118: 2.129121618 | W118: 0.9787586207
A119: M2 432-9WLA | B119: 6.37604957 | C119: 19.4 | D119: 2.02 | E119: 1.96 | F119: 25.33 | G119: 7.404342598 | H119: 121.9999302 | I119: 2.933797405 | J119: -15.45673547 | K119: 23.24 | L119: 15.8 | M119: 18.1 | N119: 167.2 | O119: 87.55668667 | P119: 2.09 | Q119: Folded Dipole | R119: Yes | S119: 17.29185317 | T119: 42.62 | U119: 36.30384044 | V119: 17.29185317 | W119: 0.9751034483
A120: *M2 432-9WLA | B120: 6.37604957 | C120: 19.4 | D120: 1.828 | E120: 1.879 | F120: 25.23 | G120: 7.152144725 | H120: 104.5712597 | I120: 3.278756223 | J120: -15.11177665 | K120: 23.24 | L120: 15.8 | M120: 18.1 | N120: 167.2 | O120: 87.55668667 | P120: 2.09 | Q120: Folded Dipole | R120: Yes | S120: 13.90112254 | T120: 39.29 | U120: 33.10684757 | V120: 13.90112254 | W120: 0.9759310345
A121: +YU7XL QY728107D21 | B121: 6.94496803 | C121: 19.64 | D121: 2.22 | E121: 2.06 | F121: 25.65 | G121: 3.440334962 | H121: 52.3735345 | I121: 5.379557457 | J121: -13.01097541 | K121: 28.6 | L121: 19.14 | M121: 24.07 | N121: 198.1 | O121: 98.39629298 | P121: 1.29 | Q121: LFA 200 | R121: Yes | S121: 4.329734822 | T121: 27.2 | U121: 24.08234473 | V121: 4.329734822 | W121: 0.9882758621
A122: Antennas-Amplifiers PA432-26-7BGP | B122: 6.95884409 | C122: 19.6 | D122: 1.95 | E122: 1.95 | F122: 25.49 | G122: 7.556919702 | H122: 45.4165588 | I122: 5.536773433 | J122: -12.85375944 | K122: 36.3 | L122: 16.23 | M122: 28.18 | N122: 47.92 | O122: 99.88564494 | P122: 1.07 | Q122: HairPin | R122: No | S122: 2.143752784 | T122: 28.827 | U122: 22.02126417 | V122: 2.143752784 | W122: 0.9746034483
A123: YU7EF EF7027B-5 | B123: 7.06291454 | C123: 19.67 | D123: 1.94 | E123: 1.89 | F123: 25.47 | G123: 8.015591779 | H123: 62.27888551 | I123: 4.852858009 | J123: -13.53767486 | K123: 25.6 | L123: 20 | M123: 23.16 | N123: 50.25 | O123: 94.12304867 | P123: 1.64 | Q123: Dipole | R123: No | S123: 5.381924876 | T123: 32.2 | U123: 25.07441531 | V123: 5.381924876 | W123: 0.9731034483
A124: Hy-Gain UB-7031DX | B124: 7.22942726 | C124: 19.54 | D124: 1.92 | E124: 1.86 | F124: 25.33 | G124: 5.336423655 | H124: 77.42964182 | I124: 4.16736992 | J124: -14.22316295 | K124: 26.23 | L124: 18.3 | M124: 21.1 | N124: 199.5 | O124: 98.67648211 | P124: 1.26 | Q124: T Match | R124: Yes | S124: 8.901650513 | T124: 33.12 | U124: 28.39303273 | V124: 8.901650513 | W124: 0.9819310345
A125: WiMo 27 (YU7EF) | B125: 7.23636529 | C125: 19.43 | D125: 1.851 | E125: 1.8 | F125: 25.08 | G125: 4.364718236 | H125: 50.16069382 | I125: 4.906219604 | J125: -13.48431327 | K125: 27.09 | L125: 20.5 | M125: 22.62 | N125: 191.8 | O125: 78.62180599 | P125: 2.72 | Q125: Folded Dipole | R125: Yes | S125: 3.710429471 | T125: 27.45 | U125: 23.49842492 | V125: 3.710429471 | W125: 0.9851724138
A126: +DG7YBN GTV70-30m | B126: 7.275218258 | C126: 19.74 | D126: 1.94 | E126: 1.885 | F126: 25.58 | G126: 3.95316323 | H126: 43.85439547 | I126: 5.670830241 | J126: -12.71970263 | K126: 32.86 | L126: 18.9 | M126: 26 | N126: 42.5 | O126: 98.49184364 | P126: 1.28 | Q126: Bent Dipole | R126: No | S126: 2.546774554 | T126: 26 | U126: 22.4012583 | V126: 2.546774554 | W126: 0.9865517241
A127: K1FO 33 | B127: 7.36124983 | C127: 20.03 | D127: 2.08 | E127: 2.04 | F127: 25.95 | G127: 6.262373622 | H127: 66.59402519 | I127: 5.163546737 | J127: -13.22698613 | K127: 22.03 | L127: 15.5 | M127: 22.2 | N127: 200.5 | O127: 99.2473051 | P127: 1.19 | Q127: T Match | R127: Yes | S127: 6.579852256 | T127: 31.78 | U127: 26.20389615 | V127: 6.579852256 | W127: 0.978862069
A128: Directive DSEFO432-33 | B128: 7.36124983 | C128: 20.03 | D128: 2.08 | E128: 2.04 | F128: 25.95 | G128: 6.262373622 | H128: 66.59402519 | I128: 5.163546737 | J128: -13.22698613 | K128: 22.03 | L128: 15.5 | M128: 22.2 | N128: 200.5 | O128: 99.2473051 | P128: 1.19 | Q128: T Match | R128: Yes | S128: 6.579852256 | T128: 31.78 | U128: 26.20389615 | V128: 6.579852256 | W128: 0.978862069
A129: RA3AQ AQ70-30f | B129: 7.90241617 | C129: 20.33 | D129: 2.08 | E129: 2.04 | F129: 26.08 | G129: 5.637501318 | H129: 46.6117629 | I129: 6.063157288 | J129: -12.32737558 | K129: 30.57 | L129: 16.8 | M129: 22.1 | N129: 51.59 | O129: 99.77324263 | P129: 1.1 | Q129: Folded Dipole | R129: Yes | S129: 2.758596478 | T129: 27.7 | U129: 22.60097726 | V129: 2.758596478 | W129: 0.9809310345
A130: InnoV 30 LFA | B130: 8.07586692 | C130: 20.45 | D130: 2.27 | E130: 2.22 | F130: 26.42 | G130: 6.827021494 | H130: 57.96841141 | I130: 5.955017769 | J130: -12.4355151 | K130: 36.6 | L130: 13.9 | M130: 20.3 | N130: 49.6 | O130: 83.3304156 | P130: 2.38 | Q130: LFA-LOOP | R130: Yes | S130: 4.765643808 | T130: 30.6 | U130: 24.49334698 | V130: 4.765643808 | W130: 0.977
A131: *YU7EF EF7032-5 | B131: 8.66559947 | C131: 19.97 | D131: 1.94 | E131: 1.9 | F131: 25.58 | G131: 6.796643128 | H131: 52.76686437 | I131: 5.31776739 | J131: -13.07276548 | K131: 27.7 | L131: 23.1 | M131: 24.2 | N131: 51.27 | O131: 69.79952926 | P131: 3.44 | Q131: Dipole | R131: No | S131: 3.744826527 | T131: 29.633 | U131: 23.53085662 | V131: 3.744826527 | W131: 0.9771
A132: InnoV 33 LFA | B132: 9.04025309 | C132: 20.85 | D132: 2.32 | E132: 2.29 | F132: 26.81 | G132: 5.429795904 | H132: 53.37929249 | I132: 6.513570873 | J132: -11.876962 | K132: 36.55 | L132: 13.3 | M132: 19.2 | N132: 50.07 | O132: 99.38626856 | P132: 1.17 | Q132: LFA-LOOP | R132: Yes | S132: 4.135546422 | T132: 28.79 | U132: 23.89925177 | V132: 4.135546422 | W132: 0.9816206897
A133: DJ9BV OPT70-13wl | B133: 9.217172855 | C133: 20.85 | D133: 2.346 | E133: 2.293 | F133: 26.8 | G133: 5.243110409 | H133: 79.53076207 | I133: 5.568540847 | J133: -12.82199202 | K133: 25.93 | L133: 14.75 | M133: 19.67 | N133: 183 | O133: 96.74818597 | P133: 1.44 | Q133: Folded Dipole | R133: Yes | S133: 9.334843813 | T133: 33.44 | U133: 28.80147446 | V133: 9.334843813 | W133: 0.9822413793
A134: M2 432-13WLA | B134: 9.22064187 | C134: 20.81 | D134: 2.32 | E134: 2.28 | F134: 26.69 | G134: 7.341253005 | H134: 119.2512858 | I134: 4.36073335 | J134: -14.02979952 | K134: 22.36 | L134: 19.2 | M134: 20.9 | N134: 199.9 | O134: 83.76030296 | P134: 2.35 | Q134: Folded Dipole | R134: Yes | S134: 16.7617098 | T134: 42.08 | U134: 35.80398812 | V134: 16.7617098 | W134: 0.9753103448
A135: *M2 432-13WLA | B135: 9.22064187 | C135: 20.81 | D135: 2.082 | E135: 2.082 | F135: 26.4 | G135: 7.983913829 | H135: 129.0322791 | I135: 3.841470144 | J135: -14.54906273 | K135: 22.36 | L135: 19.2 | M135: 20.9 | N135: 199.9 | O135: 83.76030296 | P135: 2.35 | Q135: Folded Dipole | R135: Yes | S135: 18.56566715 | T135: 44.27 | U135: 37.50487191 | V135: 18.56566715 | W135: 0.9732068966
A136: InnoV 34 A LFA 2019 | B136: 9.35246444 | C136: 20.98 | D136: 2.403 | E136: 2.375 | F136: 26.95 | G136: 6.586260403 | H136: 53.93945076 | I136: 6.639663263 | J136: -11.75086961 | K136: 37.81 | L136: 12.89 | M136: 18.04 | N136: 50.12 | O136: 94.26188032 | P136: 1.63 | Q136: LFA-LOOP | R136: Yes | S136: 4.017832275 | T136: 29.7 | U136: 23.78826351 | V136: 4.017832275 | W136: 0.9777931034
A137: I0JXX 39JXX70 | B137: 9.38715459 | C137: 20.16 | D137: 2 | E137: 1.97 | F137: 25.86 | G137: 6.439901304 | H137: 60.86962888 | I137: 5.282847094 | J137: -13.10768578 | K137: 26.05 | L137: 26.7 | M137: 27 | N137: 194 | O137: 99.2473051 | P137: 1.19 | Q137: T Match | R137: Yes | S137: 5.414779838 | T137: 30.86 | U137: 25.10539302 | V137: 5.414779838 | W137: 0.9782758621
A138: InnoV 34 LFA B 2019 | B138: 9.39409262 | C138: 20.89 | D138: 2.403 | E138: 2.375 | F138: 26.89 | G138: 7.372794456 | H138: 54.95473804 | I138: 6.545404599 | J138: -11.84512827 | K138: 37.25 | L138: 12.71 | M138: 17.93 | N138: 50.12 | O138: 88.29639889 | P138: 2.04 | Q138: LFA-LOOP | R138: Yes | S138: 4.062989428 | T138: 30.43 | U138: 23.83084049 | V138: 4.062989428 | W138: 0.9752068966
A139: *InnoV 34 LFA B 2019 | B139: 9.39409262 | C139: 20.89 | D139: 2.2 | E139: 2.2 | F139: 26.72 | G139: 7.078667562 | H139: 48.58982585 | I139: 6.629840688 | J139: -11.76069218 | K139: 37.25 | L139: 12.71 | M139: 17.91 | N139: 50.12 | O139: 88.29639889 | P139: 2.04 | Q139: LFA-LOOP | R139: Yes | S139: 2.864582854 | T139: 29.07 | U139: 22.70090784 | V139: 2.864582854 | W139: 0.9761724138
A140: InnoV 35 LFA 2019 | B140: 9.67161382 | C140: 20.95 | D140: 2.46 | E140: 2.43 | F140: 26.93 | G140: 7.656968925 | H140: 59.38688997 | I140: 6.417515211 | J140: -11.97301766 | K140: 36.67 | L140: 12.7 | M140: 18.1 | N140: 49.1 | O140: 79.02409647 | P140: 2.69 | Q140: LFA-LOOP | R140: Yes | S140: 4.881823105 | T140: 31.43 | U140: 24.60288809 | V140: 4.881823105 | W140: 0.9742758621
A141: InnoV 38 LFA | B141: 10.69150423 | C141: 21.45 | D141: 2.3 | E141: 2.35 | F141: 27.23 | G141: 7.05768076 | H141: 47.51456727 | I141: 7.184579547 | J141: -11.20595332 | K141: 36.9 | L141: 12.7 | M141: 17 | N141: 49.3 | O141: 90.81086331 | P141: 1.87 | Q141: LFA-LOOP | R141: Yes | S141: 2.656463777 | T141: 28.86 | U141: 22.50468016 | V141: 2.656463777 | W141: 0.9762413793
A142: *InnoV 38 LFA | B142: 10.69150423 | C142: 21.45 | D142: 2.59 | E142: 2.56 | F142: 27.26 | G142: 6.471251807 | H142: 46.35989007 | I142: 7.259408899 | J142: -11.13112397 | K142: 36.9 | L142: 12.7 | M142: 17 | N142: 49.3 | O142: 90.81086331 | P142: 1.87 | Q142: LFA-LOOP | R142: Yes | S142: 2.544288434 | T142: 28.24 | U142: 22.39891423 | V142: 2.544288434 | W142: 0.9781724138
A143: InnoV 39 LFA 2019 | B143: 10.95792458 | C143: 21.59 | D143: 2.524 | E143: 2.493 | F143: 27.54 | G143: 6.283248194 | H143: 46.80915614 | I143: 7.519111883 | J143: -10.87142099 | K143: 39.54 | L143: 12.9 | M143: 18.9 | N143: 49.22 | O143: 99.51325041 | P143: 1.15 | Q143: LFA-LOOP | R143: Yes | S143: 2.670088991 | T143: 28.19 | U143: 22.51752686 | V143: 2.670088991 | W143: 0.9787931034
A144: InnoV 40 LFA 2019 | B144: 11.27360495 | C144: 21.82 | D144: 2.589 | E144: 2.556 | F144: 27.63 | G144: 7.173144876 | H144: 46.13546329 | I144: 7.643593187 | J144: -10.74693968 | K144: 35.64 | L144: 12.74 | M144: 19.16 | N144: 51.8 | O144: 95.3479431 | P144: 1.55 | Q144: LFA-LOOP | R144: Yes | S144: 2.361427774 | T144: 28.69 | U144: 22.22650177 | V144: 2.361427774 | W144: 0.975862069
T153: - | W153: 1
A154: Only Antennas that have actually been built are posted in these Tables, except for the F5FOD Isotropic Lossless Radiator.
A156: Thanks to Vladimir, UR5EAZ for establishing the Interactive Mode in the 144 and 432 Tables
A157: Thanks to Hartmut, DG7YBN for his ongoing support and many inputs to the Tables
A159: Legend:
A161: 1. L = Length in Wavelengths
A163: 2. Gain = Gain in dBi of a single antenna
A165: 3. E = E plane (Horizontal) stacking in Meters.
A167: 4. H = H plane (Vertical) stacking in Meters.
A169: 5. Ga = Gain in dBi of a 4 bay array
A171: 6. Tloss = Noise temperature due to ohmic losses in the antenna (K) at an actual antenna temperature of 290 K.
A173: 7. Ta = Noise temperature of the antenna array (K) is the mixture of the antenna array pattern, the sky temperature,
A174: ground and the ohmic losses in the antenna array.
A176: 8. F/R = Front to Rear in dB over the rear 180 degrees of an antenna using either E or H plane.
A178: 9. Z ohms = The natural impedence of a single antenna in free space.
A180: 10. VSWR = VSWR Bandwidth is based a single antenna over 432.000 - 435.000 MHz with a
A181: reference at 432.300 MHz. This parameter gives an indicator of the
A182: antenna "Q" and what to expect with with stacking and wet weather.
A184: 11. G/T = Figure of merit; a system parameter used to determine the receive capability of the antenna or array
A185: as part of the radio receiving system. The more positive value thebetter. | E185: value the | F185: better.
A187: 12. S/N = Figure of merit; a system parameter used to determine the receive capability of the antenna or array
A188: as part of the radio receiving system. The more positive value the better.
A190: 13. e = Radiation Efficiency; a system parameter which describes how efficiently an antenna transmits and receives signals.
A192: Notes:
A194: 1. The programs used to calculate E/H Stacking,G,Ta,Tlos and G/T are
A195: EZNEC 5+ by Roy Lewallen W7EL,4NEC2 by Arie Voors and Tant.exe by Sinisa, YT1NT/VE3EA or AGTC_lite by F5FOD/DG7YBN
A196: This combination of software provides excellent accuracy. Segment Density is
A197: 25 segments per half wave.
A199: 2. Temperatures initially used: Tsky=20 degrees;Tearth=350 degrees
A200: Temperatures now adjustable to Tsky=27 Kelvin. Tearth: Rural = 460K Kelvin, Residential = 1800K Kelvin, City = 7900 Kelvin
A202: 3. Dipole Z is measured at 432.1 MHz
A204: 4. F/R, 1st and 2nd Side Lobes (SL) have been calculated on a single antenna
A206: 5. No stacking harness losses or H frame effects are included in the 4 bay gain figures.
A208: 6. All stacking dimensions EXCEPT those marked with a "*" and "#" are
A209: calculated from the DL6WU stacking formula:
A210: D = W/(2* sin(B/2))
A211: Where:
A212: D = stacking distance,vertical or horizontal
A213: W = wavelength, in the same units as D
A214: B = beamwidth between -3dB points.
A215: Use vertical beamwidth for vertical stacking (as above),
A216: Use horizontal beamwidth for horizontal stacking.
A218: 7. Antennas marked with a "*" have stacking dimensions recommended by
A219: the manufacturer or designer.
A221: 8. Antennas marked with a "#" have stacking dimensions for XPOL
A222: antennas by VE7BQH.
A224: 9. Antennas marked with a "+" have some or all elements over 6mm. All others
A225: are 4MM to 6MM.
A227: 10. FD = Folded Dipole
A229: 11. Convergence Correction: NEC2 and NEC 4 are incapable of handling complex
A230: feed systems accurately like Folded Dipoles, T Matches, LFAs etc.
A231: Convergence Correction using the KF2YN Excel program is required.
A232: See DUBUS 4/2010 "The Correction of Convergence Errors in Antenna
A233: Temperature Calculations by Brian Cake, KF2YN for details.
A235: 12.Earth Temperature Definition
A236: Rural: Open countryside with largely agricultural activity, building density < 1/ha, no major roads, no electrified railways.
A237: Residential: Villages and pure residential areas with no commercial or industrial activities. No electrified railways and no major roads and no high voltage overhead lines or facilities within 1 km.
A238: City: Dense commercial or industrial buildings and offices. Major roads and railways can be in the vicinity, but should not be dominating.
A240: 13. Manufacturer/Designer Legend: Single click on Sites in blue
... 69 more rows

Sheet 144.1 MHz Table
A2: Issue: July 2, 2024 | F2: VE7BQH Antenna Table
B4: Old Reference: Tsky=200K Tearth=1000K | F4: Reference: Estimated Values for man-made noise (Tearth) on 144.1 MHz acc. ITU-R P.372-16: Part 6, Man-made noise, p.98-100
B5: New Reference: Tsky=290K | F5: Rural = | H5: 1600
F6: Residential = | H6: 5400
F7: City = | H7: 14550
B8: Enter Tsky > | D8: 290 | E8: K | F8: Enter Tearth > | H8: 5400 | I8: Enter Receive System NF > | M8: 0.75 | N8: dB
F9: DL6WU Optimal Stacking | M9: 1 Ant | U9: Internal use only
C10: 1 Ant | F10: 4 Antennas | K10: < | L10: H Plane | M10: > | R10: KF2YN | U10: archive
A11: TYPE OF | B11: Length | C11: GAIN | D11: E | E11: H | F11: GA | G11: Tloss | H11: TA | I11: G/T | J11: S/N | K11: F/R | L11: 1st SL | M11: 2nd SL | N11: Z | O11: e | P11: VSWR | Q11: Feed | R11: Convergence | S11: Polarity | U11: Ta | W11: New
A12: ANTENNA | B12: (m) | C12: (dBi) | D12: (m) | E12: (m) | F12: (dBi) | G12: (K) | H12: (K) | I12: (dB/K) | J12: (dB) | K12: (dB) | L12: (dB) | M12: (dB) | N12: (ohms) | O12: (%) | P12: Bandwidth | Q12: System | R12: Correction req. | U12: Old | V12: Tpat | W12: "S" | X12: avg gain
A14: F5FOD Isotropic Lossless Radiator | B14: 0 | C14: 0 | D14: - | E14: - | F14: - | G14: =290*(1/X14-1) -> 0.00700016897 | H14: =T14/1000*H$8+(1-T14/1000)*D$8+290*(1/X14-1) -> 2845.003696 | I14: =C14-10*LOG((T14/1000*H$8+(1-T14/1000)*D$8)+290*(10^(0.1*M$8)/X14-1))+10*LOG(1/X14) -> -34.62338191 | J14: =10*LOG(10^(C14/10)*5E-22/X14/1.380649E-23/2500/(T14/1000*H$8+(1-T14/1000)*D$8+290*(10^(M$8/10)/X14-1))) -> -53.01391478 | K14: - | L14: - | M14: - | N14: - | P14: - | Q14: - | R14: No | T14: 499.9993534 | U14: 599.992 | V14: 599.9994827 | W14: =(V14-200)*1.25 -> 499.9993534 | X14: 0.9999758621
A15: +KF2YN Boxkite 4 | B15: 0.8945935 | C15: 13.25 | D15: 3.5 | E15: 2 | F15: 18.95 | G15: =290*(1/X15-1) -> 3.95316323 | H15: 452.5131947 | I15: =F15-10*LOG((T15/1000*H$8+(1-T15/1000)*D$8)+290*(10^(0.1*M$8)/X15-1))+10*LOG(1/X15) -> -8.049186119 | J15: =10*LOG(10^(F15/10)*5E-22/X15/1.380649E-23/2500/(T15/1000*H$8+(1-T15/1000)*D$8+290*(10^(M$8/10)/X15-1))) -> -26.43971899 | K15: 23.4 | L15: 22 | M15: none | N15: 50.4 | O15: =(1-((P15-1)/(P15+1))^2)*10^2 -> 99.67960128 | P15: 1.12 | Q15: Dipole | R15: Yes | T15: 31.02936036 | U15: 225.7 | V15: 224.8234883 | W15: 31.02936036 | X15: 0.9865517241
A16: I0JXX 4JXX2 | B16: 1.084 | C16: 9.23 | D16: 2.132 | E16: 1.565 | F16: 15.22 | G16: 1.603821016 | H16: 701.924046 | I16: -13.54638711 | J16: -31.93691999 | K16: 14.65 | L16: none | M16: none | N16: 196.8 | O16: =(1-((P16-1)/(P16+1))^2)*10^2 -> 99.57201502 | P16: 1.14 | Q16: Folded Dipole | R16: Yes | T16: 80.2975 | U16: 250.68 | V16: 264.238 | W16: 80.2975 | X16: 0.9945
A17: +Eantenna 144LFA4 | B17: 1.2233046 | C17: 10.06 | D17: 2.68 | E17: 1.744 | F17: 16.14 | G17: 2.03416904 | H17: 613.9909629 | I17: -12.08416448 | J17: -30.47469735 | K17: 17.74 | L17: none | M17: none | N17: 49.4 | O17: 99.09707008 | P17: 1.21 | Q17: LFA Loop | R17: Yes | T17: 63.00524342 | U17: 250.68 | V17: 250.4041947 | W17: 63.00524342 | X17: 0.9930344828
A18: +G4CQM WA26075 | B18: 1.5644984 | C18: 10.33 | D18: 2.291 | E18: 1.77 | F18: 16.33 | G18: 1.912530371 | H18: 509.9433356 | I18: -11.16170262 | J18: -29.55223549 | K18: 21.48 | L18: none | M18: none | N18: 49.65 | O18: 99.57201502 | P18: 1.14 | Q18: Dipole | R18: No | T18: 42.66747657 | U18: 234.5 | V18: 234.1339813 | W18: 42.66747657 | X18: 0.9934482759
A19: +Eantenna 144LFA5 | B19: 1.79958925 | C19: 11.09 | D19: 2.443 | E19: 1.985 | F19: 17.09 | G19: 3.205034341 | H19: 526.3822996 | I19: -10.50889877 | J19: -28.89943164 | K19: 18.89 | L19: 18.3 | M19: none | N19: 53.4 | O19: 99.81456468 | P19: 1.09 | Q19: LFA Loop | R19: Yes | T19: 45.63155876 | U19: 237.09 | V19: 236.505247 | W19: 45.63155876 | X19: 0.9890689655
A20: G4CQM 6 | B20: 2.08045 | C20: 11.61 | D20: 2.6 | E20: 2.17 | F20: 17.59 | G20: 8.121233605 | H20: 608.3712336 | I20: -10.5154435 | J20: -28.90597637 | K20: 18.9 | L20: 17.1 | M20: none | N20: 56.7 | O20: 90.3686088 | P20: 1.9 | Q20: Dipole | R20: No | T20: 60.71428571 | U20: 249.7 | V20: 248.5714286 | W20: 60.71428571 | X20: 0.9727586207
A21: +KF2YN Boxkite 6 | B21: 2.163668 | C21: 14.62 | D21: 3.9 | E21: 3 | F21: 20.4 | G21: 4.705119669 | H21: 695.2282519 | I21: -8.285234886 | J21: -26.67576776 | K21: 26.5 | L21: 22.9 | M21: 24.8 | N21: 49.9 | O21: 99.17355372 | P21: 1.2 | Q21: Dipole | R21: Yes | T21: 78.38026071 | U21: 263.14 | V21: 262.7042086 | W21: 78.38026071 | X21: 0.9840344828
A22: Vine 6 OWL | B22: 2.288495 | C22: 11.84 | D22: 2.64 | E22: 2.21 | F22: 17.82 | G22: 8.438608943 | H22: 534.1278389 | I22: -9.766777035 | J22: -28.15730991 | K22: 24.1 | L22: 18.4 | M22: none | N22: 48.3 | O22: 99.31823921 | P22: 1.18 | Q22: Folded Dipole | R22: Yes | T22: 46.12313698 | U22: 238.4 | V22: 236.8985096 | W22: 46.12313698 | X22: 0.9717241379
A23: InnoV 6 LFA-3 2022 | B23: 2.3 | C23: 11.71 | D23: 2.578 | E23: 2.146 | F23: 17.68 | G23: 4.250396241 | H23: 504.1217566 | I23: -9.735498091 | J23: -28.12603096 | K23: 23.11 | L23: 19.68 | M23: none | N23: 50.16 | O23: 99.51325041 | P23: 1.15 | Q23: LFA Loop | R23: Yes | T23: 41.07071631 | U23: 233.682 | V23: 232.8565731 | W23: 41.07071631 | X23: 0.9855551724
A24: *InnoV 6 LFA-3 2022 | B24: 2.3 | C24: 11.71 | D24: 2.243 | E24: 1.879 | F24: 17.27 | G24: 4.160854571 | H24: 385.8146363 | I24: -9.115122197 | J24: -27.50565507 | K24: 23.11 | L24: 19.68 | M24: none | N24: 50.16 | O24: 99.51325041 | P24: 1.15 | Q24: LFA Loop | R24: Yes | T24: 17.9361608 | U24: 215.419 | V24: 214.3489286 | W24: 17.9361608 | X24: 0.9858551724
A25: G0KSC 6 LFA | B25: 2.3509085 | C25: 11.84 | D25: 2.6 | E25: 2.19 | F25: 17.79 | G25: 4.097076514 | H25: 524.6801082 | I25: -9.784236781 | J25: -28.17476965 | K25: 24.44 | L25: 19.8 | M25: none | N25: 49.5 | O25: 99.97816011 | P25: 1.03 | Q25: LFA Loop | R25: Yes | T25: 45.12388096 | U25: 236.85 | V25: 236.0991048 | W25: 45.12388096 | X25: 0.9860689655
A26: DG7YBN GTV 2-6m | B26: 2.3509085 | C26: 11.9 | D26: 2.651 | E26: 2.194 | F26: 17.88 | G26: 3.542757417 | H26: 522.5117801 | I26: -9.685381713 | J26: -28.07591458 | K26: 22.73 | L26: 18.35 | M26: none | N26: 49.83 | O26: 97.99406878 | P26: 1.33 | Q26: Bent Dipole | R26: No | T26: 44.80802792 | U26: 236.5 | V26: 235.8464223 | W26: 44.80802792 | X26: 0.9879310345
A27: +I5MZY 5 | B27: 2.3925175 | C27: 12.36 | D27: 2.915 | E27: 2.547 | F27: 18.33 | G27: 7.488503714 | H27: 856.6376459 | I27: -11.16262947 | J27: -29.55316234 | K27: 16.49 | L27: 12.13 | M27: none | N27: 11.85 | O27: 65.97222222 | P27: 3.8 | Q27: Dipole | R27: No | T27: 109.4225327 | U27: 287.6 | V27: 287.5380262 | W27: 109.4225327 | X27: 0.9748275862
A28: +G4CQM WA27116 | B28: 2.39875885 | C28: 11.7 | D28: 2.557 | E28: 2.112 | F28: 17.65 | G28: 2.318387209 | H28: 486.6742266 | I28: -9.653623428 | J28: -28.0441563 | K28: 24.36 | L28: 20.2 | M28: none | N28: 48.71 | O28: 99.31823921 | P28: 1.18 | Q28: Dipole | R28: No | T28: 38.03441084 | U28: 230.9 | V28: 230.4275287 | W28: 38.03441084 | X28: 0.9920689655
A29: DD0VF 6 | B29: 2.413322 | C29: 11.88 | D29: 2.63 | E29: 2.22 | F29: 17.86 | G29: 5.606326889 | H29: 545.5832162 | I29: -9.847795699 | J29: -28.23832857 | K29: 23.7 | L29: 16.4 | M29: none | N29: 27.2 | O29: 99.88564494 | P29: 1.07 | Q29: Dipole | R29: No | T29: 48.91915641 | U29: 240.1 | V29: 239.1353251 | W29: 48.91915641 | X29: 0.9810344828
A30: *DD0VF 6 | B30: 2.413322 | C30: 11.88 | D30: 2.3 | E30: 2.3 | F30: 17.73 | G30: 5.606326889 | H30: 578.1381371 | I30: -10.20678022 | J30: -28.59731309 | K30: 23.7 | L30: 16.4 | M30: none | N30: 27.2 | O30: 99.88564494 | P30: 1.07 | Q30: Dipole | R30: No | T30: 55.28998243 | U30: 245.1 | V30: 244.2319859 | W30: 55.28998243 | X30: 0.9810344828
A31: EA1DDO 6 Quad V3 | B31: 2.4655 | C31: 12.41 | D31: 2.813 | E31: 2.656 | F31: 18.369 | G31: 17.82294873 | H31: 784.1579862 | I31: -10.62603628 | J31: -29.01656915 | K31: 19.86 | L31: 13.42 | M31: none | N31: 47.86 | O31: 99.45130316 | P31: 1.16 | Q31: Dipole | R31: Yes | T31: 93.21625 | U31: 244.97 | V31: 274.573 | W31: 93.21625 | X31: 0.9421
A32: M2 2M7 | B32: 2.662976 | C32: 12.09 | D32: 2.65 | E32: 2.26 | F32: 17.91 | G32: 3.706782147 | H32: 577.2761795 | I32: -10.04641056 | J32: -28.43694343 | K32: 18.4 | L32: 16.1 | M32: none | N32: 204.9 | O32: 99.57201502 | P32: 1.14 | Q32: T Match | R32: Yes | T32: 55.49303276 | U32: 244.97 | V32: 244.3944262 | W32: 55.49303276 | X32: 0.9873793103
A33: *M2 2M7 | B33: 2.662976 | C33: 12.09 | D33: 2.21 | E33: 2.03 | F33: 17.32 | G33: 3.706782147 | H33: 544.7363798 | I33: -10.40708201 | J33: -28.79761488 | K33: 18.4 | L33: 16.1 | M33: none | N33: 204.9 | O33: 99.57201502 | P33: 1.14 | Q33: T Match | R33: Yes | T33: 49.12516589 | U33: 239.94 | V33: 239.3001327 | W33: 49.12516589 | X33: 0.9873793103
A34: +KF2YN Boxkite 7 | B34: 2.746194 | C34: 15.49 | D34: 4.17 | E34: 3.4 | F34: 21.45 | G34: 5.29494382 | H34: 580.7363501 | I34: -6.508722295 | J34: -24.89925517 | K34: 26.8 | L34: 23.6 | M34: 24.5 | N34: 52.7 | O34: 99.91516637 | P34: 1.06 | Q34: Dipole | R34: Yes | T34: 55.859375 | U34: 245.5 | V34: 244.6875 | W34: 55.859375 | X34: 0.9820689655
A35: +DG7YBN YBN 2-7mz | B35: 2.758 | C35: 12.24 | D35: 2.718 | E35: 2.331 | F35: 18.214 | G35: 3.314453323 | H35: 564.7448783 | I35: -9.66080954 | J35: -28.05134241 | K35: 22.68 | L35: 15.78 | M35: none | N35: 27.2 | O35: 99.01793686 | P35: 1.22 | Q35: Dipole | R35: Yes | T35: 53.1175 | U35: 251.62 | V35: 242.494 | W35: 53.1175 | X35: 0.9887
A36: +YU7XL 8 Hybrid | B36: 2.787803 | C36: 12.64 | D36: 2.79 | E36: 2.5 | F36: 18.55 | G36: 3.18459125 | H36: 620.2152388 | I36: -9.698701144 | J36: -28.08923401 | K36: 19.8 | L36: 17.1 | M36: none | N36: 199.9 | O36: 99.62749895 | P36: 1.13 | Q36: Horiz Dipole | R36: Yes | T36: 63.99816978 | U36: 251.62 | V36: 251.1985358 | W36: 63.99816978 | X36: 0.989137931
A37: *YU7XL 8 Hybrid | B37: 2.787803 | C37: 12.64 | D37: 3 | E37: 2.43 | F37: 18.58 | G37: 3.491537254 | H37: 594.9868871 | I37: -9.499233118 | J37: -27.88976599 | K37: 19.8 | L37: 17.1 | M37: none | N37: 199.9 | O37: 99.62749895 | P37: 1.13 | Q37: Horiz Dipole | R37: Yes | T37: 59.00104694 | U37: 247.71 | V37: 247.2008376 | W37: 59.00104694 | X37: 0.9881034483
A38: +G0KSC 7LFA | B38: 2.8918255 | C38: 12.75 | D38: 2.84 | E38: 2.49 | F38: 18.66 | G38: 3.758077474 | H38: 606.1340249 | I38: -9.489433318 | J38: -27.87996619 | K38: 20.4 | L38: 16.1 | M38: none | N38: 48 | O38: 99.67960128 | P38: 1.12 | Q38: LFA Loop | R38: Yes | T38: 61.1303224 | U38: 249.43 | V38: 248.9042579 | W38: 61.1303224 | X38: 0.9872068966
A39: +*G0KSC 7 LFA | B39: 2.8918255 | C39: 12.75 | D39: 2.6 | E39: 2.2 | F39: 18.34 | G39: 3.758077474 | H39: 503.7095733 | I39: -9.078849532 | J39: -27.4693824 | K39: 20.4 | L39: 16.1 | M39: none | N39: 48 | O39: 99.2473051 | P39: 1.19 | Q39: LFA Loop | R39: Yes | T39: 41.08639841 | U39: 233.6 | V39: 232.8691187 | W39: 41.08639841 | X39: 0.9872068966
A40: +EAntenna 144LFA7 | B40: 2.8918255 | C40: 12.73 | D40: 2.838 | E40: 2.489 | F40: 18.65 | G40: 4.33381164 | H40: 586.8760806 | I40: -9.363354265 | J40: -27.75388714 | K40: 22.54 | L40: 15.2 | M40: none | N40: 48.63 | O40: 99.51325041 | P40: 1.15 | Q40: LFA Loop | R40: Yes | T40: 57.24897631 | U40: 246.45 | V40: 245.799181 | W40: 57.24897631 | X40: 0.9852758621
A41: +DG7YBN GTV 2-7n | B41: 2.995848 | C41: 12.74 | D41: 2.88 | E41: 2.47 | F41: 18.7 | G41: 4.570928196 | H41: 562.5550788 | I41: -9.142544602 | J41: -27.53307747 | K41: 23.17 | L41: 17.4 | M41: none | N41: 47.2 | O41: 98.93623439 | P41: 1.23 | Q41: Bent Dipole | R41: No | T41: 52.44308231 | U41: 242.7 | V41: 241.9544658 | W41: 52.44308231 | X41: 0.9844827586
A42: Vine 7 FD | B42: 3.0166525 | C42: 12.71 | D42: 2.83 | E42: 2.46 | F42: 18.62 | G42: 8.438608943 | H42: 535.4425124 | I42: -8.976437197 | J42: -27.36697007 | K42: 22.8 | L42: 17.9 | M42: none | N42: 47.9 | O42: 99.57201502 | P42: 1.14 | Q42: Folded Dipole | R42: Yes | T42: 46.38041164 | U42: 238.6 | V42: 237.1043293 | W42: 46.38041164 | X42: 0.9717241379
A43: +*InnoV 7 FD | B43: 3.037457 | C43: 13 | D43: 2.96 | E43: 2.606 | F43: 18.96 | G43: 3.819655522 | H43: 606.1405775 | I43: -9.188642262 | J43: -27.57917513 | K43: 22.4 | L43: 14.8 | M43: none | N43: 47.7 | O43: 98.67648211 | P43: 1.26 | Q43: Folded Dipole | R43: Yes | T43: 61.1195542 | U43: 249.43 | V43: 248.8956434 | W43: 61.1195542 | X43: 0.987
A44: +InnoV 7 FD | B44: 3.0416179 | C44: 13 | D44: 2.97 | E44: 2.624 | F44: 18.97 | G44: 3.819655522 | H44: 623.4198328 | I44: -9.290625003 | J44: -27.68115787 | K44: 22.35 | L44: 14.8 | M44: none | N44: 47.69 | O44: 98.67648211 | P44: 1.26 | Q44: Folded Dipole | R44: Yes | T44: 64.50101317 | U44: 252.1 | V44: 251.6008105 | W44: 64.50101317 | X44: 0.987
A45: +PY1MHZ 7 | B45: 3.0416179 | C45: 12.86 | D45: 2.876 | E45: 2.518 | F45: 18.78 | G45: 3.044632684 | H45: 582.5828696 | I45: -9.221640181 | J45: -27.61217305 | K45: 22.2 | L45: 15.1 | M45: none | N45: 49.9 | O45: 96.37922274 | P45: 1.47 | Q45: Folded Dipole | R45: Yes | T45: 56.66110312 | U45: 245.793 | V45: 245.3288825 | W45: 56.66110312 | X45: 0.9896103448
A46: G4CQM 7 | B46: 3.120675 | C46: 12.91 | D46: 2.89 | E46: 2.53 | F46: 18.84 | G46: 8.121233605 | H46: 544.0207373 | I46: -8.823135638 | J46: -27.21366851 | K46: 23.5 | L46: 17.9 | M46: none | N46: 50.7 | O46: 84.33657962 | P46: 2.31 | Q46: Dipole | R46: No | T46: 48.12123361 | U46: 239.9 | V46: 238.4969869 | W46: 48.12123361 | X46: 0.9727586207
A47: InnoV/G0KSC 7 LFA3 2020 | B47: 3.15 | C47: 12.45 | D47: 2.71 | E47: 1.88 | F47: 17.92 | G47: 3.80836428 | H47: 348.5718809 | I47: -8.086672735 | J47: -26.47720561 | K47: 30.2 | L47: 20.9 | M47: none | N47: 50.4 | O47: 98.49184364 | P47: 1.28 | Q47: LFA Loop | R47: Yes | T47: 10.71693084 | U47: 209.629 | V47: 208.5735447 | W47: 10.71693084 | X47: 0.987037931
A48: +CT1FFU 7 | B48: 3.203893 | C48: 12.97 | D48: 2.863 | E48: 2.498 | F48: 18.85 | G48: 2.82729805 | H48: 530.3791347 | I48: -8.783709915 | J48: -27.17424278 | K48: 20.3 | L48: 18.4 | M48: 20.4 | N48: 28 | O48: 99.99019704 | P48: 1.02 | Q48: Dipole | R48: No | T48: 46.48763928 | U48: 237.7 | V48: 237.1901114 | W48: 46.48763928 | X48: 0.9903448276
A49: DK7ZB 7 | B49: 3.2663065 | C49: 13.26 | D49: 3.16 | E49: 2.84 | F49: 19.28 | G49: 5.918367347 | H49: 757.3826531 | I49: -9.734041789 | J49: -28.12457466 | K49: 16.9 | L49: 11.9 | M49: 16.9 | N49: 28.4 | O49: 94.12304867 | P49: 1.64 | Q49: Dipole | R49: No | T49: 90.30612245 | U49: 272.6 | V49: 272.244898 | W49: 90.30612245 | X49: 0.98
A50: +G4CQM WA9UXO | B50: 3.3620072 | C50: 12.96 | D50: 2.838 | E50: 2.461 | F50: 18.83 | G50: 2.013888889 | H50: 506.0616753 | I50: -8.630401331 | J50: -27.0209342 | K50: 22.01 | L50: 19.7 | M50: 22.1 | N50: 48.07 | O50: 99.51325041 | P50: 1.15 | Q50: Dipole | R50: No | T50: 41.88802083 | U50: 233.9 | V50: 233.5104167 | W50: 41.88802083 | X50: 0.9931034483
A51: IK0BZY 6 | B51: 3.3911335 | C51: 13.26 | D51: 3.1 | E51: 2.77 | F51: 19.19 | G51: 4.880785414 | H51: 717.123203 | I51: -9.617674309 | J51: -28.00820718 | K51: 17.8 | L51: 11.9 | M51: 17.7 | N51: 19.5 | O51: 84.91615932 | P51: 2.27 | T51: 82.6306101 | U51: 266.5 | V51: 266.1044881 | W51: 82.6306101 | X51: 0.9834482759
A52: G4CQM 10 UZ2 | B52: 3.4743515 | C52: 12.89 | D52: 2.89 | E52: 2.51 | F52: 18.83 | G52: 5.814280689 | H52: 518.1972388 | I52: -8.672596485 | J52: -27.06312936 | K52: 25.3 | L52: 19.5 | M52: 25.3 | N52: 45.1 | O52: 98.67648211 | P52: 1.26 | Q52: Dipole | R52: No | T52: 43.51916989 | U52: 235.9 | V52: 234.8153359 | W52: 43.51916989 | X52: 0.9803448276
A53: +DG7YBN YBN 2-8m | B53: 3.495156 | C53: 13.09 | D53: 2.91 | E53: 2.56 | F53: 18.99 | G53: 3.542757417 | H53: 537.3825044 | I53: -8.685732559 | J53: -27.07626543 | K53: 19.7 | L53: 15.5 | M53: 20.2 | N53: 47.5 | O53: 99.45130316 | P53: 1.16 | Q53: Dipole | R53: No | T53: 47.71815009 | U53: 238.8 | V53: 238.1745201 | W53: 47.71815009 | X53: 0.9879310345
A54: +PY1MHZ 8 | B54: 3.494947955 | C54: 13.09 | D54: 2.915 | E54: 2.567 | F54: 19.03 | G54: 3.071183889 | H54: 550.5725016 | I54: -8.747663872 | J54: -27.13819674 | K54: 20.7 | L54: 16.7 | M54: 21.3 | N54: 50.03 | O54: 98.93623439 | P54: 1.23 | Q54: Folded Dipole | R54: Yes | T54: 50.3916473 | U54: 240.834 | V54: 240.3133178 | W54: 50.3916473 | X54: 0.9895206897
A55: I4GBZ 7 | B55: 3.5159605 | C55: 13.56 | D55: 3.18 | E55: 2.86 | F55: 19.41 | G55: 5.814280689 | H55: 798.3665142 | I55: -9.819019048 | J55: -28.20955192 | K55: 12.7 | L55: 13.9 | M55: 19.7 | N55: 48.4 | O55: 84.91615932 | P55: 2.27 | Q55: Dipole | R55: No | T55: 98.34681674 | U55: 278.9 | V55: 278.6774534 | W55: 98.34681674 | X55: 0.9803448276
A56: EA1DDO 8 Circular V2 | B56: 3.615 | C56: 13.62 | D56: 3.116 | E56: 2.977 | F56: 19.49 | G56: =290*(1/X56-1) -> 3.373798685 | H56: 771.4973362 | I56: -9.633765904 | J56: -28.02429877 | K56: 18.29 | L56: 13.47 | M56: 18.2 | N56: 53.79 | O56: 93.56204054 | P56: 1.68 | Q56: Dipole | R56: No | T56: 93.56625 | U56: 214.335 | V56: 274.853 | W56: 93.56625 | X56: 0.9885
A57: EA1DDO 8 Quad V3 | B57: 3.6402 | C57: 12.9 | D57: 3.459 | E57: 3.339 | F57: 18.96 | G57: 25.38879826 | H57: 1019.361561 | I57: -11.00497926 | J57: -29.39551213 | K57: 17.75 | L57: 9.2 | M57: 16.6 | N57: 50.64 | O57: 98.93623439 | P57: 1.23 | Q57: Dipole | R57: Yes | T57: 137.76375 | U57: 214.335 | V57: 310.211 | W57: 137.76375 | X57: 0.9195
A58: *InnoV/G0KSC 8 LFA3 2020 | B58: 3.64286795 | C58: 13.08 | D58: 2.89 | E58: 2.13 | F58: 18.65 | G58: 5.01525941 | H58: 378.2217065 | I58: -7.648758416 | J58: -26.03929129 | K58: 25.63 | L58: 18.5 | M58: 25.63 | N58: 50.6 | O58: 99.09707008 | P58: 1.21 | Q58: LFA Loop | R58: Yes | T58: 16.28306205 | U58: 214.335 | V58: 213.0264496 | W58: 16.28306205 | X58: 0.983
A59: +DG7YBN GTV 2-8w | B59: 3.703201 | C59: 13.36 | D59: 2.98 | E59: 2.63 | F59: 19.25 | G59: 3.645251397 | H59: 510.2046962 | I59: -8.220517666 | J59: -26.61105054 | K59: 22.78 | L59: 16.24 | M59: 22.78 | N59: 49.06 | O59: 99.72821814 | P59: 1.11 | Q59: Bent Dipole | R59: No | T59: 42.37953911 | U59: 234.6 | V59: 233.9036313 | W59: 42.37953911 | X59: 0.9875862069
A60: G0KSC 8LFA | B60: 3.7240055 | C60: 13.25 | D60: 2.94 | E60: 2.6 | F60: 19.14 | G60: 4.984216065 | H60: 487.1693266 | I60: -8.13218662 | J60: -26.52271949 | K60: 24.8 | L60: 19.3 | M60: 25.1 | N60: 50 | O60: 98.85204082 | P60: 1.24 | Q60: LFA Loop | R60: Yes | T60: 37.60961066 | U60: 231.1 | V60: 230.0876885 | W60: 37.60961066 | X60: 0.9831034483
A61: *G0KSC 8LFA | B61: 3.7240055 | C61: 13.25 | D61: 3.15 | E61: 2.4 | F61: 19.02 | G61: 4.674141556 | H61: 475.5138008 | I61: -8.161999978 | J61: -26.55253285 | K61: 24.8 | L61: 19.3 | M61: 25.1 | N61: 50 | O61: 98.85204082 | P61: 1.24 | Q61: LFA Loop | R61: Yes | T61: 35.3893658 | U61: 229.29 | V61: 228.3114926 | W61: 35.3893658 | X61: 0.984137931
A62: +G4CQM WAX8 | B62: 3.7240055 | C62: 13.08 | D62: 2.838 | E62: 2.508 | F62: 18.95 | G62: 2.929292929 | H62: 481.3282828 | I62: -8.302422427 | J62: -26.6929553 | K62: 24.43 | L62: 19.7 | M62: 24.7 | N62: 44.62 | O62: 98.85204082 | P62: 1.24 | Q62: Dipole | R62: No | T62: 36.86868687 | U62: 230.1 | V62: 229.4949495 | W62: 36.86868687 | X62: 0.99
A63: EAntenna 144LFA8 | B63: 3.7281664 | C63: 13.23 | D63: 2.929 | E63: 2.577 | F63: 19.11 | G63: 4.96352413 | H63: 488.4748439 | I63: -8.172893534 | J63: -26.5634264 | K63: 25.38 | L63: 19.4 | M63: 25 | N63: 51.33 | O63: 99.38626856 | P63: 1.17 | Q63: LFA Loop | R63: Yes | T63: 37.86914282 | U63: 231.3 | V63: 230.2953143 | W63: 37.86914282 | X63: 0.9831724138
A64: W1JR 8 MOD | B64: 3.74481 | C64: 13.29 | D64: 3.07 | E64: 2.75 | F64: 19.14 | G64: 5.398665262 | H64: 653.6102037 | I64: -9.288154554 | J64: -27.67868742 | K64: 17.3 | L64: 12.8 | M64: 17.3 | N64: 50 | O64: 99.57201502 | P64: 1.14 | Q64: Dipole | R64: No | T64: 70.10010537 | U64: 256.7 | V64: 256.0800843 | W64: 70.10010537 | X64: 0.9817241379
A65: DJ9BV 1.8 | B65: 3.74481 | C65: 13.49 | D65: 3.16 | E65: 2.8 | F65: 19.43 | G65: 5.606326889 | H65: 682.9649824 | I65: -9.171449837 | J65: -27.56198271 | K65: 17.6 | L65: 13.4 | M65: 17.5 | N65: 77.5 | O65: 97.88881584 | P65: 1.34 | Q65: Dipole | R65: No | T65: 75.80404218 | U65: 261.2 | V65: 260.6432337 | W65: 75.80404218 | X65: 0.9810344828
A66: +PY1MHZ 8 | B66: 3.74 | C66: 13.28 | D66: 2.67 | E66: 2.629 | F66: 19.297 | G66: 4.62562227 | H66: 569.0901098 | I66: -8.590487219 | J66: -26.98102009 | K66: 29.31 | L66: 18.38 | M66: 26.86 | N66: 50.33 | O66: 94.81075118 | P66: 1.59 | Q66: Folded Dipole | R66: No | T66: 53.71125 | U66: 257.7 | V66: 242.969 | W66: 53.71125 | X66: 0.9843
A67: K1FO 10 | B67: 3.828028 | C67: 13.48 | D67: 3.1 | E67: 2.78 | F67: 19.42 | G67: 4.364718236 | H67: 659.8182534 | I67: -9.060045102 | J67: -27.45057797 | K67: 16.5 | L67: 14.5 | M67: 18.5 | N67: 29.4 | O67: 96.86870226 | P67: 1.43 | T67: 71.51732587 | U67: 257.7 | V67: 257.2138607 | W67: 71.51732587 | X67: 0.9851724138
A68: Vine 8 OWL | B68: 3.8488325 | C68: 13.33 | D68: 3 | E68: 2.63 | F68: 19.21 | G68: 8.756660746 | H68: 493.9441385 | I68: -8.066486881 | J68: -26.45701975 | K68: 24.2 | L68: 20.5 | M68: 22.3 | N68: 51.4 | O68: 99.67960128 | P68: 1.12 | Q68: Folded Dipole | R68: Yes | T68: 38.19715808 | U68: 232.3 | V68: 230.5577265 | W68: 38.19715808 | X68: 0.9706896552
A69: YU7EF EF0208 | B69: 3.8904415 | C69: 13.46 | D69: 3.04 | E69: 2.71 | F69: 19.38 | G69: 3.850454228 | H69: 558.8312718 | I69: -8.445975204 | J69: -26.83650807 | K69: 20 | L69: 15.1 | M69: 20.1 | N69: 48.5 | O69: 99.09707008 | P69: 1.21 | Q69: Dipole | R69: No | T69: 51.85534591 | U69: 242.12 | V69: 241.4842767 | W69: 51.85534591 | X69: 0.9868965517
A70: BQH8B | B70: 3.911246 | C70: 13.75 | D70: 3.28 | E70: 2.97 | F70: 19.77 | G70: 7.38330976 | H70: 671.1695103 | I70: -8.737513581 | J70: -27.12804645 | K70: 18 | L70: 12.6 | M70: 16.5 | N70: 50 | O70: 98.39629298 | P70: 1.29 | Q70: Dipole | R70: No | T70: 73.14798444 | U70: 259.3 | V70: 258.5183876 | W70: 73.14798444 | X70: 0.9751724138
A71: +UR5EAZ 9 | B71: 3.9320505 | C71: 13.47 | D71: 3.07 | E71: 2.75 | F71: 19.41 | G71: 3.645251397 | H71: 607.8683223 | I71: -8.752333544 | J71: -27.14286641 | K71: 18.5 | L71: 13.7 | M71: 17.8 | N71: 49.2 | O71: 99.99752481 | P71: 1.01 | Q71: Dipole | R71: No | T71: 61.49179469 | U71: 249.7 | V71: 249.1934358 | W71: 61.49179469 | X71: 0.9875862069
A72: G4CQM 8 | B72: 3.9736595 | C72: 13.67 | D72: 3.15 | E72: 2.83 | F72: 19.6 | G72: 5.191295191 | H72: 600.239821 | I72: -8.491215129 | J72: -26.881748 | K72: 19.5 | L72: 13.9 | M72: 18.5 | N72: 49.47 | O72: 99.72821814 | P72: 1.11 | Q72: Dipole | R72: No | T72: 59.6963847 | U72: 248.5 | V72: 247.7571078 | W72: 59.6963847 | X72: 0.9824137931
A73: G4CQM 9 UZ22 | B73: 3.9736595 | C73: 13.62 | D73: 3.09 | E73: 2.76 | F73: 19.54 | G73: 4.880785414 | H73: 545.0056101 | I73: -8.173305565 | J73: -26.56383844 | K73: 22.34 | L73: 15.13 | M73: 21.17 | N73: 48.12 | O73: 99.67960128 | P73: 1.12 | Q73: Dipole | R73: No | T73: 48.94810659 | U73: 240 | V73: 239.1584853 | W73: 48.94810659 | X73: 0.9834482759
A74: +G4CQM WA9C4X | B74: 3.97990085 | C74: 13.51 | D74: 2.97 | E74: 2.662 | F74: 19.4 | G74: 3.133495992 | H74: 500.6326246 | I74: -8.003205849 | J74: -26.39373872 | K74: 24.73 | L74: 19.1 | M74: 21.1 | N74: 50.2 | O74: 98.93623439 | P74: 1.23 | Q74: Dipole | R74: No | T74: 40.6064831 | U74: 233.1 | V74: 232.4851865 | W74: 40.6064831 | X74: 0.9893103448
A75: +KF2YN Boxkite9 | B75: 3.994464 | C75: 16.13 | D75: 4.45 | E75: 3.7 | F75: 22.1 | G75: 5.710267229 | H75: 470.6702707 | I75: -5.028576347 | J75: -23.41910922 | K75: 24.4 | L75: 21.5 | M75: 26.3 | N75: 49.2 | O75: 98.49184364 | P75: 1.28 | Q75: Dipole | R75: Yes | T75: 34.23874824 | U75: 228.6 | V75: 227.3909986 | W75: 34.23874824 | X75: 0.9806896552
A76: +CT1FFU 8 | B76: 4.036073 | C76: 13.43 | D76: 2.96 | E76: 2.62 | F76: 19.25 | G76: 2.929292929 | H76: 495.5227273 | I76: -8.115822497 | J76: -26.50635537 | K76: 23.6 | L76: 21.2 | M76: 21.6 | N76: 27.1 | O76: 99.9405116 | P76: 1.05 | Q76: Dipole | R76: No | T76: 39.64646465 | U76: 232.3 | V76: 231.7171717 | W76: 39.64646465 | X76: 0.99
A77: +InnoV 8 OWL G/T | B77: 4.04980397 | C77: 13.98 | D77: 3.244 | E77: 2.936 | F77: 19.93 | G77: 3.542757417 | H77: 552.8997818 | I77: -7.85796783 | J77: -26.2485007 | K77: 21.99 | L77: 15.1 | M77: 19.7 | N77: 48.85 | O77: 99.09707008 | P77: 1.21 | Q77: Folded Dipole | R77: Yes | T77: 50.7547993 | U77: 241.2 | V77: 240.6038394 | W77: 50.7547993 | X77: 0.9879310345
A78: G0KSC 8 OWL | B78: 4.0568775 | C78: 13.78 | D78: 3.13 | E78: 2.82 | F78: 19.7 | G78: 4.674141556 | H78: =T78/1000*H$8+(1-T78/1000)*D$8+290*(1/X78-1) -> 517.1175981 | I78: -7.809561037 | J78: -26.20009391 | K78: 25.5 | L78: 17.1 | M78: 22.1 | N78: 48.9 | O78: 98.67648211 | P78: 1.26 | Q78: Folded Dipole | R78: Yes | T78: 43.53100911 | U78: 235.7 | V78: 234.8248073 | W78: 43.53100911 | X78: 0.984137931
A79: +*InnoV 8 OWL G/T | B79: 4.0568775 | C79: 13.98 | D79: 3.229 | E79: 2.924 | F79: 19.96 | G79: 3.850454228 | H79: 561.9379804 | I79: =F79-10*LOG((T79/1000*H$8+(1-T79/1000)*D$8)+290*(10^(0.1*M$8)/X79-1))+10*LOG(1/X79) -> -7.887886241 | J79: =10*LOG(10^(F79/10)*5E-22/X79/1.380649E-23/2500/(T79/1000*H$8+(1-T79/1000)*D$8+290*(10^(M$8/10)/X79-1))) -> -26.27841911 | K79: 22 | L79: 15.1 | M79: 19.7 | N79: 48.9 | O79: 99.09707008 | P79: 1.21 | Q79: Folded Dipole | R79: Yes | T79: 52.46331237 | U79: 242.6 | V79: 241.9706499 | W79: 52.46331237 | X79: 0.9868965517
A80: RA3RF 9 | B80: 4.0693602 | C80: 13.96 | D80: 3.211 | E80: 2.902 | F80: 19.89 | G80: =290*(1/X80-1) -> 4.880785414 | H80: 548.2531119 | I80: -7.846725363 | J80: -26.23725823 | K80: 20.57 | L80: 15.92 | M80: 18.9 | N80: 48.88 | O80: =(1-((P80-1)/(P80+1))^2)*10^2 -> 99.88564494 | P80: 1.07 | Q80: Dipole | R80: No | T80: 49.58362553 | U80: 240.5 | V80: 239.6669004 | W80: 49.58362553 | X80: 0.9834482759
A81: InnoV 9 LFA-4 2022 | B81: 4.165 | C81: 13.81 | D81: 3.116 | E81: 2.801 | F81: 19.7 | G81: 5.884010653 | H81: 478.8987974 | I81: -7.493652359 | J81: -25.88418523 | K81: 26.79 | L81: 17.33 | M81: 24.82 | N81: 47.89 | O81: 98.93623439 | P81: 1.23 | Q81: LFA Loop | R81: Yes | T81: 35.81502676 | U81: 229.872 | V81: 228.6520214 | W81: 35.81502676 | X81: 0.9801137931
A82: *InnoV 9 LFA-4 2022 | B82: 4.165 | C82: 13.81 | D82: 2.742 | E82: 2.465 | F82: 19.3 | G82: 5.82364549 | H82: 401.4979893 | I82: -7.215296601 | J82: -25.60582947 | K82: 26.79 | L82: 17.33 | M82: 24.82 | N82: 47.89 | O82: 98.93623439 | P82: 1.23 | Q82: LFA Loop | R82: Yes | T82: 20.67991073 | U82: 217.99 | V82: 216.5439286 | W82: 20.67991073 | X82: 0.9803137931
A83: I0JXX 8JXX2 | B83: 4.244118 | C83: 14.26 | D83: 3.46 | E83: 3.17 | F83: 20.25 | G83: 8.385666134 | H83: 654.1434673 | I83: -8.141167767 | J83: -26.53170064 | K83: 19.5 | L83: 13.2 | M83: 17.5 | N83: 203.77 | O83: 93.42048894 | P83: 1.69 | Q83: T Match | R83: Yes | T83: 69.61992194 | U83: 256.66 | V83: 255.6959376 | W83: 69.61992194 | X83: 0.9718965517
A84: #I0JXX 8x8JXX2 XPOL H | B84: 4.244118 | C84: 14.18 | D84: 3.32 | E84: 3.32 | F84: 20.22 | G84: 7.520076414 | H84: 639.2344916 | I84: -8.090649989 | J84: -26.48118286 | K84: 18.98 | L84: 13.6 | M84: 16.4 | N84: 49.6 | O84: 81.63265306 | P84: 2.5 | Q84: HairPin | R84: Yes | S84: XPOL | T84: 66.87170552 | U84: 254.42 | V84: 253.4973644 | W84: 66.87170552 | X84: 0.9747241379
A85: #I0JXX 8x8JXX2 XPOL V | B85: 4.244118 | C85: 14.18 | D85: 3.32 | E85: 3.32 | F85: 20.22 | G85: 7.520076414 | H85: 586.2196201 | I85: -7.746215479 | J85: -26.13674835 | K85: 18.98 | L85: 13.6 | M85: 16.4 | N85: 49.69 | O85: 81.77272765 | P85: 2.49 | Q85: HairPin | R85: Yes | S85: XPOL | T85: 56.49697527 | U85: 246.33 | V85: 245.1975802 | W85: 56.49697527 | X85: 0.9747241379
A86: Antennas-Amplifiers +PA144-9-4.3AP | B86: 4.30029015 | C86: 13.82 | D86: 3.2 | E86: 2.5 | F86: 19.55 | G86: 5.625030758 | H86: 422.5550439 | I86: -7.16339942 | J86: -25.55393229 | K86: 26.3 | L86: 16.89 | M86: 23.37 | N86: 53.11 | O86: 99.85207101 | P86: 1.08 | Q86: HairPin | R86: No | T86: 24.83953291 | U86: 221.206 | V86: 219.8716263 | W86: 24.83953291 | X86: 0.9809724138
A87: Ant-Amp +PA144-XPOL-18-5AP Horiz | B87: 4.30029015 | C87: 13.82 | D87: 3.2 | E87: 2.5 | F87: 19.63 | G87: 5.644776298 | H87: 429.5841595 | I87: -7.146504809 | J87: -25.53703768 | K87: 26.3 | L87: 16.89 | M87: 23.37 | N87: 53.11 | O87: 99.85207101 | P87: 1.08 | Q87: HairPin | R87: No | S87: XPOL | T87: 26.21122958 | U87: 222.287 | V87: 220.9689837 | W87: 26.21122958 | X87: 0.9809068966
A88: Ant-Amp +PA144-XPOL-18-5AP Vert | B88: 4.30029015 | C88: 13.82 | D88: 3.2 | E88: 2.5 | F88: 19.58 | G88: 5.599053802 | H88: 394.0575302 | I88: -6.866937566 | J88: -25.25747044 | K88: 26.3 | L88: 16.89 | M88: 23.37 | N88: 53.11 | O88: 99.85207101 | P88: 1.08 | Q88: HairPin | R88: No | S88: XPOL | T88: 19.2678036 | U88: 216.827 | V88: 215.4142429 | W88: 19.2678036 | X88: 0.9810586207
A89: *InnoV/G0KSC 9 LFA3 2020 | B89: 4.30445105 | C89: 13.96 | D89: 3.179 | E89: 2.557 | F89: 19.68 | G89: 4.99456312 | H89: 448.1552027 | I89: -7.268096794 | J89: -25.65862966 | K89: 25.6 | L89: 16.3 | M89: 24.4 | N89: 47.646 | O89: 99.9405116 | P89: 1.05 | Q89: LFA Loop | R89: Yes | T89: 29.97272791 | U89: 225.096 | V89: 223.9781823 | W89: 29.97272791 | X89: 0.9830689655
A90: *DG0OPK 9 | B90: 4.3065315 | C90: 13.6 | D90: 2.95 | E90: 2.7 | F90: 19.45 | G90: 5.814280689 | H90: 484.9678597 | I90: -7.793589338 | J90: -26.18412221 | K90: 24.6 | L90: 16.4 | M90: 23.4 | N90: 28.4 | O90: 99.72821814 | P90: 1.11 | Q90: Dipole | R90: No | T90: 37.01635596 | U90: 230.8 | V90: 229.6130848 | W90: =(V90-200)*1.25 -> 37.01635596 | X90: 0.9803448276
A91: DG0OPK 9 | B91: 4.3065315 | C91: 13.6 | D91: 3.04 | E91: 2.72 | F91: 19.49 | G91: 5.814280689 | H91: 492.1349807 | I91: -7.810774921 | J91: -26.20130779 | K91: 24.6 | L91: 16.4 | M91: 23.4 | N91: 28.4 | O91: 99.72821814 | P91: 1.11 | Q91: Dipole | R91: No | T91: 38.41892367 | U91: 231.9 | V91: 230.7351389 | W91: 38.41892367 | X91: 0.9803448276
A92: +DG7YBN GTV 2-9n | B92: 4.3190142 | C92: 13.99 | D92: 3.211 | E92: 2.889 | F92: 19.9 | G92: 4.674141556 | H92: 517.7666433 | I92: -7.614480448 | J92: -26.00501332 | K92: 25.35 | L92: 17.1 | M92: 22.1 | N92: 51.67 | O92: 95.3479431 | P92: 1.55 | Q92: Bent Dipole | R92: No | T92: 43.65802383 | U92: 235.8 | V92: 234.9264191 | W92: 43.65802383 | X92: 0.984137931
A93: +7arrays GTV 2-9n XPOL H | B93: 4.327336 | C93: 13.97 | D93: 3.05 | E93: 3.05 | F93: 19.89 | G93: 4.674141556 | H93: 545.6755869 | I93: -7.830910652 | J93: -26.22144352 | K93: 25.2 | L93: 17.2 | M93: 22.6 | N93: 51.6 | O93: 95.21484375 | P93: 1.56 | Q93: Bent Dipole | R93: No | S93: XPOL | T93: 49.11965662 | U93: 240.1 | V93: 239.2957253 | W93: 49.11965662 | X93: 0.984137931
A94: +7arrays GTV 2-9n XPOL V | B94: 4.327336 | C94: 14 | D94: 3.05 | E94: 3.05 | F94: 19.89 | G94: 4.674141556 | H94: 545.6755869 | I94: -7.830910652 | J94: -26.22144352 | K94: 24.82 | L94: 17 | M94: 21.6 | N94: 53.22 | O94: 95.61155463 | P94: 1.53 | Q94: Bent Dipole | R94: No | S94: XPOL | T94: 49.11965662 | U94: 240.1 | V94: 239.2957253 | W94: 49.11965662 | X94: 0.984137931
A95: *InnoV/G0KSC 9 LFA3 2020 | B95: 4.3398187 | C95: 13.96 | D95: 3.179 | E95: 2.877 | F95: 19.88 | G95: 4.989389502 | H95: 490.9752622 | I95: -7.422464668 | J95: -25.81299754 | K95: 25.7 | L95: 16.1 | M95: 24.3 | N95: 49.6 | O95: 99.9405116 | P95: 1.05 | Q95: LFA Loop | R95: Yes | T95: 38.35339974 | U95: 231.686 | V95: 230.6827198 | W95: 38.35339974 | X95: 0.9830862069
A96: DK7ZB 8 | B96: 4.3481405 | C96: 14.16 | D96: 3.4 | E96: 3.1 | F96: 20.17 | G96: 4.880785414 | H96: 633.3376578 | I96: -8.139224234 | J96: -26.5297571 | K96: 21.6 | L96: 13 | M96: 17.6 | N96: 28 | O96: 98.67648211 | P96: 1.26 | Q96: Dipole | R96: No | T96: 66.2342216 | U96: 253.6 | V96: 252.9873773 | W96: 66.2342216 | X96: 0.9834482759
A97: G0KSC 9 OWA | B97: 4.3481405 | C97: 14.14 | D97: 3.33 | E97: 3.04 | F97: 20.11 | G97: 4.984216065 | H97: 590.4761049 | I97: -7.918863816 | J97: -26.30939669 | K97: 21.3 | L97: 15 | M97: 17.1 | N97: 49.1 | O97: 98.29867675 | P97: 1.3 | Q97: Dipole | R97: No | T97: 57.82620133 | U97: 247 | V97: 246.2609611 | W97: 57.82620133 | X97: 0.9831034483
A98: YU7XL TWB21810XL | B98: 4.368945 | C98: 15.54 | D98: 3.348 | E98: 4.269 | F98: 21.47 | G98: 3.624746875 | H98: 437.3223108 | I98: -5.401625441 | J98: -23.79215831 | K98: 24.66 | L98: 17.3 | M98: 20.2 | N98: 203.8 | O98: 99.85207101 | P98: 1.08 | Q98: Dipole | R98: Yes | T98: 28.12085399 | U98: 223.33 | V98: 222.4966832 | W98: 28.12085399 | X98: 0.9876551724
A99: *YU7XL TWB21810XL | B99: 4.368945 | C99: 15.54 | D99: 3.9 | E99: 4.4 | F99: 21.58 | G99: 3.624746875 | H99: 434.1533151 | I99: -5.263600206 | J99: -23.65413308 | K99: 24.66 | L99: 17.3 | M99: 20.2 | N99: 203.8 | O99: 99.85207101 | P99: 1.08 | Q99: Dipole | R99: Yes | T99: 27.50069828 | U99: 222.84 | V99: 222.0005586 | W99: 27.50069828 | X99: 0.9876551724
A100: +PY1MHZ 9 | B100: 4.388 | C100: 13.91 | D100: 3.163 | E100: 2.85 | F100: 19.825 | G100: 4.326601035 | H100: 495.1048885 | I100: -7.518937325 | J100: -25.9094702 | K100: 24.48 | L100: 16.68 | M100: 22.32 | N100: 49.94 | O100: 95.21484375 | P100: 1.56 | Q100: Folded Dipole | R100: Yes | T100: 39.29125 | U100: 246.5 | V100: 231.433 | W100: 39.29125 | X100: 0.9853
A101: +RA3AQ 9S | B101: 4.410554 | C101: 14.19 | D101: 3.35 | E101: 3.06 | F101: 20.17 | G101: 4.77742727 | H101: 587.2188048 | I101: -7.839695116 | J101: -26.23022799 | K101: 20.7 | L101: 14.5 | M101: 17.4 | N101: 47.1 | O101: 99.85207101 | P101: 1.08 | Q101: Dipole | R101: No | T101: 57.22923239 | U101: 246.5 | V101: 245.7833859 | W101: 57.22923239 | X101: 0.9837931034
A102: M2 9SSB | B102: 4.410554 | C102: 14.16 | D102: 3.33 | E102: 3.04 | F102: 20.12 | G102: 7.530602137 | H102: 578.5525808 | I102: -7.793922665 | J102: -26.18445554 | K102: 20.2 | L102: 14.7 | M102: 17.1 | N102: 200.6 | O102: 98.67648211 | P102: 1.26 | Q102: T Match | R102: Yes | T102: 54.99451638 | U102: 245.16 | V102: 243.9956131 | W102: 54.99451638 | X102: 0.9746896552
A103: Cushcraft LFA-2M9EL | B103: 4.410554 | C103: 13.89 | D103: 3.131 | E103: 2.825 | F103: 19.77 | G103: 5.29494382 | H103: 476.9955451 | I103: -7.415915009 | J103: -25.80644788 | K103: 25.6 | L103: 16.9 | M103: 24.6 | N103: 47.4 | O103: 99.85207101 | P103: 1.08 | Q103: LFA Loop | R103: Yes | T103: 35.55784761 | U103: 229.55 | V103: 228.4462781 | W103: 35.55784761 | X103: 0.9820689655
A104: InnoV 9LFA XPOL H | B104: 4.410554 | C104: 13.98 | D104: 2.9 | E104: 2.9 | F104: 19.82 | G104: 4.984216065 | H104: 493.6666082 | I104: -7.503865141 | J104: -25.89439801 | K104: 25.04 | L104: 16.7 | M104: 22.6 | N104: 50.9 | O104: 99.96155325 | P104: 1.04 | Q104: LFA Loop | R104: Yes | S104: XPOL | T104: 38.88109435 | U104: 232.1 | V104: 231.1048755 | W104: 38.88109435 | X104: 0.9831034483
A105: InnoV 9LFA XPOL V | B105: 4.410554 | C105: 13.98 | D105: 2.9 | E105: 2.9 | F105: 19.82 | G105: 4.984216065 | H105: 439.3493336 | I105: -7.0516451 | J105: -25.44217797 | K105: 25.1 | L105: 16.7 | M105: 22.7 | N105: 50.09 | O105: 99.9405116 | P105: 1.05 | Q105: LFA Loop | R105: Yes | S105: XPOL | T105: 28.25149071 | U105: 223.74 | V105: 222.6011926 | W105: 28.25149071 | X105: 0.9831034483
A106: #WiMo WX220 XPOL H | B106: 4.4313585 | C106: 13.36 | D106: 2.94 | E106: 2.94 | F106: 19.29 | G106: 1.973337037 | H106: 840.0312153 | I106: -10.19911243 | J106: -28.5896453 | K106: 14.43 | L106: 13.4 | M106: 17.6 | N106: 190.63 | O106: 99.91516637 | P106: 1.06 | Q106: Folded Dipole | R106: Yes | S106: XPOL | T106: 107.252031 | U106: 285.83 | V106: 285.8016248 | W106: 107.252031 | X106: 0.9932413793
A107: #WiMo WX220 XPOL V | B107: 4.4313585 | C107: 13.33 | D107: 2.94 | E107: 2.94 | F107: 19.27 | G107: 1.750503018 | H107: 850.6888833 | I107: -10.27363321 | J107: -28.66416608 | K107: 13.99 | L107: 13.5 | M107: 17.5 | N107: 170.284 | O107: 99.45130316 | P107: 1.16 | Q107: Folded Dipole | R107: Yes | S107: XPOL | T107: 109.3812877 | U107: 287.52 | V107: 287.5050302 | W107: 109.3812877 | X107: 0.994
A108: *WiMo WX220 XPOL H | B108: 4.4313585 | C108: 13.36 | D108: 3.4 | E108: 3.4 | F108: 19.57 | G108: 2.013888889 | H108: 908.0527778 | I108: -10.23664992 | J108: -28.62718279 | K108: 14.43 | L108: 13.4 | M108: 17.6 | N108: 190.63 | O108: 99.91516637 | P108: 1.06 | Q108: Folded Dipole | R108: Yes | S108: XPOL | T108: 120.5555556 | U108: 296.4 | V108: 296.4444444 | W108: 120.5555556 | X108: 0.9931034483
A109: *WiMo WX220 XPOL V | B109: 4.4313585 | C109: 13.33 | D109: 3.4 | E109: 3.4 | F109: 19.55 | G109: 1.750503018 | H109: 911.3508551 | I109: -10.27519251 | J109: -28.66572538 | K109: 13.99 | L109: 13.5 | M109: 17.5 | N109: 170.284 | O109: 99.45130316 | P109: 1.16 | Q109: Folded Dipole | R109: Yes | S109: XPOL | T109: 121.2525151 | U109: 296.96 | V109: 297.0020121 | W109: 121.2525151 | X109: 0.994
A110: Gulf Alpha 9 | B110: 4.4313585 | C110: 13.77 | D110: 3.26 | E110: 2.97 | F110: 19.79 | G110: 4.715447154 | H110: 715.031123 | I110: -9.008160107 | J110: -27.39869298 | K110: 18.91 | L110: 14.9 | M110: 12.8 | N110: 203.35 | O110: 99.51325041 | P110: 1.15 | Q110: T Match | R110: Yes | T110: 82.25355691 | U110: 266.19 | V110: 265.8028455 | W110: 82.25355691 | X110: 0.984
A111: Gulf Alpha 9XPOL H | B111: 4.4313585 | C111: 13.74 | D111: 3.12 | E111: 3.12 | F111: 19.78 | G111: 5.035958604 | H111: 732.5993159 | I111: -9.111673303 | J111: -27.50220617 | K111: 18.89 | L111: 14.9 | M111: 12.8 | N111: 203.19 | O111: 99.51325041 | P111: 1.15 | Q111: T Match | R111: Yes | S111: XPOL | T111: 85.62883705 | U111: 268.87 | V111: 268.5030696 | W111: 85.62883705 | X111: 0.9829310345
A112: Gulf Alpha 9XPOL V | B112: 4.4313585 | C112: 13.75 | D112: 3.12 | E112: 3.12 | F112: 19.79 | G112: 4.715447154 | H112: 661.347561 | I112: -8.694549384 | J112: -27.08508225 | K112: 18.9 | L112: 14.9 | M112: 12.8 | N112: 203.159 | O112: 99.51325041 | P112: 1.15 | Q112: T Match | R112: Yes | S112: XPOL | T112: 71.74796748 | U112: 257.92 | V112: 257.398374 | W112: 71.74796748 | X112: 0.984
A113: DJ9BV 2.1 | B113: 4.4313585 | C113: 14.04 | D113: 3.33 | E113: 3.04 | F113: 20.02 | G113: 5.918367347 | H113: 643.9719388 | I113: -8.341709752 | J113: -26.73224262 | K113: 20.2 | L113: 13.2 | M113: 17.4 | N113: 44.9 | O113: 98.29867675 | P113: 1.3 | Q113: Dipole | R113: No | T113: 68.1122449 | U113: 255.2 | V113: 254.4897959 | W113: 68.1122449 | X113: 0.98
A114: EAntenna 144LFA9 | B114: 4.446961875 | C114: 14.09 | D114: 3.227 | E114: 2.929 | F114: 19.98 | G114: 4.385326239 | H114: 519.2491161 | I114: -7.549543252 | J114: -25.94007612 | K114: 22.19 | L114: 16 | M114: 20.1 | N114: 51.26 | O114: 99.45130316 | P114: 1.16 | Q114: LFA Loop | R114: Yes | T114: 44.00465556 | U114: 236.02 | V114: 235.2037244 | W114: 44.00465556 | X114: 0.9851034483
A115: *G0KSC 9LFA | B115: 4.4492 | C115: 14.1 | D115: 3.1 | E115: 3 | F115: 19.99 | G115: 5.595936874 | H115: 516.6113845 | I115: -7.503474731 | J115: -25.8940076 | K115: 23.5 | L115: 16.2 | M115: 20.9 | N115: 50.5 | O115: 99.85207101 | P115: 1.08 | Q115: LFA Loop | R115: Yes | T115: 43.25155531 | U115: 235.65 | V115: 234.6012442 | W115: 43.25155531 | X115: 0.9810689655
A116: G0KSC 9LFA | B116: 4.452163 | C116: 14.1 | D116: 3.26 | E116: 2.94 | F116: 20.02 | G116: 5.595936874 | H116: 513.4211144 | I116: -7.449198735 | J116: -25.8397316 | K116: 23.5 | L116: 16.2 | M116: 20.9 | N116: 50.5 | O116: 99.85207101 | P116: 1.08 | Q116: LFA Loop | R116: Yes | T116: 42.6272363 | U116: 235.16 | V116: 234.101789 | W116: 42.6272363 | X116: 0.9810689655
A117: YU7EF EF0209V | B117: 4.48 | C117: 13.95 | D117: 3.163 | E117: 2.838 | F117: 19.84 | G117: 5.89442093 | H117: 470.9247264 | I117: -7.288257631 | J117: -25.6787905 | K117: 23.42 | L117: 18.96 | M117: 22.03 | N117: 48.1 | O117: 98.93623439 | P117: 1.23 | Q117: Bent Dipole | R117: Yes | T117: 34.25250595 | U117: 228.649 | V117: 227.4020048 | W117: 34.25250595 | X117: 0.9800793103
A118: *YU7EF EF0209V | B118: 4.48 | C118: 13.95 | D118: 3.05 | E118: 2.85 | F118: 19.81 | G118: 5.864233145 | H118: 470.5638817 | I118: -7.315677393 | J118: -25.70621026 | K118: 23.42 | L118: 18.96 | M118: 22.03 | N118: 48.1 | O118: 98.93623439 | P118: 1.23 | Q118: Bent Dipole | R118: Yes | T118: 34.18779815 | U118: 228.592 | V118: 227.3502385 | W118: 34.18779815 | X118: 0.9801793103
A119: *DG7YBN GTV2-9M | B119: 4.492 | C119: 13.983 | D119: 3.163 | E119: 2.851 | F119: 19.856 | G119: 4.356475842 | H119: 482.8452133 | I119: -7.389746517 | J119: -25.78027939 | K119: 26.18 | L119: 17.43 | M119: 20.76 | N119: 48.1 | O119: 98.85204082 | P119: 1.24 | Q119: Bent Dipole | R119: Yes | T119: 36.88625 | U119: 228.592 | V119: 229.509 | W119: 36.88625 | X119: 0.9852
A120: *OZ5HF 9 | B120: 4.493772 | C120: 13.67 | D120: 2.7 | E120: 2.5 | F120: 18.8 | G120: 2.929292929 | H120: 771.6691919 | I120: -10.33081367 | J120: -28.72134654 | K120: 18.2 | L120: 11.9 | M120: 16 | N120: 38 | O120: 99.51325041 | P120: 1.15 | T120: 93.68686869 | U120: 275.1 | V120: 274.9494949 | W120: 93.68686869 | X120: 0.99
A121: OZ5HF 9 | B121: 4.493772 | C121: 13.67 | D121: 3.21 | E121: 2.92 | F121: 19.62 | G121: 3.031358885 | H121: 755.6020906 | I121: -9.424186109 | J121: -27.81471898 | K121: 18.2 | L121: 11.9 | M121: 16 | N121: 38 | O121: 99.51325041 | P121: 1.15 | T121: 90.52264808 | U121: 272.6 | V121: 272.4181185 | W121: 90.52264808 | X121: 0.9896551724
A122: YU7EF EF0209 | B122: 4.493772 | C122: 13.99 | D122: 3.2 | E122: 2.89 | F122: 19.89 | G122: 5.398665262 | H122: 522.8313576 | I122: -7.65303841 | J122: -26.04357128 | K122: 22 | L122: 16.7 | M122: 19.8 | N122: 49.8 | O122: 99.38626856 | P122: 1.17 | Q122: Dipole | R122: No | T122: 44.50737619 | U122: 236.6 | V122: 235.6059009 | W122: 44.50737619 | X122: 0.9817241379
A123: F9FT 11 | B123: 4.5145765 | C123: 13.93 | D123: 3.26 | E123: 2.97 | F123: 19.9 | G123: 5.398665262 | H123: 616.5236653 | I123: -8.294924816 | J123: -26.68545769 | K123: 22.7 | L123: 13.4 | M123: 18.9 | N123: 21.5 | O123: 98.7654321 | P123: 1.25 | T123: 62.84246575 | U123: 251 | V123: 250.2739726 | W123: 62.84246575 | X123: 0.9817241379
A124: *CC 13B2 | B124: 4.5145765 | C124: 13.94 | D124: 2.9 | E124: 2.79 | F124: 19.62 | G124: 5.918367347 | H124: 604.2130102 | I124: -8.487662484 | J124: -26.87819535 | K124: 19.6 | L124: 13.2 | M124: 19 | N124: 21.1 | O124: 97.56271253 | P124: 1.37 | T124: 60.33163265 | U124: 249.1 | V124: 248.2653061 | W124: 60.33163265 | X124: 0.98
A125: CC 13B2 | B125: 4.5145765 | C125: 13.94 | D125: 3.33 | E125: 3.01 | F125: 19.93 | G125: 6.022527279 | H125: 661.6006688 | I125: -8.538355613 | J125: -26.92888848 | K125: 19.6 | L125: 13.2 | M125: 19 | N125: 21.1 | O125: 97.56271253 | P125: 1.37 | T125: 71.54171067 | U125: 257.9 | V125: 257.2333685 | W125: 71.54171067 | X125: 0.9796551724
A126: K1FO 11 | B126: 4.535381 | C126: 14.1 | D126: 3.3 | E126: 3 | F126: 20.05 | G126: 4.364718236 | H126: 596.9269776 | I126: -8.030364348 | J126: -26.42089722 | K126: 17.9 | L126: 14.6 | M126: 19.2 | N126: 44 | O126: 98.39629298 | P126: 1.29 | T126: 59.20983549 | U126: 248 | V126: 247.3678684 | W126: 59.20983549 | X126: 0.9851724138
A127: CC 215WB | B127: 4.5561855 | C127: 13.93 | D127: 3.36 | E127: 3.07 | F127: 19.93 | G127: 6.753705011 | H127: 718.6803105 | I127: -8.860900184 | J127: -27.25143305 | K127: 19.1 | L127: 12.7 | M127: 17.7 | N127: 17.4 | O127: 96.37922274 | P127: 1.47 | T127: 82.56880734 | U127: 266.6 | V127: 266.0550459 | W127: 82.56880734 | X127: 0.9772413793
A128: Vine 9 FD | B128: 4.618599 | C128: 14.08 | D128: 3.21 | E128: 2.91 | F128: 19.95 | G128: 9.71489665 | H128: 478.5011582 | I128: -7.190418953 | J128: -25.58095182 | K128: 23.9 | L128: 18.7 | M128: 21.5 | N128: 50 | O128: 99.88564494 | P128: 1.07 | Q128: Folded Dipole | R128: Yes | T128: 34.98752673 | U128: 230 | V128: 227.9900214 | W128: 34.98752673 | X128: 0.9675862069
A129: +G0KSC 9 OWL | B129: 4.743426 | C129: 14.3 | D129: 3.28 | E129: 2.97 | F129: 20.15 | G129: 6.544428773 | H129: 476.2548043 | I129: -7.013456327 | J129: -25.4039892 | K129: 24.3 | L129: 18.8 | M129: 22.3 | N129: 49 | O129: 99.17355372 | P129: 1.2 | Q129: Folded Dipole | R129: Yes | T129: 35.16837094 | U129: 229.5 | V129: 228.1346968 | W129: 35.16837094 | X129: 0.9779310345
A130: +KF2YN Boxkite 10 | B130: 4.7642305 | C130: 16.44 | D130: 4.49 | E130: 3.89 | F130: 22.4 | G130: 5.710267229 | H130: 453.0844321 | I130: -4.581012954 | J130: -22.97154582 | K130: 29.2 | L130: 21.2 | M130: 27 | N130: 49 | O130: 99.57201502 | P130: 1.14 | Q130: Dipole | R130: Yes | T130: 30.79729255 | U130: 225.9 | V130: 224.637834 | W130: 30.79729255 | X130: 0.9806896552
A131: G4CQM CQM12UX | B131: 4.826644 | C131: 14.09 | D131: 3.2 | E131: 2.89 | F131: 19.97 | G131: 4.055944056 | H131: 490.6837413 | I131: -7.34251299 | J131: -25.73304586 | K131: 23.3 | L131: 15.8 | M131: 20.9 | N131: 50.2 | O131: 99.91516637 | P131: 1.06 | Q131: Dipole | R131: No | T131: 38.47902098 | U131: 231.6 | V131: 230.7832168 | W131: 38.47902098 | X131: 0.9862068966
A132: *Flexa 224 | B132: 4.868253 | C132: 13.68 | D132: 3.5 | E132: 3.3 | F132: 19.79 | G132: 31.54463774 | H132: 667.7322405 | I132: -8.384933455 | J132: -26.77546632 | K132: 17.7 | L132: 12.7 | M132: 16.9 | N132: 234.5 | O132: 99.81456468 | P132: 1.09 | Q132: Folded Dipole | R132: Yes | T132: 67.74708469 | U132: 257.71 | V132: 254.1976677 | W132: 67.74708469 | X132: 0.9018965517
A133: Flexa 224 | B133: 4.868253 | C133: 13.68 | D133: 3.3 | E133: 3 | F133: 19.62 | G133: 30.83317438 | H133: 634.4549651 | I133: -8.360614981 | J133: -26.75114785 | K133: 17.7 | L133: 12.7 | M133: 16.9 | N133: 234.5 | O133: 99.81456468 | P133: 1.09 | Q133: Folded Dipole | R133: Yes | T133: 61.37412734 | U133: 253.03 | V133: 249.0993019 | W133: 61.37412734 | X133: 0.9038965517
A134: +RA3AQ 9 | B134: 4.8890575 | C134: 14.53 | D134: 3.4 | E134: 3.13 | F134: 20.46 | G134: 5.710267229 | H134: 507.79593 | I134: -6.964547805 | J134: -25.35508068 | K134: 22.1 | L134: 15.1 | M134: 18.8 | N134: 49.2 | O134: 99.77324263 | P134: 1.1 | Q134: Folded Dipole | R134: Yes | T134: 41.5040436 | U134: 234.3 | V134: 233.2032349 | W134: 41.5040436 | X134: 0.9806896552
A135: +G4CQM WAXXX10 | B135: 4.900916065 | C135: 14.28 | D135: 3.195 | E135: 2.903 | F135: 20.14 | G135: 2.623521225 | H135: 454.3557324 | I135: -6.892465224 | J135: -25.28299809 | K135: 24.42 | L135: 18.2 | M135: 21.5 | N135: 45.26 | O135: 98.7654321 | P135: 1.25 | Q135: Dipole | R135: No | T135: 31.65013918 | U135: 225.9 | V135: 225.3201113 | W135: 31.65013918 | X135: 0.9910344828
A136: +*InnoV 9 OWL G/T | B136: 4.9306665 | C136: 14.74 | D136: 3.58 | E136: 3.35 | F136: 20.74 | G136: 4.158796782 | H136: 551.5578437 | I136: -7.03010166 | J136: -25.42063453 | K136: 20.89 | L136: 14.8 | M136: 19.9 | N136: 48.67 | O136: 97.88881584 | P136: 1.34 | Q136: Folded Dipole | R136: Yes | T136: 50.37163344 | U136: 241 | V136: 240.2973068 | W136: 50.37163344 | X136: 0.985862069
A137: +InnoV 9 OWL G/T | B137: 4.9306665 | C137: 14.74 | D137: 3.54 | E137: 3.26 | F137: 20.7 | G137: 4.158796782 | H137: 543.1350122 | I137: -7.009416973 | J137: -25.39994984 | K137: 20.9 | L137: 14.8 | M137: 19.9 | N137: 48.7 | O137: 97.88881584 | P137: 1.34 | Q137: Folded Dipole | R137: Yes | T137: 48.72332984 | U137: 239.7 | V137: 238.9786639 | W137: 48.72332984 | X137: 0.985862069
A138: +WiMo WY209 | B138: 4.951471 | C138: 14.39 | D138: 3.5 | E138: 3.24 | F138: 20.44 | G138: 2.63370333 | H138: 689.9349142 | I138: -8.242864804 | J138: -26.63339767 | K138: 19.15 | L138: 11.5 | M138: 14.9 | N138: 209.7 | O138: 99.81456468 | P138: 1.09 | Q138: Folded Dipole | R138: Yes | T138: 77.74974773 | U138: 262.45 | V138: 262.1997982 | W138: 77.74974773 | X138: 0.991
A139: +*WiMo WY209 | B139: 4.951471 | C139: 14.39 | D139: 3.56 | E139: 3.22 | F139: 20.45 | G139: 2.63370333 | H139: 691.8685671 | I139: -8.244120882 | J139: -26.63465375 | K139: 19.2 | L139: 11.5 | M139: 14.9 | N139: 209.7 | O139: 99.81456468 | P139: 1.09 | Q139: Folded Dipole | R139: Yes | T139: 78.12815338 | U139: 262.75 | V139: 262.5025227 | W139: 78.12815338 | X139: 0.991
A140: +CT1FFU 9 | B140: 4.951471 | C140: 14.38 | D140: 3.26 | E140: 2.97 | F140: 20.23 | G140: 3.645251397 | H140: 459.7559358 | I140: -6.834739174 | J140: -25.22527204 | K140: 22.7 | L140: 20.2 | M140: 21.2 | N140: 28.1 | O140: 99.51325041 | P140: 1.15 | Q140: Dipole | R140: No | T140: 32.50698324 | U140: 226.8 | V140: 226.0055866 | W140: 32.50698324 | X140: 0.9875862069
A141: ZL1RS 9 | B141: 4.951471 | C141: 14.39 | D141: 3.3 | E141: 3.01 | F141: 20.28 | G141: 5.710267229 | H141: 461.5516878 | I141: -6.772688101 | J141: -25.16322097 | K141: 25.2 | L141: 18.7 | M141: 23.4 | N141: 48.7 | O141: 86.37761347 | P141: 2.17 | Q141: Dipole | R141: No | T141: 32.45428973 | U141: 227.2 | V141: 225.9634318 | W141: 32.45428973 | X141: 0.9806896552
A142: Eagle 10 | B142: 4.951471 | C142: 14.43 | D142: 3.44 | E142: 3.16 | F142: 20.42 | G142: 6.126760563 | H142: =T142/1000*H$8+(1-T142/1000)*D$8+290*(1/X142-1) -> 564.446743 | I142: -7.414992261 | J142: -25.80552513 | K142: 22 | L142: 15 | M142: 19.2 | N142: 23.6 | O142: 97.99406878 | P142: 1.33 | T142: 52.50880282 | U142: 243 | V142: 242.0070423 | W142: 52.50880282 | X142: 0.9793103448
A143: G4CQM CQM12UC | B143: 4.9722755 | C143: 14.3 | D143: 3.3 | E143: 3.01 | F143: 20.2 | G143: 5.29494382 | H143: 516.3455056 | I143: =F143-10*LOG((T143/1000*H$8+(1-T143/1000)*D$8)+290*(10^(0.1*M$8)/X143-1))+10*LOG(1/X143) -> -7.295450467 | J143: =10*LOG(10^(F143/10)*5E-22/X143/1.380649E-23/2500/(T143/1000*H$8+(1-T143/1000)*D$8+290*(10^(M$8/10)/X143-1))) -> -25.68598334 | K143: 21.4 | L143: 14.5 | M143: 19.8 | N143: 49.4 | O143: 99.97816011 | P143: 1.03 | Q143: Dipole | R143: No | T143: 43.25842697 | U143: 235.6 | V143: 234.6067416 | W143: 43.25842697 | X143: 0.9820689655
A144: DK7ZB 9 | B144: 4.9722755 | C144: 14.56 | D144: 3.56 | E144: 3.3 | F144: 20.6 | G144: =290*(1/X144-1) -> 6.335447498 | H144: 613.3922216 | I144: -7.562041446 | J144: -25.95257432 | K144: 20.4 | L144: 12.2 | M144: 16 | N144: 27.5 | O144: =(1-((P144-1)/(P144+1))^2)*10^2 -> 98.93623439 | P144: 1.23 | Q144: Dipole | R144: No | T144: 62.04633545 | U144: 250.5 | V144: 249.6370684 | W144: 62.04633545 | X144: 0.9786206897
A145: DG7YBN GTV 2-10LT | B145: 5.0554935 | C145: 14.42 | D145: 3.33 | E145: 3.041 | F145: 20.31 | G145: 8.756660746 | H145: 463.6744227 | I145: -6.720759933 | J145: -25.1112928 | K145: 26.26 | L145: 17.5 | M145: 23.9 | N145: 48.9 | O145: 97.88881584 | P145: 1.34 | Q145: Dipole | R145: No | T145: 32.27353464 | U145: 227.7 | V145: 225.8188277 | W145: 32.27353464 | X145: 0.9706896552
A146: +PY1MHZ 10 | B146: 5.07837845 | C146: 14.46 | D146: 3.44 | E146: 3.147 | F146: 20.42 | G146: 6.887796888 | H146: 511.7441344 | I146: -7.019307764 | J146: -25.40984063 | K146: 23.35 | L146: 16.66 | M146: 20.34 | N146: 50.14 | O146: 92.99307958 | P146: 1.72 | Q146: Folded Dipole | R146: Yes | T146: 42.04625 | U146: 218.295 | V146: 233.637 | W146: 42.04625 | X146: 0.9768
A147: *InnoV/G0KSC 9 OWL 2020 | B147: 5.07837845 | C147: 14.33 | D147: 3.28 | E147: 2.7 | F147: 20.04 | G147: 6.50992656 | H147: 403.0876925 | I147: -6.481529709 | J147: -24.87206258 | K147: 25.8 | L147: 19 | M147: 23.8 | N147: 50.6 | O147: 99.67960128 | P147: 1.12 | Q147: Folded Dipole | R147: Yes | T147: 20.85670567 | U147: 218.295 | V147: 216.6853645 | W147: 20.85670567 | X147: 0.9780448276
A148: *InnoV/G0KSC 9 OWL 2020 | B148: 5.07837845 | C148: 14.33 | D148: 3.28 | E148: 2.65 | F148: 20 | G148: 6.50992656 | H148: 397.5103153 | I148: -6.468432428 | J148: -24.8589653 | K148: 25.8 | L148: 19 | M148: 23.8 | N148: 50.6 | O148: 99.67960128 | P148: 1.12 | Q148: Folded Dipole | R148: Yes | T148: 19.76524241 | U148: 217.441 | V148: 215.8121939 | W148: 19.76524241 | X148: 0.9780448276
A149: Vine 10 OWL | B149: 5.0971025 | C149: 14.42 | D149: 3.35 | E149: 3.04 | F149: 20.32 | G149: 9.821746881 | H149: 456.6741533 | I149: -6.638140856 | J149: -25.02867373 | K149: 25 | L149: 18 | M149: 22.6 | N149: 47.6 | O149: 99.85207101 | P149: 1.08 | Q149: Folded Dipole | R149: Yes | T149: 30.69518717 | U149: 226.7 | V149: 224.5561497 | W149: 30.69518717 | X149: 0.9672413793
A150: DD0VF 9 | B150: 5.117907 | C150: 14.62 | D150: 3.48 | E150: 3.18 | F150: 20.59 | G150: 4.467787115 | H150: 517.8066352 | I150: -6.927531076 | J150: -25.31806395 | K150: 20.3 | L150: 15.8 | M150: 17.5 | N150: 25 | O150: 99.45130316 | P150: 1.16 | Q150: Dipole | R150: No | T150: 43.70623249 | U150: 235.8 | V150: 234.964986 | W150: 43.70623249 | X150: 0.9848275862
A151: *InnoV/G0KSC 10 LFA3 2020 | B151: 5.1719987 | C151: 14.57 | D151: 3.366 | E151: 3.086 | F151: 20.47 | G151: 4.989389502 | H151: 454.4988833 | I151: -6.532512176 | J151: -24.92304505 | K151: 25.7 | L151: 15.9 | M151: 22.2 | N151: 49.01 | O151: 99.88564494 | P151: 1.07 | Q151: LFA Loop | R151: Yes | T151: 31.21516512 | U151: 226.072 | V151: 224.9721321 | W151: 31.21516512 | X151: 0.9830862069
A152: +YU7EF EF0210LT | B152: 5.1803205 | C152: 13.99 | D152: 3.131 | E152: 2.813 | F152: 19.84 | G152: 5.398665262 | H152: 441.5012294 | I152: -7.045070813 | J152: -25.43560368 | K152: 29.4 | L152: 22.8 | M152: 25.3 | N152: 45.7 | O152: 99.62749895 | P152: 1.13 | Q152: Dipole | R152: No | T152: 28.59149982 | U152: 224.1 | V152: 222.8731999 | W152: 28.59149982 | X152: 0.9817241379
A153: K5GW 10 | B153: 5.1803205 | C153: 14.58 | D153: 3.42 | E153: 3.13 | F153: 20.5 | G153: 6.638566541 | H153: 505.4945637 | I153: -6.894517615 | J153: -25.28505049 | K153: 21.33 | L153: 16 | M153: 20.6 | N153: 202.6 | O153: 96.37922274 | P153: 1.47 | Q153: T Match | R153: Yes | T153: 40.8720151 | U153: 233.98 | V153: 232.6976121 | W153: 40.8720151 | X153: 0.9776206897
A154: +PY1MHZ 11 | B154: 5.18989057 | C154: 14.7 | D154: 3.478 | E154: 3.195 | F154: 20.64 | G154: 3.542757417 | H154: 504.6475144 | I154: -6.788999031 | J154: -25.1795319 | K154: 21.7 | L154: 16.5 | M154: 17.7 | N154: 49.5 | O154: 98.7654321 | P154: 1.25 | Q154: Folded Dipole | T154: 41.31208551 | U154: 233.737 | V154: 233.0496684 | W154: 41.31208551 | X154: 0.9879310345
A155: +I5MZY 9 | B155: 5.19904455 | C155: 14.94 | D155: 3.751 | E155: 3.498 | F155: 21.04 | G155: 6.024611226 | H155: 601.3872577 | I155: -7.047601709 | J155: -25.43813458 | K155: 17.25 | L155: 13.88 | M155: 15.78 | N155: 186.3 | O155: 70.70111943 | P155: 3.36 | Q155: Bent Dipole | R155: No | T155: 59.75785644 | U155: 248.665 | V155: 247.8062852 | W155: 59.75785644 | X155: 0.9796482759
A156: G4CQM 9 | B156: 5.242734 | C156: 14.78 | D156: 3.62 | E156: 3.35 | F156: 20.83 | G156: 7.488503714 | H156: 573.5722055 | I156: -7.050266397 | J156: -25.44079927 | K156: 22.2 | L156: 13.1 | M156: 17.6 | N156: 46.4 | O156: 88.59260559 | P156: 2.02 | Q156: Dipole | R156: No | T156: 54.02812168 | U156: 244.4 | V156: 243.2224973 | W156: 54.02812168 | X156: 0.9748275862
A157: +G0KSC 10 LFA | B157: 5.2635385 | C157: 14.76 | D157: 3.48 | E157: 3.18 | F157: 20.69 | G157: 2.623521225 | H157: 479.4923452 | I157: -6.551603927 | J157: -24.9421368 | K157: 24.3 | L157: 16 | M157: 22.8 | N157: 48.5 | O157: 99.9405116 | P157: 1.05 | Q157: LFA Loop | T157: 36.56924148 | U157: 229.8 | V157: 229.2553932 | W157: 36.56924148 | X157: 0.9910344828
A158: +*G0KSC 10 LFA | B158: 5.2635385 | C158: 14.76 | D158: 3.4 | E158: 3.1 | F158: 20.63 | G158: 2.52173913 | H158: 469.8609565 | I158: -6.534007725 | J158: -24.9245406 | K158: 24.3 | L158: 16 | M158: 22.8 | N158: 48.5 | O158: 99.9405116 | P158: 1.05 | Q158: LFA Loop | T158: 34.70434783 | U158: 228.3 | V158: 227.7634783 | W158: 34.70434783 | X158: 0.9913793103
A159: K1FO 12 | B159: 5.2635385 | C159: 14.63 | D159: 3.46 | E159: 3.18 | F159: 20.57 | G159: 4.364718236 | H159: 549.5964298 | I159: -7.183285109 | J159: -25.57381798 | K159: 21.6 | L159: 14.7 | M159: 19.6 | N159: 203.26 | O159: 98.85204082 | P159: 1.24 | Q159: T Match | R159: Yes | T159: 49.94749737 | U159: 240.7 | V159: 239.9579979 | W159: 49.94749737 | X159: 0.9851724138
A160: Directive DSEFO144-12 | B160: 5.2635385 | C160: 14.63 | D160: 3.46 | E160: 3.18 | F160: 20.57 | G160: 4.364718236 | H160: 549.5964298 | I160: -7.183285109 | J160: -25.57381798 | K160: 21.6 | L160: 14.7 | M160: 19.6 | N160: 203.26 | O160: 98.85204082 | P160: 1.24 | Q160: T Match | R160: Yes | T160: 49.94749737 | U160: 240.7 | V160: 239.9579979 | W160: =(V160-200)*1.25 -> 49.94749737 | X160: 0.9851724138
A161: Directive DSEFO144XPOL-12H | B161: 5.2635385 | C161: 14.63 | D161: 3.32 | E161: 3.32 | F161: 20.57 | G161: 3.850454228 | H161: 557.6662561 | I161: -7.247729981 | J161: -25.63826285 | K161: 21.6 | L161: 14.7 | M161: 19.6 | N161: 203.3 | O161: 98.85204082 | P161: 1.24 | Q161: T Match | R161: Yes | S161: XPOL | T161: 51.62735849 | U161: 241.94 | V161: 241.3018868 | W161: 51.62735849 | X161: 0.9868965517
A162: Directive DSEFO144XPOL-12V | B162: 5.2635385 | C162: 14.63 | D162: 3.32 | E162: 3.32 | F162: 20.57 | G162: 4.210250131 | H162: 512.0243353 | I162: -6.906935312 | J162: -25.29746818 | K162: 21.6 | L162: 14.7 | M162: 19.6 | N162: 203.3 | O162: 98.85204082 | P162: 1.24 | Q162: T Match | R162: Yes | T162: 42.62506559 | U162: 234.9 | V162: 234.1000525 | W162: 42.62506559 | X162: 0.9856896552
A163: *YU7EF EF0210 | B163: 5.3883655 | C163: 14.59 | D163: 3.38 | E163: 3.09 | F163: 20.48 | G163: 7.06817379 | H163: 462.99426 | I163: -6.567027629 | J163: -24.9575605 | K163: 23.8 | L163: 17.2 | M163: 23.1 | N163: 50.3 | O163: 99.91516637 | P163: 1.06 | Q163: Dipole | R163: No | T163: 32.47085835 | U163: 227.5 | V163: 225.9766867 | W163: 32.47085835 | X163: 0.9762068966
A164: YU7EF EF0210 | B164: 5.3883655 | C164: 14.59 | D164: 3.39 | E164: 3.1 | F164: 20.49 | G164: 7.06817379 | H164: 464.9572148 | I164: -6.573422715 | J164: -24.96395559 | K164: 23.8 | L164: 17.2 | M164: 23.1 | N164: 50.3 | O164: 99.91516637 | P164: 1.06 | Q164: Dipole | R164: No | T164: 32.85499823 | U164: 227.8 | V164: 226.2839986 | W164: 32.85499823 | X164: 0.9762068966
A165: Gulf Alpha 11 | B165: 5.40917 | C165: 14.48 | D165: 3.46 | E165: 3.19 | F165: 20.47 | G165: 5.346795435 | H165: 602.595079 | I165: -7.634688794 | J165: -26.02522166 | K165: 17.59 | L165: 13.5 | M165: 16.9 | N165: 187.921 | O165: 99.85207101 | P165: 1.08 | Q165: T Match | R165: Yes | T165: 60.12686567 | U165: 248.86 | V165: 248.1014925 | W165: 60.12686567 | X165: 0.9818965517
A166: Gulf Alpha 11 XPOL H | B166: 5.40917 | C166: 14.48 | D166: 3.32 | E166: 3.32 | F166: 20.46 | G166: 5.346795435 | H166: 614.6948771 | I166: -7.723792729 | J166: -26.1143256 | K166: 17.55 | L166: 13.5 | M166: 16.9 | N166: 187.8 | O166: 99.88564494 | P166: 1.07 | Q166: T Match | R166: Yes | S166: XPOL | T166: 62.49473222 | U166: 250.72 | V166: 249.9957858 | W166: 62.49473222 | X166: 0.9818965517
A167: Gulf Alpha 11 XPOL V | B167: 5.40917 | C167: 14.48 | D167: 3.32 | E167: 3.32 | F167: 20.45 | G167: 5.346795435 | H167: 567.466633 | I167: -7.416514776 | J167: -25.80704765 | K167: 17.53 | L167: 13.5 | M167: 16.9 | N167: 187.673 | O167: 99.88564494 | P167: 1.07 | Q167: T Match | R167: Yes | S167: XPOL | T167: 53.2524144 | U167: 243.46 | V167: 242.6019315 | W167: 53.2524144 | X167: 0.9818965517
A168: +G0KSC 10LFA+2 | B168: 5.40917 | C168: 14.6 | D168: 3.39 | E168: 3.09 | F168: 20.5 | G168: 4.158796782 | H168: 458.9066981 | I168: -6.550802097 | J168: -24.94133497 | K168: 23.8 | L168: 18.9 | M168: 22.6 | N168: 47.4 | O168: 98.85204082 | P168: 1.24 | Q168: LFA Loop | R168: Yes | T168: 32.24029381 | U168: 226.7 | V168: 225.792235 | W168: 32.24029381 | X168: 0.985862069
A169: +YU7XL 17 twin Bm | B169: 5.450779 | C169: 15.85 | D169: 3.75 | E169: 4.21 | F169: 21.78 | G169: 2.623521225 | H169: 542.3983299 | I169: -5.944692055 | J169: -24.33522493 | K169: 24.06 | L169: 16.3 | M169: 22.2 | N169: 191.718 | O169: 99.88564494 | P169: 1.07 | Q169: Horiz Dipole | R169: Yes | T169: 48.8796103 | U169: 239.56 | V169: 239.1036882 | W169: 48.8796103 | X169: 0.9910344828
A170: +G0KSC 10 OWL | B170: 5.4715835 | C170: 14.61 | D170: 3.4 | E170: 3.1 | F170: 20.51 | G170: 7.38330976 | H170: 443.8802157 | I170: -6.36997236 | J170: -24.76050523 | K170: 26.4 | L170: 19.1 | M170: 26.2 | N170: 48.2 | O170: 99.72821814 | P170: 1.11 | Q170: Folded Dipole | R170: Yes | T170: 28.66867044 | U170: 224.6 | V170: 222.9349364 | W170: 28.66867044 | X170: 0.9751724138
A171: I0JXX 12JXX2 | B171: 5.575606 | C171: 14.82 | D171: 3.58 | E171: 3.3 | F171: 20.79 | G171: 7.06817379 | H171: 531.6976775 | I171: -6.796943772 | J171: -25.18747664 | K171: 25.2 | L171: 17 | M171: 26.9 | N171: 26.9 | O171: 98.19905924 | P171: 1.31 | Q171: T Match | T171: 45.91575415 | U171: 238 | V171: 236.7326033 | W171: 45.91575415 | X171: 0.9762068966
A172: Antenna-Amplifiers +PA144-10-6AGP | B172: 5.6796285 | C172: 15.08 | D172: 3.5 | E172: 2.9 | F172: 20.56 | G172: 7.836172398 | H172: 396.0019381 | I172: -5.876980196 | J172: -24.26751307 | K172: 29.06 | L172: 17.75 | M172: 26.21 | N172: 49.9 | O172: 99.31823921 | P172: 1.18 | Q172: HairPin | R172: No | T172: 19.21052166 | U172: 217.332 | V172: 215.3684173 | W172: 19.21052166 | X172: 0.9736896552
A173: BQH 12J | B173: 5.82526 | C173: 14.95 | D173: 3.67 | E173: 3.4 | F173: 20.98 | G173: 4.364718236 | H173: 585.2564316 | I173: -7.021973576 | J173: -25.41250645 | K173: 20.3 | L173: 13.5 | M173: 17.2 | N173: 50 | O173: 99.99752481 | P173: 1.01 | Q173: Dipole | R173: No | T173: 56.9259713 | U173: 246.2 | V173: 245.540777 | W173: 56.9259713 | X173: 0.9851724138
A174: +*InnoV 10 OWL G/T | B174: 5.82526 | C174: 15.25 | D174: 3.686 | E174: 3.432 | F174: 21.2 | G174: 4.364718236 | H174: 482.1666083 | I174: -6.040159422 | J174: -24.43069229 | K174: 23.6 | L174: 15.1 | M174: 21.1 | N174: 48 | O174: 98.67648211 | P174: 1.26 | Q174: Folded Dipole | R174: Yes | T174: 36.75183759 | U174: 230.3 | V174: 229.4014701 | W174: 36.75183759 | X174: 0.9851724138
A175: +InnoV 10 OWL G/T | B175: 5.8294209 | C175: 15.25 | D175: 3.706 | E175: 3.44 | F175: 21.21 | G175: 4.364718236 | H175: 484.1116993 | I175: -6.045842675 | J175: -24.43637555 | K175: 23.61 | L175: 15.1 | M175: 21.1 | N175: 48 | O175: 98.67648211 | P175: 1.26 | Q175: Folded Dipole | R175: Yes | T175: 37.13248162 | U175: 230.6 | V175: 229.7059853 | W175: 37.13248162 | X175: 0.9851724138
A176: +CT1FFU 10 | B176: 5.866869 | C176: 14.89 | D176: 3.44 | E176: 3.15 | F176: 20.74 | G176: 4.158796782 | H176: 416.7925411 | I176: -5.939808861 | J176: -24.33034173 | K176: 25.3 | L176: 20 | M176: 23.3 | N176: 27.97 | O176: 99.2473051 | P176: 1.19 | Q176: Dipole | R176: No | T176: 23.9987758 | U176: 220.2 | V176: 219.1990206 | W176: 23.9987758 | X176: 0.985862069
A177: +CT1FFU 10C | B177: 5.866869 | C177: 15.19 | D177: 3.62 | E177: 3.31 | F177: 21.08 | G177: 4.261721484 | H177: 434.2369227 | I177: -5.755995742 | J177: -24.14652861 | K177: 27.2 | L177: 17.6 | M177: 21.9 | N177: 27.2 | O177: 98.93623439 | P177: 1.23 | Q177: Dipole | R177: No | T177: 27.39240728 | U177: 222.9 | V177: 221.9139258 | W177: 27.39240728 | X177: 0.9855172414
A178: M2 12 | B178: 5.908478 | C178: 14.84 | D178: 3.48 | E178: 3.2 | F178: 20.7 | G178: 4.436858873 | H178: 491.8068743 | I178: -6.61638315 | J178: -25.00691602 | K178: 19.9 | L178: 15.1 | M178: 18.3 | N178: 195.86 | O178: 99.62749895 | P178: 1.13 | Q178: T Match | R178: Yes | T178: 38.62426916 | U178: 231.79 | V178: 230.8994153 | W178: 38.62426916 | X178: 0.9849310345
A179: +KF2YN Boxkite12 | B179: 5.908478 | C179: 17.05 | D179: 6 | E179: 4.4 | F179: 22.99 | G179: 6.022527279 | H179: 462.7360524 | I179: -4.068529516 | J179: -22.45906239 | K179: 25.2 | L179: 20 | M179: 27 | N179: 48.5 | O179: 99.01793686 | P179: 1.22 | Q179: Dipole | R179: Yes | T179: 32.624956 | U179: 227.4 | V179: 226.0999648 | W179: 32.624956 | X179: 0.9796551724
A180: +7arrays GTV2-11LT | B180: 5.9292825 | C180: 15.06 | D180: 3.537 | E180: 3.261 | F180: 20.95 | G180: 4.77742727 | H180: 428.7962671 | I180: -5.830742578 | J180: -24.22127545 | K180: 28.91 | L180: 16.67 | M180: 23.44 | N180: 47.37 | O180: 98.67648211 | P180: 1.26 | Q180: Bent Dipole | R180: No | T180: 26.22677883 | U180: 222.1 | V180: 220.9814231 | W180: 26.22677883 | X180: 0.9837931034
A181: *4Y3i 12 | B181: 5.945 | C181: 14.93 | D181: 3.578 | E181: 3.33 | F181: 20.94 | G181: =290*(1/X181-1) -> 2.870127247 | H181: 522.2260897 | I181: -6.632243423 | J181: -25.02277629 | K181: 20.5 | L181: 13.84 | M181: 16.38 | N181: 50.79 | O181: 99.38626856 | P181: 1.17 | Q181: Dipole | R181: No | T181: 44.88375 | U181: 232.5 | V181: 235.907 | W181: 44.88375 | X181: 0.9902
A182: BQH 10 | B182: 5.950087 | C182: 15.2 | D182: 3.69 | E182: 3.43 | F182: 20.94 | G182: 7.161594426 | H182: 495.6723194 | I182: -6.370988098 | J182: -24.76152097 | K182: 23.9 | L182: 14.4 | M182: 20.6 | N182: 22.6 | O182: 96.37922274 | P182: 1.47 | Q182: Dipole | R182: No | T182: 38.8475 | U182: 232.5 | V182: 231.078 | W182: 38.8475 | X182: 0.9759
A183: +PY1MHZ 11 | B183: 5.96 | C183: 15.06 | D183: 3.598 | E183: 3.33 | F183: 20.97 | G183: 6.281160605 | H183: 451.4590856 | I183: -5.989663089 | J183: -24.38019596 | K183: 25.3 | L183: 17.7 | M183: 21.1 | N183: 49.2 | O183: 96.98791066 | P183: 1.42 | Q183: Folded Dipole | R183: Yes | T183: 30.3675 | U183: 223.88 | V183: 224.294 | W183: 30.3675 | X183: 0.9788
A184: WB9UWA 12 | B184: 5.9708915 | C184: 14.88 | D184: 3.48 | E184: 3.2 | F184: 20.76 | G184: 6.931822194 | H184: 439.3701629 | I184: -6.086468223 | J184: -24.47700109 | K184: 24.2 | L184: 19.6 | M184: 22 | N184: 200.1 | O184: 96.50340406 | P184: 1.46 | Q184: T Match | R184: Yes | T184: 27.87443067 | U184: 223.88 | V184: 222.2995445 | W184: 27.87443067 | X184: 0.9766551724
A185: DK7ZB 10 | B185: 5.9708915 | C185: 15.32 | D185: 3.89 | E185: 3.64 | F185: 21.35 | G185: 5.191295191 | H185: 607.391848 | I185: -6.788316031 | J185: -25.1788489 | K185: 20.5 | L185: 12.66 | M185: 16.58 | N185: 26.44 | O185: 94.81075118 | P185: 1.59 | Q185: Dipole | R185: No | T185: 61.0959986 | U185: 249.6 | V185: 248.8767989 | W185: 61.0959986 | X185: 0.9824137931
A186: IZ7NLJ 11 | B186: 5.9708915 | C186: 15.05 | D186: 3.557 | E186: 3.295 | F186: 20.98 | G186: 3.647302006 | H186: 437.6416041 | I186: -5.89414299 | J186: -24.28467586 | K186: 22.29 | L186: 16.47 | M186: 19.37 | N186: 45.46 | O186: 99.09707008 | P186: 1.21 | Q186: Dipole | R186: Yes | T186: 28.17892408 | U186: 223.381 | V186: 222.5431393 | W186: 28.17892408 | X186: 0.9875793103
A187: Vine 11 FD | B187: 5.9708915 | C187: 14.93 | D187: 3.6 | E187: 3.21 | F187: 20.82 | G187: 10.35714286 | H187: 412.1383929 | I187: -5.737072282 | J187: -24.12760515 | K187: 27.9 | L187: 19.7 | M187: 24 | N187: 48.4 | O187: 99.81456468 | P187: 1.09 | Q187: Folded Dipole | R187: Yes | T187: 21.875 | U187: 220 | V187: 217.5 | W187: 21.875 | X187: 0.9655172414
A188: +YU7EF EF0211B | B188: 5.9708915 | C188: 15.07 | D188: 3.58 | E188: 3.3 | F188: 21 | G188: 4.77742727 | H188: 451.5208114 | I188: -5.979862618 | J188: -24.37039549 | K188: 25.6 | L188: 16.7 | M188: 20.1 | N188: 50.2 | O188: 97.78180172 | P188: 1.35 | Q188: Dipole | R188: No | T188: 30.67385209 | U188: 225.6 | V188: 224.5390817 | W188: 30.67385209 | X188: 0.9837931034
A189: +I5MZY 13 Rev2 | B189: 5.991696 | C189: 15.43 | D189: 3.89 | E189: 3.65 | F189: 21.46 | G189: 5.707147956 | H189: 562.0125548 | I189: -6.363517491 | J189: -24.75405036 | K189: 19.8 | L189: 15.4 | M189: 17.8 | N189: 205.1 | O189: 78.08963332 | P189: 2.76 | Q189: Folded Dipole | R189: Yes | T189: 52.11456103 | U189: 242.624 | V189: 241.6916488 | W189: 52.11456103 | X189: 0.9807
A190: I5MZY 13 | B190: 5.991696 | C190: 15.36 | D190: 3.82 | E190: 3.56 | F190: 21.36 | G190: 8.015591779 | H190: 532.2163802 | I190: -6.218264964 | J190: -24.60879783 | K190: 22.8 | L190: 15.1 | M190: 17.8 | N190: 57.2 | O190: 82.33564377 | P190: 2.45 | Q190: Dipole | R190: No | T190: 45.83185684 | U190: 238.1 | V190: 236.6654855 | W190: 45.83185684 | X190: 0.9731034483
A191: +YU7XL 11 Hybrid | B191: 5.991696 | C191: 15.25 | D191: 3.64 | E191: 3.42 | F191: 21.19 | G191: 4.622525836 | H191: 443.4739884 | I191: -5.722421606 | J191: -24.11295448 | K191: 26.2 | L191: 17.3 | M191: 20.7 | N191: 195.6 | O191: 99.31823921 | P191: 1.18 | Q191: Horiz Dipole | R191: Yes | T191: 29.12944474 | U191: 224.35 | V191: 223.3035558 | W191: 29.12944474 | X191: 0.9843103448
A192: +*YU7XL 11 Hybrid | B192: 5.991696 | C192: 15.25 | D192: 3.77 | E192: 3.56 | F192: 21.23 | G192: 4.922148969 | H192: 458.410879 | I192: -5.806574118 | J192: -24.19710699 | K192: 26.2 | L192: 17.3 | M192: 20.7 | N192: 195.6 | O192: 99.31823921 | P192: 1.18 | Q192: Horiz Dipole | R192: Yes | T192: 31.99388063 | U192: 226.67 | V192: 225.5951045 | W192: 31.99388063 | X192: 0.9833103448
A193: +InnoV 10 OWL G/T-2 2020 | B193: 5.9958569 | C193: 15.37 | D193: 3.706 | E193: 3.449 | F193: 21.29 | G193: 5.01525941 | H193: 442.5840539 | I193: -5.609529586 | J193: -24.00006246 | K193: 24.55 | L193: 17.4 | M193: 21.7 | N193: 46.66 | O193: 79.56464628 | P193: 2.65 | Q193: Folded Dipole | R193: Yes | T193: 28.87843337 | U193: 224.24 | V193: 223.1027467 | W193: 28.87843337 | X193: 0.983
A194: +*InnoV 10 OWL G/T-2 2020 | B194: 5.9958569 | C194: 15.37 | D194: 3.706 | E194: 3.431 | F194: 21.29 | G194: 4.416243655 | H194: 430.4408122 | I194: -5.510179235 | J194: -23.9007121 | K194: 24.55 | L194: 17.4 | M194: 21.7 | N194: 46.66 | O194: 79.56464628 | P194: 2.65 | Q194: Folded Dipole | R194: Yes | T194: 26.61928934 | U194: 222.326 | V194: 221.2954315 | W194: 26.61928934 | X194: 0.985
A195: K1FO 13 | B195: 6.0125005 | C195: 15.07 | D195: 3.64 | E195: 3.39 | F195: 21.03 | G195: 4.674141556 | H195: 539.8341801 | I195: -6.64850878 | J195: -25.03904165 | K195: 19.7 | L195: 14.5 | M195: 19.4 | N195: 24.7 | O195: 97.450745 | P195: 1.38 | Q195: T Match | T195: 47.97652418 | U195: 239.2 | V195: 238.3812193 | W195: 47.97652418 | X195: 0.984137931
A196: YU7XL TWB22205 | B196: 6.033305 | C196: 16.36 | D196: 4.2 | E196: 5.5 | F196: 22.41 | G196: 6.172646466 | H196: 343.7239304 | I196: -3.514275933 | J196: -21.9048088 | K196: 26.06 | L196: 20.2 | M196: 22.4 | N196: 198.2 | O196: 99.99019704 | P196: 1.02 | Q196: Dbl Quad | R196: Yes | T196: 9.305535012 | U196: 209.165 | V196: 207.444428 | W196: 9.305535012 | X196: 0.9791586207
A197: BQH 13X (1995) | B197: 6.0499486 | C197: 15.17 | D197: 3.73 | E197: 3.48 | F197: 21.18 | G197: 6.628103837 | H197: 533.5910165 | I197: -6.426739871 | J197: -24.81727274 | K197: 23.68 | L197: 14.4 | M197: 18.9 | N197: 205 | O197: 97.99406878 | P197: 1.33 | Q197: T Match | R197: Yes | T197: 46.37238995 | U197: 238.28 | V197: 237.097912 | W197: 46.37238995 | X197: 0.9776551724
A198: *InnoV/G0KSC 11 LFA3 2020 | B198: 6.08490016 | C198: 15.19 | D198: 3.62 | E198: 3.348 | F198: 21.1 | G198: 5.900667448 | H198: 430.0189072 | I198: -5.677067405 | J198: -24.06760028 | K198: 27.47 | L198: 15.3 | M198: 22.5 | N198: 50.8 | O198: 99.9405116 | P198: 1.05 | Q198: LFA Loop | R198: Yes | T198: 26.24623087 | U198: 222.373 | V198: 220.9969847 | W198: 26.24623087 | X198: 0.9800586207
A199: +DK7ZB 11 OWL | B199: 6.0957185 | C199: 15.23 | D199: 3.68 | E199: 3.42 | F199: 21.16 | G199: 6.439901304 | H199: 486.083583 | I199: -6.08431108 | J199: -24.47484395 | K199: 24.34 | L199: 15.23 | M199: 21.57 | N199: 12.47 | O199: 99.81456468 | P199: 1.09 | Q199: Dipole | R199: No | T199: 37.11226648 | U199: 231 | V199: 229.6898132 | W199: 37.11226648 | X199: 0.9782758621
A200: +EAntenna 144LFA11 | B200: 6.1373275 | C200: 15.26 | D200: 3.684 | E200: 3.421 | F200: 21.2 | G200: 5.585547589 | H200: 455.9353253 | I200: -5.806910565 | J200: -24.19744343 | K200: 25.57 | L200: 17 | M200: 22.8 | N200: 48.55 | O200: 99.45130316 | P200: 1.16 | Q200: LFA Loop | R200: Yes | T200: 31.37960425 | U200: 226.33 | V200: 225.1036834 | W200: 31.37960425 | X200: 0.9811034483
A201: #M2 20 XPOL H | B201: 6.1789365 | C201: 15.25 | D201: 3.64 | E201: 3.64 | F201: 21.21 | G201: 7.120650062 | H201: 550.6686319 | I201: -6.514223598 | J201: -24.90475647 | K201: 21.46 | L201: 13.49 | M201: 16.04 | N201: 193.9 | O201: 98.93623439 | P201: 1.23 | Q201: T Match | R201: Yes | S201: XPOL | T201: 49.61800035 | U201: 240.9 | V201: 239.6944003 | W201: 49.61800035 | X201: 0.9760344828
A202: #M2 20 XPOL V | B202: 6.1789365 | C202: 15.25 | D202: 3.64 | E202: 3.64 | F202: 21.21 | G202: 7.120650062 | H202: 521.2845522 | I202: -6.29861044 | J202: -24.68914331 | K202: 21.35 | L202: 13.49 | M202: 16.25 | N202: 193.9 | O202: 98.93623439 | P202: 1.23 | Q202: T Match | R202: Yes | S202: XPOL | T202: 43.86769122 | U202: 236.41 | V202: 235.094153 | W202: 43.86769122 | X202: 0.9760344828
A203: +G0KSC 11 LFA | B203: 6.199741 | C203: 15.26 | D203: 3.61 | E203: 3.35 | F203: 21.09 | G203: 3.512023174 | H203: 427.0313492 | I203: -5.691425055 | J203: -24.08195792 | K203: 27.7 | L203: 16.5 | M203: 24.6 | N203: 48.3 | O203: 99.91516637 | P203: 1.06 | Q203: LFA Loop | R203: Yes | T203: 26.12902663 | U203: 221.73 | V203: 220.9032213 | W203: 26.12902663 | X203: 0.9880344828
... 427 more rows

Sheet 50.15 MHz Table
X1: *Hairpin
A2: Issue: July 2, 2024 | H2: VE7BQH Antenna Table
B4: Old Reference: Tsky=4225K Tearth=6000K | H4: Reference: Estimated Values for man-made noise (Tearth) on 50.150 MHz ITU-R P.372-16: Part 6,Man-made Noise, p.98-100 | X4: *Gamma
B5: New Reference: Tsky=5640K | H5: Rural = | J5: 29700 | K5: K | X5: *Beta
H6: Residential = | J6: 100600 | K6: K | X6: *KLM Dual Dip
H7: City = | J7: 270800 | K7: K | X7: Will not calculate
D8: Enter Tsky > | F8: 5640 | G8: K | H8: Enter Tearth > | J8: 100600 | L8: Enter Receive System NF > | P8: 0.75 | X8: accurately
D9: DL6WU Optimal Stacking | M9: Compromise 75% Stacking | S9: ! Ant | T9: 1 Ant | AA9: Internal use only
C10: 1 Ant | F10: 4 Antennas | K10: 2E ant | L10: 2H ant | M10: Spacing | O10: 4 Ant | P10: 2E ant | Q10: 2H ant | R10: < | S10: H Plane | T10: > | Y10: KF2YN | AA10: archive
A11: TYPE OF | B11: Length | C11: GAIN | D11: E | E11: H | F11: GA | G11: TA | H11: Tloss | I11: G/T | J11: S/N | K11: GA | L11: GA | M11: E | N11: H | O11: GA | P11: GA | Q11: GA | R11: F/R | S11: 1st SL | T11: 2nd SL | U11: Z | V11: e | W11: VSWR | X11: Feed | Y11: Conver. | AA11: Ta | AC11: New
A12: ANTENNA | B12: m | C12: (dBi) | D12: (m) | E12: (m) | F12: (dBi) | G12: (K) | H12: (K) | I12: (dB/K) | J12: (dB) | K12: (dBi) | L12: (dBi) | M12: (m) | N12: (m) | O12: (dBi) | P12: (dBi) | Q12: (dBi) | R12: (dB) | S12: (dB) | T12: (dB) | U12: (ohms) | V12: (%) | W12: Bandwidth | X12: System | Y12: Corr Req. | AA12: Old | AB12: Tpat | AC12: "S" | AD12: ave gain
A14: Isotropic Lossless Radiator | B14: 0 | C14: 0 | D14: - | E14: - | F14: - | G14: =Z14/9000*J$8+(1-Z14/9000)*F$8+290*(1/AD14-1) -> 53119.91772 | H14: =290*(1/AD14-1) -> 0.00700016897 | I14: =C14-10*LOG((Z14/9000*J$8+(1-Z14/9000)*F$8)+290*(10^(0.1*P$8)/AD14-1))+10*LOG(1/AD14) -> -47.25693623 | J14: =10*LOG(10^(C14/10)*1E-20/AD14/1.380649E-23/2500/(Z14/9000*J$8+(1-Z14/9000)*F$8+290*(10^(P$8/10)/AD14-1))) -> -52.63716915 | K14: - | L14: - | M14: - | N14: - | O14: - | P14: - | Q14: - | R14: - | S14: - | T14: - | U14: - | W14: - | X14: - | Y14: No | Z14: 4499.991539 | AA14: 5349.871 | AB14: 5349.993138 | AC14: =(AB14-1700)*1.232876712 -> 4499.991539 | AD14: 0.9999758621
A15: PY1MHZ 2 | B15: 0.4 | C15: 6.63 | D15: 5.39 | E15: 3.34 | F15: 13.26 | G15: 17776.25908 | H15: =290*(1/AD15-1) -> 1.834532249 | I15: =F15-10*LOG((Z15/9000*J$8+(1-Z15/9000)*F$8)+290*(10^(0.1*P$8)/AD15-1))+10*LOG(1/AD15) -> -29.22443607 | J15: =10*LOG(10^(F15/10)*1E-20/AD15/1.380649E-23/2500/(Z15/9000*J$8+(1-Z15/9000)*F$8+290*(10^(P$8/10)/AD15-1))) -> -34.60466899 | K15: 9.68 | L15: 10.06 | M15: 4.04 | N15: 2.51 | O15: 11.83 | P15: 9.16 | Q15: 9.2 | R15: 6.6 | S15: none | T15: none | U15: 50.33 | V15: =(1-((W15-1)/(W15+1))^2)*10^2 -> 98.29867675 | W15: 1.3 | X15: Folded Dipole | Y15: Yes | Z15: 1150.061299 | AA15: 2618.1 | AB15: 2632.827498 | AC15: 1150.061299 | AD15: 0.9937137931
A16: G0KSC 2 LFA-Q | B16: 0.4184544 | C16: 7.49 | D16: 5.17 | E16: 3.715 | F16: 13.84 | G16: 13929.54118 | H16: =290*(1/AD16-1) -> 2.919090244 | I16: -27.57305248 | J16: -32.95328539 | K16: 10.34 | L16: 10.67 | M16: 3.975 | N16: 2.79 | O16: 12.23 | P16: 9.78 | Q16: 9.73 | R16: 9.18 | S16: none | T16: none | U16: 28.1 | V16: =(1-((W16-1)/(W16+1))^2)*10^2 -> 97.33723149 | W16: 1.39 | X16: LFA Vert Loop | Y16: Yes | Z16: 785.3790941 | AA16: 2316.63 | AB16: 2337.02971 | AC16: 785.3790941 | AD16: 0.9900344828
A17: InnoV 2 LFA-Q | B17: 0.4184544 | C17: 6.53 | D17: 5.25 | E17: 3.36 | F17: 13.13 | G17: 19643.6674 | H17: =290*(1/AD17-1) -> 1.426987317 | I17: -29.79303637 | J17: -35.17326929 | K17: 9.59 | L17: 9.89 | M17: 3.9375 | N17: 2.52 | O17: 11.73 | P17: 9.33 | Q17: 9.1 | R17: 6.57 | S17: none | T17: none | U17: 48.9 | V17: 99.17355372 | W17: 1.2 | X17: LFA Vert Loop | Y17: Yes | Z17: 1327.086812 | AA17: 2764.24 | AB17: 2776.414859 | AC17: 1327.086812 | AD17: 0.9951034483
A18: PY1MHZ 2 V2 | B18: 0.5 | C18: 6.99 | D18: 5.473 | E18: 3.498 | F18: 13.64 | G18: 15221.06679 | H18: 2.63370333 | I18: -28.16089811 | J18: -33.54113103 | K18: 10.02 | L18: 10.47 | M18: 4.1 | N18: 2.63 | O18: 12.08 | P18: 9.43 | Q18: 9.5 | R18: 9 | S18: none | T18: none | U18: 49.42 | V18: 96.37922274 | W18: 1.47 | X18: Folded Dipole | Y18: Yes | Z18: 907.8127395 | AA18: 2634.15 | AB18: 2436.337 | AC18: 907.8127395 | AD18: 0.991
A19: InnoV 2 LFA | B19: 0.8369088 | C19: 6.35 | D19: 5.17 | E19: 3.22 | F19: 13 | G19: 17943.10125 | H19: 1.426987317 | I19: -29.53093345 | J19: -34.91116636 | K19: 9.4 | L19: 9.74 | M19: 3.88 | N19: 2.42 | O19: 11.39 | P19: 8.87 | Q19: 8.81 | R19: 6.37 | S19: none | T19: none | U19: 48.5 | V19: 99.2473051 | W19: 1.19 | X19: LFA Loop | Y19: Yes | Z19: 1165.912683 | AA19: 2634.15 | AB19: 2645.684732 | AC19: 1165.912683 | AD19: 0.9951034483
A20: InnoV 3 OWL G/T | B20: 1.2553632 | C20: 7.61 | D20: 5.609 | E20: 3.67 | F20: 14.02 | G20: 13736.52339 | H20: 2.318387209 | I20: -27.34157337 | J20: -32.72180629 | K20: 10.65 | L20: 10.89 | M20: 4.2075 | N20: 2.7525 | O20: 12.54 | P20: 10.15 | Q20: 10.02 | R20: 9.25 | S20: none | T20: none | U20: 55.02 | V20: 98.93623439 | W20: 1.23 | X20: Dipole | Y20: Yes | Z20: 767.1424284 | AA20: 2306.12 | AB20: 2322.237748 | AC20: 767.1424284 | AD20: 0.9920689655
A21: G0KSC 3el-Q | B21: 1.6738176 | C21: 8.66 | D21: 5.837 | E21: 4.275 | F21: 14.95 | G21: 10755.93672 | H21: 1.447186027 | I21: -25.36698984 | J21: -30.74722275 | K21: 11.7 | L21: 11.86 | M21: 4.38 | N21: 3.21 | O21: 13.76 | P21: 11.22 | Q21: 11.2 | R21: 13.9 | S21: none | T21: none | U21: 48.8 | V21: 99.17355372 | W21: 1.2 | X21: LFA Vert Loop | Y21: Yes | Z21: 484.7346862 | AA21: 2084.22 | AB21: 2093.17369 | AC21: 484.7346862 | AD21: 0.9950344828
A22: Cushcraft A50-3S | B22: 1.7335968 | C22: 7.44 | D22: 5.562 | E22: 3.613 | F22: 13.99 | G22: 13308.3687 | H22: 1.356313875 | I22: -27.24886958 | J22: -32.62910249 | K22: 10.5 | L22: 10.86 | M22: 4.17 | N22: 2.7075 | O22: 12.73 | P22: 10.02 | Q22: 10.16 | R22: 8.79 | S22: none | T22: none | U22: 37.42 | V22: 99.88564494 | W22: 1.07 | X22: *Gamma | Y22: No | Z22: 726.6545015 | AA22: 2280.09 | AB22: 2289.39754 | AC22: 726.6545015 | AD22: 0.9953448276
A23: YU7EF EF0603 | B23: 1.793376 | C23: 7.08 | D23: 5.429 | E23: 3.442 | F23: 13.59 | G23: 15774.41906 | H23: 1.50779896 | I23: -28.38211421 | J23: -33.76234712 | K23: 10.13 | L23: 10.45 | M23: 4.07 | N23: 2.58 | O23: 12.34 | P23: 9.67 | Q23: 9.76 | R23: 7.61 | S23: none | T23: none | U23: 50.2 | V23: 99.96155325 | W23: 1.04 | X23: Dipole | Y23: No | Z23: 960.3643786 | AA23: 2467.64 | AB23: 2478.962218 | AC23: 960.3643786 | AD23: 0.9948275862
A24: PY1MHZ 3 | B24: 1.8 | C24: 8.46 | D24: 5.88 | E24: 4.1 | F24: 14.73 | G24: 11868.6338 | H24: 2.542089885 | I24: -25.99623543 | J24: -31.37646834 | K24: 11.49 | L24: 11.66 | M24: 4.41 | N24: 3.075 | O24: 13.63 | P24: 11.05 | Q24: 11.08 | R24: 13 | S24: none | T24: none | U24: 50.46 | V24: 97.88881584 | W24: 1.34 | X24: Folded Dipole | Y24: Yes | Z24: 590.0887255 | AA24: 2162.216 | AB24: 2178.627522 | AC24: 590.0887255 | AD24: 0.9913103448
A25: DK7ZB 3 28 ohm | B25: 1.8531552 | C25: 7.89 | D25: 5.656 | E25: 3.78 | F25: 14.15 | G25: 14020.17015 | H25: 1.953065334 | I25: -27.30539655 | J25: -32.68562946 | K25: 10.92 | L25: 11.07 | M25: 4.245 | N25: 2.835 | O25: 13.01 | P25: 10.49 | Q25: 10.45 | R25: 10.46 | S25: none | T25: none | U25: 27.96 | V25: 99.67960128 | W25: 1.12 | X25: Dipole | Y25: No | Z25: 794.0601699 | AA25: 2330.33 | AB25: 2344.071027 | AC25: 794.0601699 | AD25: 0.9933103448
A26: DK7ZB 3 12.5 ohm | B26: 1.8531552 | C26: 8.49 | D26: 5.871 | E26: 4.106 | F26: 14.66 | G26: 12394.69261 | H26: 4.035382141 | I26: -26.23171905 | J26: -31.61195196 | K26: 11.5 | L26: 11.6 | M26: 4.4 | N26: 3.08 | O26: 13.55 | P26: 11.07 | Q26: 11 | R26: 13.7 | S26: none | T26: none | U26: 12.94 | V26: 98.39629298 | W26: 1.29 | X26: Dipole | Y26: No | Z26: 639.8053396 | AA26: 2192.48 | AB26: 2218.95322 | AC26: 639.8053396 | AD26: 0.9862758621
A27: Moxon GW3YDX | B27: 1.8531552 | C27: 8.82 | D27: 5.656 | E27: 4.475 | F27: 15.03 | G27: 10702.82683 | H27: 2.919090244 | I27: -25.24383586 | J27: -30.62406878 | K27: 11.84 | L27: 11.94 | M27: 4.242 | N27: 3.356 | O27: 13.73 | P27: 11.31 | Q27: 11.22 | R27: 16.6 | S27: none | T27: none | U27: 49.97 | V27: 97.88881584 | W27: 1.34 | X27: Bent Dipole | Y27: Yes | Z27: 479.5616017 | AA27: 2071.05 | AB27: 2088.977744 | AC27: 479.5616017 | AD27: 0.9900344828
A28: InnoV 3 LFA-Q 1.91m | B28: 1.9129344 | C28: 9.54 | D28: 6.165 | E28: 4.96 | F28: 15.71 | G28: 12575.49127 | H28: 3.215256956 | I28: -25.2564102 | J28: -30.63664311 | K28: 12.58 | L28: 12.67 | M28: 4.6275 | N28: 3.72 | O28: 14.64 | P28: 12.09 | Q28: 12.1 | R28: 18 | S28: none | T28: none | U28: 27.8 | V28: 97.10576609 | W28: 1.41 | X28: LFA Vert Loop | Y28: Yes | Z28: 657.0185777 | AA28: 2211.61 | AB28: 2232.915069 | AC28: 657.0185777 | AD28: 0.9890344828
A29: G0KSC 3 1.94m LFA | B29: 1.9129344 | C29: 8.47 | D29: 5.863 | E29: 4.03 | F29: 14.65 | G29: 12065.14693 | H29: 2.338709677 | I29: -26.15023373 | J29: -31.53046664 | K29: 11.44 | L29: 11.59 | M29: 4.4 | N29: 3.02 | O29: 13.53 | P29: 11.02 | Q29: 11 | R29: 13.6 | S29: none | T29: none | U29: 49.35 | V29: 99.51325041 | W29: 1.15 | X29: LFA Loop | Y29: Yes | Z29: 608.7328766 | AA29: 2178.52 | AB29: 2193.75 | AC29: 608.7328766 | AD29: 0.992
A30: EAntenna 50LFA3 | B30: 1.9129344 | C30: 8.65 | D30: 5.942 | E30: 4.106 | F30: 14.79 | G30: 11477.61875 | H30: 2.308227034 | I30: -25.79488688 | J30: -31.1751198 | K30: 11.6 | L30: 11.81 | M30: 4.46 | N30: 3.08 | O30: 13.53 | P30: 11.07 | Q30: 11.2 | R30: 13.98 | S30: none | T30: none | U30: 51.9 | V30: 98.93623439 | W30: 1.23 | X30: LFA Loop | Y30: Yes | Z30: 553.0517553 | AA30: 2133.91 | AB30: 2148.586424 | AC30: 553.0517553 | AD30: 0.9921034483
A31: M² 6M3 | B31: 2.0324928 | C31: 8.56 | D31: 5.95 | E31: 4.19 | F31: 14.81 | G31: 12919.13001 | H31: 3.235704324 | I31: -26.27268619 | J31: -31.65291911 | K31: 11.53 | L31: 11.67 | M31: 4.49 | N31: 3.18 | O31: 13.7 | P31: 11.1 | Q31: 11.13 | R31: 13.1 | S31: none | T31: none | U31: 198.18 | V31: 98.85204082 | W31: 1.24 | X31: T Match | Y31: Yes | Z31: 689.5856019 | AA31: 2237.6 | AB31: 2259.330544 | AC31: 689.5856019 | AD31: 0.9889655172
A32: DK7ZB 4 28 ohm | B32: 2.1520512 | C32: 9 | D32: 6.126 | E32: 4.445 | F32: 15.22 | G32: 11116.433 | H32: 2.60315914 | I32: -25.22233951 | J32: -30.60257242 | K32: 12.01 | L32: 12.16 | M32: 4.38 | N32: 3.04 | O32: 13.76 | P32: 11.45 | Q32: 11.34 | R32: 14.91 | S32: none | T32: none | U32: 28.6 | V32: 99.99019704 | W32: 1.02 | X32: Dipole | Y32: No | Z32: 518.7917923 | AA32: 2104.51 | AB32: 2120.797787 | AC32: 518.7917923 | AD32: 0.9911034483
A33: G0KSC 3 Quad | B33: 2.2716096 | C33: 9.33 | D33: 5.71 | E33: 4.98 | F33: 15.47 | G33: 10832.52853 | H33: 7.656968925 | I33: -24.78655484 | J33: -30.16678775 | K33: 12.36 | L33: 12.41 | M33: 4.28 | N33: 3.74 | O33: 14.32 | P33: 11.82 | Q33: 11.85 | R33: 22.86 | S33: none | T33: none | U33: 51.2 | V33: 98.67648211 | W33: 1.26 | X33: Quad | Y33: No | Z33: 491.4052658 | AA33: 2052.06 | AB33: 2098.584271 | AC33: 491.4052658 | AD33: 0.9742758621
A34: YU7EF EF0604S | B34: 2.3313888 | C34: 8.77 | D34: 6.023 | E34: 4.31 | F34: 14.97 | G34: 11562.69665 | H34: 2.725374173 | I34: -25.64064366 | J34: -31.02087657 | K34: 11.77 | L34: 11.83 | M34: 4.58 | N34: 3.17 | O34: 13.83 | P34: 11.32 | Q34: 11.3 | R34: 14.32 | S34: none | T34: none | U34: 50 | V34: 99.9405116 | W34: 1.05 | X34: Dipole | Y34: No | Z34: 561.075626 | AA34: 2137.73 | AB34: 2155.094675 | AC34: 561.075626 | AD34: 0.9906896552
A35: DK7ZB 3 28 ohm | B35: 2.5107264 | C35: 8.78 | D35: 5.906 | E35: 4.197 | F35: 14.75 | G35: 12960.20055 | H35: 1.780869445 | I35: -26.36792093 | J35: -31.74815385 | K35: 11.71 | L35: 11.72 | M35: 4.43 | N35: 3.15 | O35: 13.8 | P35: 11.31 | Q35: 11.28 | R35: 15.36 | S35: none | T35: none | U35: 27.14 | V35: 99.57201502 | W35: 1.14 | X35: Dipole | Y35: No | Z35: 693.616019 | AA35: 2250.56 | AB35: 2262.59966 | AC35: 693.616019 | AD35: 0.9938965517
A36: InnoV 5 OP-DES | B36: 2.6302848 | C36: 9.19 | D36: 6 | E36: 4.32 | F36: 15.22 | G36: 9587.539106 | H36: 1.720142912 | I36: -24.59622534 | J36: -29.97645825 | K36: 12.19 | L36: 12.3 | M36: 4.5 | N36: 3.24 | O36: 14.12 | P36: 11.71 | Q36: 11.64 | R36: 21.06 | S36: none | T36: none | U36: 50.7 | V36: 99.96155325 | W36: 1.04 | X36: Bent Dipole | Y36: No | Z36: 373.9718899 | AA36: 1993.23 | AB36: 2003.332755 | AC36: 373.9718899 | AD36: 0.9941034483
A37: PY1MHZ 4 | B37: 2.75 | C37: 9.35 | D37: 6.264 | E37: 4.674 | F37: 15.57 | G37: 11564.859 | H37: 3.548905038 | I37: -25.02930898 | J37: -30.40954189 | K37: 12.38 | L37: 12.52 | M37: 4.698 | N37: 3.50055 | O37: 14.43 | P37: 11.9 | Q37: 11.91 | R37: 17.17 | S37: none | T37: none | U37: 50.9 | V37: 99.01793686 | W37: 1.22 | X37: Folded Dipole | Y37: Yes | Z37: 561.2025152 | AA37: 2132.648 | AB37: 2155.197596 | AC37: 561.2025152 | AD37: 0.9879103448
A38: InnoV 4 LFA 2.8m | B38: 2.8096224 | C38: 9.21 | D38: 6.13 | E38: 4.41 | F38: 15.29 | G38: 10313.62162 | H38: 2.90888827 | I38: -24.82395436 | J38: -30.20418727 | K38: 12.2 | L38: 12.27 | M38: 4.6 | N38: 3.31 | O38: 14.16 | P38: 11.74 | Q38: 11.65 | R38: 21.2 | S38: none | T38: none | U38: 47 | V38: 99.77324263 | W38: 1.1 | X38: LFA Loop | Y38: Yes | Z38: 442.6749637 | AA38: 2041.49 | AB38: 2059.058582 | AC38: 442.6749637 | AD38: 0.9900689655
A39: DK7ZB 4 12.5 ohm | B39: 2.839512 | C39: 9.68 | D39: 6.538 | E39: 5.013 | F39: 15.84 | G39: 13493.61301 | H39: 7.005226727 | I39: -25.37560353 | J39: -30.75583645 | K39: 12.68 | L39: 12.8 | M39: 4.91 | N39: 3.757 | O39: 14.83 | P39: 12.23 | Q39: 12.8 | R39: 14.44 | S39: none | T39: none | U39: 11.1 | V39: 96 | W39: 1.5 | X39: Dipole | Y39: No | Z39: 743.6759698 | AA39: 2255.72 | AB39: 2303.203842 | AC39: 743.6759698 | AD39: 0.9764137931
A40: G0KSC 4 Quad | B40: 2.98896 | C40: 10.25 | D40: 6.325 | E40: 5.696 | F40: 16.23 | G40: 13640.92388 | H40: 12.12674235 | I40: -24.95862043 | J40: -30.33885334 | K40: 13.21 | L40: 13.21 | M40: 4.75 | N40: 4.28 | O40: 15.13 | P40: 12.68 | Q40: 12.74 | R40: 15.32 | S40: 18.53 | T40: none | U40: 52.7 | V40: 99.77324263 | W40: 1.1 | X40: Quad | Y40: No | Z40: 757.1522142 | AA40: 2232.89 | AB40: 2314.134574 | AC40: 757.1522142 | AD40: 0.959862069
A41: EAntenna 50LFA4 | B41: 2.98896 | C41: 9.27 | D41: 6.165 | E41: 4.475 | F41: 15.34 | G41: 10804.56641 | H41: 3.460813734 | I41: -24.96673084 | J41: -30.34696375 | K41: 12.26 | L41: 12.3 | M41: 4.6275 | N41: 3.36 | O41: 14.22 | P41: 11.79 | Q41: 11.72 | R41: 21.15 | S41: none | T41: none | U41: 50.9 | V41: 99.81456468 | W41: 1.09 | X41: LFA Loop | Y41: Yes | Z41: 489.1528052 | AA41: 2075.45 | AB41: 2096.757275 | AC41: 489.1528052 | AD41: 0.9882068966
A42: InnoV 4 LFA 3.33m | B42: 3.3476352 | C42: 9.4 | D42: 6.17 | E42: 4.48 | F42: 15.37 | G42: 10640.59044 | H42: 2.623521225 | I42: -24.88300034 | J42: -30.26323326 | K42: 12.38 | L42: 12.4 | M42: 4.63 | N42: 3.36 | O42: 14.32 | P42: 11.94 | Q42: 11.84 | R42: 25.3 | S42: none | T42: none | U42: 49.9 | V42: 99.38626856 | W42: 1.17 | X42: LFA Loop | Y42: Yes | Z42: 473.6910514 | AA42: 2068.13 | AB42: 2084.216075 | AC42: 473.6910514 | AD42: 0.9910344828
A43: InnoV 4 LFA-Q | B43: 3.3476352 | C43: 10.71 | D43: 6.538 | E43: 5.263 | F43: 16.29 | G43: 11550.06341 | H43: 2.338709677 | I43: -24.32163175 | J43: -29.70186467 | K43: 13.26 | L43: 13.3 | M43: 4.905 | N43: 3.945 | O43: 15.23 | P43: 12.79 | Q43: 12.8 | R43: 13.9 | S43: 14.1 | T43: none | U43: 28.6 | V43: 98.19905924 | W43: 1.31 | X43: LFA-Vert Loop | Y43: Yes | Z43: 559.9149358 | AA43: 2139.24 | AB43: 2154.153226 | AC43: 559.9149358 | AD43: 0.992
A44: F9FT 5 220505 | B44: 3.4074144 | C44: 9.87 | D44: 6.516 | E44: 5.013 | F44: 16.02 | G44: 11565.87106 | H44: 3.95316323 | I44: -24.57373895 | J44: -29.95397187 | K44: 12.88 | L44: 12.98 | M44: 4.89 | N44: 3.7575 | O44: 14.97 | P44: 12.42 | Q44: 12.46 | R44: 16.76 | S44: none | T44: none | U44: 16.8 | V44: 99.31823921 | W44: 1.18 | X44: *Hairpin | Y44: No | Z44: 561.2601206 | AA44: 2130.16 | AB44: 2155.24432 | AC44: 561.2601206 | AD44: 0.9865517241
A45: *F9FT 5 220505 | B45: 3.4074144 | C45: 9.87 | D45: 5.58 | E45: 4.5 | F45: 15.69 | G45: 9600.176407 | H45: 3.912071014 | I45: -24.09958918 | J45: -29.4798221 | K45: 12.69 | L45: 12.83 | M45: 4.185 | N45: 3.375 | O45: 14.33 | P45: 12.04 | Q45: 12.22 | R45: 16.76 | S45: none | T45: none | U45: 16.8 | V45: 99.31823921 | W45: 1.18 | X45: *Hairpin | Y45: No | Z45: 374.9618684 | AA45: 1981.32 | AB45: 2004.135738 | AC45: 374.9618684 | AD45: 0.9866896552
A46: G0KSC 4el-Q | B46: 3.4074144 | C46: 10.22 | D46: 6.54 | E46: 5.26 | F46: 16.29 | G46: =Z46/9000*J$8+(1-Z46/9000)*F$8+290*(1/AD46-1) -> 11520.42775 | H46: 2.338709677 | I46: -24.31052716 | J46: -29.69076008 | K46: 13.26 | L46: 13.3 | M46: 4.91 | N46: 3.95 | O46: 15.23 | P46: 12.79 | Q46: 12.8 | R46: 12.1 | S46: none | T46: none | U46: 49.9 | V46: 99.67960128 | W46: 1.12 | X46: LFA Vert Loop | Y46: Yes | Z46: 557.1061642 | AA46: 2136.98 | AB46: 2151.875 | AC46: 557.1061642 | AD46: 0.992
A47: HyGain 4 VB-64DX | B47: 3.4671936 | C47: 9.65 | D47: 6.473 | E47: 5.001 | F47: 15.51 | G47: 20683.17097 | H47: 1.426987317 | I47: -27.63637313 | J47: -33.01660604 | K47: 12.58 | L47: 12.43 | M47: 4.85 | N47: 3.75 | O47: 14.59 | P47: 12.11 | Q47: 12.28 | R47: 11.68 | S47: 14.68 | T47: none | U47: 55.75 | V47: 99.97816011 | W47: 1.03 | X47: *Beta Match | Y47: No | Z47: 1425.60758 | AA47: 2843.76 | AB47: 2856.326149 | AC47: 1425.60758 | AD47: 0.9951034483
A48: Telrex 4-6m | B48: 3.5269728 | C48: 9.68 | D48: 6.561 | E48: 5.097 | F48: 15.59 | G48: 21397.49148 | H48: 2.511564815 | I48: -27.68735511 | J48: -33.06758802 | K48: 12.64 | L48: 12.47 | M48: 4.92 | N48: 3.825 | O48: 14.56 | P48: 12.18 | Q48: 12.3 | R48: 11.77 | S48: none | T48: none | U48: 51 | V48: 99.72821814 | W48: 1.11 | X48: Dipole | Y48: No | Z48: 1493.205763 | AA48: 2888.65 | AB48: 2911.155786 | AC48: 1493.205763 | AD48: 0.9914137931
A49: Cushcraft A50-5S | B49: 3.5269728 | C49: 9.74 | D49: 6.583 | E49: 5.14 | F49: 15.67 | G49: 21085.41628 | H49: 1.760624458 | I49: -27.55484802 | J49: -32.93508093 | K49: 12.7 | L49: 12.59 | M49: 4.935 | N49: 3.855 | O49: 14.65 | P49: 12.25 | Q49: 12.33 | R49: 12.23 | S49: none | T49: none | U49: 42.1 | V49: 99.97816011 | W49: 1.03 | X49: *Gamma | Y49: No | Z49: 1463.699461 | AA49: 2871.55 | AB49: 2887.222897 | AC49: 1463.699461 | AD49: 0.9939655172
A50: G0KSC 4 LFA | B50: 3.5269728 | C50: 9.86 | D50: 6.41 | E50: 4.87 | F50: 15.85 | G50: 11700.98327 | H50: 2.206664119 | I50: -24.81969856 | J50: -30.19993147 | K50: 12.83 | L50: 12.81 | M50: 4.81 | N50: 3.65 | O50: 14.77 | P50: 12.37 | Q50: 12.33 | R50: 18.8 | S50: none | T50: none | U50: 50.1 | V50: 99.81456468 | W50: 1.09 | X50: LFA Loop | Y50: Yes | Z50: 574.2311445 | AA50: 2151.6 | AB50: 2165.765262 | AC50: =(AB50-1700)*1.232876712 -> 574.2311445 | AD50: 0.9924482759
A51: DK7ZB 4 12.5 ohm | B51: 3.586752 | C51: 10.39 | D51: 6.879 | E51: 5.502 | F51: 16.43 | G51: 14729.16412 | H51: 4.148508272 | I51: -25.20641273 | J51: -30.58664564 | K51: 13.38 | L51: 13.37 | M51: 5.16 | N51: 4.125 | O51: 15.25 | P51: 12.93 | Q51: 12.88 | R51: 13.51 | S51: 13.8 | T51: none | U51: 51.5 | V51: 97.22222222 | W51: 1.4 | X51: Folded Dipole | Y51: No | Z51: 861.0482365 | AA51: 2368.67 | AB51: 2398.405792 | AC51: 861.0482365 | AD51: 0.9858965517
A52: Directive DSEJX5-50 | B52: 3.60468576 | C52: 9.99 | D52: 6.538 | E52: 5.06 | F52: 16.13 | G52: 10803.34163 | H52: 2.257436753 | I52: -24.19399575 | J52: -29.57422866 | K52: 13.03 | L52: 13.07 | M52: 4.905 | N52: 3.795 | O52: 15.02 | P52: 12.52 | Q52: 12.52 | R52: 16.96 | S52: none | T52: none | U52: 200.5 | V52: 99.81456468 | W52: 1.09 | X52: T Match | Y52: Yes | Z52: 489.1507762 | AA52: 2082.8 | AB52: 2096.75563 | AC52: 489.1507762 | AD52: 0.9922758621
A53: Directive 4 DS50-4HP | B53: 3.7063104 | C53: 10.28 | D53: 6.942 | E53: 5.532 | F53: 16.35 | G53: 14814.27494 | H53: 5.26384159 | I53: -25.29496739 | J53: -30.6752003 | K53: 13.27 | L53: 13.29 | M53: 5.205 | N53: 4.1475 | O53: 15.23 | P53: 12.86 | Q53: 12.81 | R53: 12.87 | S53: 12.87 | T53: none | U53: 200.2 | V53: 94.53766093 | W53: 1.61 | X53: T Match | Y53: Yes | Z53: 869.0090554 | AA53: 2367.16 | AB53: 2404.862901 | AC53: 869.0090554 | AD53: 0.9821724138
A54: G4CQM WS65065 | B54: 3.885648 | C54: 9.59 | D54: 6.224 | E54: 4.669 | F54: 15.46 | G54: 12680.44309 | H54: 1.598765646 | I54: -25.56625251 | J54: -30.94648543 | K54: 12.54 | L54: 12.42 | M54: 4.665 | N54: 3.5 | O54: 14.51 | P54: 12.1 | Q54: 12.06 | R54: 18.7 | S54: none | T54: none | U54: 49.65 | V54: 99.97816011 | W54: 1.03 | X54: Dipole | Y54: No | Z54: 667.1187753 | AA54: 2230.41 | AB54: 2241.107451 | AC54: 667.1187753 | AD54: 0.9945172414
A55: EAntennas 50LFA5S | B55: 3.885648 | C55: 10.59 | D55: 6.687 | E55: 5.487 | F55: 16.59 | G55: 12203.35445 | H55: 3.994266937 | I55: -24.23506141 | J55: -29.61529432 | K55: 13.53 | L55: 13.56 | M55: 5.02 | N55: 4.12 | O55: 15.37 | P55: 13.06 | Q55: 13.05 | R55: 15.62 | S55: 15.62 | T55: none | U55: 54.8 | V55: 97.99406878 | W55: 1.33 | X55: LFA Loop | Y55: Yes | Z55: 621.6748281 | AA55: 2178.24 | AB55: 2204.247361 | AC55: 621.6748281 | AD55: 0.9864137931
A56: Maple Leaf BFM-4e6-13 | B56: 3.885648 | C56: 10.58 | D56: 7.152 | E56: 5.811 | F56: 16.63 | G56: 15581.53357 | H56: 5.139498158 | I56: -25.23528766 | J56: -30.61552057 | K56: 13.6 | L56: 13.61 | M56: 5.364 | N56: 4.358 | O56: 15.56 | P56: 13.18 | Q56: 13.13 | R56: 12.4 | S56: 11.7 | T56: none | U56: 50 | V56: 96 | W56: 1.5 | X56: Sinclair Feed | Y56: No | Z56: 941.7391176 | AA56: 2426 | AB56: 2463.855062 | AC56: 941.7391176 | AD56: 0.9825862069
A57: InnoV 4 LFA 3.9m Ver3 | B57: 3.91254864 | C57: 10.48 | D57: 6.794 | E57: 5.365 | F57: 16.52 | G57: 12714.95744 | H57: 2.919090244 | I57: -24.49847114 | J57: -29.87870405 | K57: 13.43 | L57: 13.42 | M57: 5.0955 | N57: 4.023 | O57: 15.32 | P57: 12.98 | Q57: 12.97 | R57: 15.24 | S57: 15.3 | T57: none | U57: 49.17 | V57: 98.19905924 | W57: 1.31 | X57: LFA Loop | Y57: Yes | Z57: 670.2647974 | AA57: 2224.19 | AB57: 2243.659225 | AC57: 670.2647974 | AD57: 0.9900344828
A58: Cushcraft LFA-6M4EL | B58: 3.92749344 | C58: 10.55 | D58: 6.842 | E58: 5.444 | F58: 16.55 | G58: 12711.90892 | H58: 3.36868176 | I58: -24.46080236 | J58: -29.84103527 | K58: 13.51 | L58: 13.49 | M58: 5.13 | N58: 4.08 | O58: 15.32 | P58: 13.06 | Q58: 12.99 | R58: 15.06 | S58: 15.23 | T58: none | U58: 53.5 | V58: 98.7654321 | W58: 1.25 | X58: LFA Loop | Y58: Yes | Z58: 669.933258 | AA58: 2220.96 | AB58: 2243.390309 | AC58: 669.933258 | AD58: 0.9885172414
A59: InnoV 5 LFA | B59: 3.92749344 | C59: 10.56 | D59: 6.842 | E59: 5.458 | F59: 16.64 | G59: 11153.55586 | H59: 3.440334962 | I59: -23.80440021 | J59: -29.18463312 | K59: 13.55 | L59: 13.61 | M59: 5.13 | N59: 4.1 | O59: 15.51 | P59: 13.1 | Q59: 13.08 | R59: 17 | S59: 17 | T59: none | U59: 48.95 | V59: 98.19905924 | W59: 1.31 | X59: LFA Loop | Y59: Yes | Z59: 522.2308309 | AA59: 2102.09 | AB59: 2123.58723 | AC59: 522.2308309 | AD59: 0.9882758621
A60: InnoV 5 LFA-HG | B60: 3.92749344 | C60: 10.67 | D60: 7.019 | E60: 5.672 | F60: 16.74 | G60: 12928.07993 | H60: 4.066226092 | I60: -24.33345036 | J60: -29.71368327 | K60: 13.66 | L60: 13.72 | M60: 5.27 | N60: 4.25 | O60: 15.62 | P60: 13.21 | Q60: 13.19 | R60: 14.04 | S60: 13.81 | T60: none | U60: 47.35 | V60: 94.81075118 | W60: 1.59 | X60: LFA Loop | Y60: Yes | Z60: 690.3551325 | AA60: 2232.715 | AB60: 2259.954719 | AC60: 690.3551325 | AD60: 0.9861724138
A61: DK7ZB 4 12.5 ohm | B61: 3.9454272 | C61: 10.71 | D61: 7.02 | E61: 5.7 | F61: 16.75 | G61: 13301.38668 | H61: 5.23274591 | I61: -24.42943657 | J61: -29.80966948 | K61: 13.7 | L61: 13.69 | M61: 5.27 | N61: 4.28 | O61: 15.43 | P61: 13.24 | Q61: 13.09 | R61: 13.75 | S61: 13.75 | T61: none | U61: 12.44 | V61: 96.25390219 | W61: 1.48 | X61: Dipole | Y61: No | Z61: 725.6253731 | AA61: 2253.14 | AB61: 2288.562803 | AC61: 725.6253731 | AD61: 0.9822758621
A62: DG7YBN YBN50-5wrc vs | B62: 3.95 | C62: 11.12 | D62: 6.794 | E62: 5.373 | F62: 16.448 | G62: 11973.06153 | H62: 3.730375772 | I62: -24.29858095 | J62: -29.67881387 | K62: 14.13 | L62: 13.408 | M62: 5.09 | N62: 4.03 | O62: 15.412 | P62: 12.91 | Q62: 12.95 | R62: 16.07 | S62: 16.07 | T62: none | U62: 49.23 | V62: 99.81456468 | W62: 1.09 | X62: Hairpin | Y62: Yes | Z62: 599.8734245 | AA62: 2253.14 | AB62: 2186.564 | AC62: 599.8734245 | AD62: 0.9873
A63: G0KSC 5 Quad | B63: 4.0649856 | C63: 10.9 | D63: 6.819 | E63: 6.254 | F63: 16.92 | G63: 14658.62206 | H63: 12.67040956 | I63: -24.57208254 | J63: -29.95231545 | K63: 13.92 | L63: 13.8 | M63: 5.12 | N63: 4.69 | O63: 15.65 | P63: 13.35 | Q63: 13.33 | R63: 14.05 | S63: 14.05 | T63: none | U63: 50.81 | V63: 99.62749895 | W63: 1.13 | X63: Quad | Y63: Yes | Z63: 853.5548106 | AA63: 2304.32 | AB63: 2392.327791 | AC63: 853.5548106 | AD63: 0.958137931
A64: YU7EF EF0605C | B64: 4.1247648 | C64: 10.14 | D64: 6.538 | E64: 5.072 | F64: 16.12 | G64: 11637.34565 | H64: 2.90888827 | I64: -24.51575041 | J64: -29.89598332 | K64: 13.11 | L64: 13.05 | M64: 4.905 | N64: 3.8025 | O64: 14.99 | P64: 12.61 | Q64: 12.62 | R64: 23.61 | S64: none | T64: none | U64: 49.53 | V64: 99.96155325 | W64: 1.04 | X64: Dipole | Y64: No | Z64: 568.1332227 | AA64: 2142.24 | AB64: 2160.81917 | AC64: 568.1332227 | AD64: 0.9900689655
A65: DK7ZB 5 50 ohm | B65: 4.2443232 | C65: 10.65 | D65: 6.94 | E65: 5.61 | F65: 16.59 | G65: 14098.15171 | H65: 2.990523969 | I65: -24.87404624 | J65: -30.25427915 | K65: 13.61 | L65: 13.52 | M65: 5.21 | N65: 4.21 | O65: 15.2 | P65: 13.15 | Q65: 12.9 | R65: 12.7 | S65: 12.85 | T65: none | U65: 50.3 | V65: 99.62749895 | W65: 1.13 | X65: Dipole | Y65: No | Z65: 801.3526822 | AA65: 2328.96 | AB65: 2349.986065 | AC65: 801.3526822 | AD65: 0.9897931034
A66: PY1MHZ 5 | B66: 4.297 | C66: 10.38 | D66: 6.722 | E66: 5.29 | F66: 16.47 | G66: 10035.15206 | H66: 4.946972673 | I66: -23.49577511 | J66: -28.87600802 | K66: 13.38 | L66: 13.45 | M66: 5.04 | N66: 3.9675 | O66: 15.41 | P66: 12.93 | Q66: 12.93 | R66: 19.6 | S66: 19.6 | T66: none | U66: 48.49 | V66: 98.85204082 | W66: 1.24 | X66: Folded Dipole | Y66: Yes | Z66: 416.0893613 | AA66: 2008.185 | AB66: 2037.494704 | AC66: 416.0893613 | AD66: 0.9832275862
A67: OZ3SW 4 (OZ6FRS) | B67: 4.3638816 | C67: 9.93 | D67: 6.43 | E67: 4.955 | F67: 15.63 | G67: 15038.80628 | H67: 1.396694501 | I67: -26.13710104 | J67: -31.51733395 | K67: 12.85 | L67: 12.57 | M67: 4.82 | N67: 3.72 | O67: 14.81 | P67: 12.46 | Q67: 12.45 | R67: 14.66 | S67: 15.96 | T67: none | U67: 31.2 | V67: 99.81456468 | W67: 1.09 | X67: Dipole | Y67: No | Z67: 890.6559212 | AA67: 2412.2 | AB67: 2422.420914 | AC67: 890.6559212 | AD67: 0.9952068966
A68: G0KSC 5 4.4 LFA | B68: 4.3638816 | C68: 10.6 | D68: 6.88 | E68: 5.48 | F68: 16.68 | G68: 10409.02539 | H68: 5.29494382 | I68: -23.43868319 | J68: -28.8189161 | K68: 13.58 | L68: 13.56 | M68: 5.16 | N68: 4.11 | O68: 15.62 | P68: 13.14 | Q68: 13.15 | R68: 19.38 | S68: 19.38 | T68: none | U68: 49.9 | V68: 99.67960128 | W68: 1.12 | X68: LFA Loop | Y68: Yes | Z68: 451.4908803 | AA68: 2034.36 | AB68: 2066.20927 | AC68: 451.4908803 | AD68: 0.9820689655
A69: DG7YBN YBN 50-5w | B69: 4.38 | C69: 9.866 | D69: 6.304 | E69: 4.833 | F69: 15.679 | G69: 12370.99708 | H69: 1.897332662 | I69: -25.23599933 | J69: -30.61623224 | K69: 12.79 | L69: 12.64 | M69: 5.79 | N69: 4.34 | O69: 15.34 | P69: 12.69 | Q69: 12.48 | R69: 19.37 | S69: none | T69: none | U69: 50.48 | V69: 99.97816011 | W69: 1.03 | X69: Folded Dipole | Y69: Yes | Z69: 637.7621916 | AA69: 2034.36 | AB69: 2217.296 | AC69: 637.7621916 | AD69: 0.9935
A70: EAntenna 50LFA5 | B70: 4.4236608 | C70: 10.5 | D70: 6.722 | E70: 5.317 | F70: 16.57 | G70: 9339.727965 | H70: 4.364718236 | I70: -23.09419029 | J70: -28.4744232 | K70: 13.46 | L70: 13.52 | M70: 5.04 | N70: 3.99 | O70: 15.45 | P70: 13.02 | Q70: 13.02 | R70: 21.33 | S70: 21.33 | T70: none | U70: 50.03 | V70: 99.51325041 | W70: 1.15 | X70: LFA Loop | Y70: Yes | Z70: 350.2345116 | AA70: 1958.96 | AB70: 1984.079104 | AC70: 350.2345116 | AD70: 0.9851724138
A71: DK7ZB 5 28 ohm | B71: 4.48344 | C71: 10.76 | D71: 6.994 | E71: 5.656 | F71: 16.69 | G71: 13572.44134 | H71: 3.942889099 | I71: -24.59562391 | J71: -29.97585683 | K71: 13.72 | L71: 13.63 | M71: 5.24 | N71: 4.25 | O71: 15.32 | P71: 13.27 | Q71: 13.05 | R71: 13.26 | S71: 13.32 | T71: none | U71: 29.11 | V71: 99.81456468 | W71: 1.09 | X71: Dipole | Y71: No | Z71: 751.4373002 | AA71: 2282.41 | AB71: 2309.499144 | AC71: 751.4373002 | AD71: 0.9865862069
A72: YU7EF EF0605A | B72: 4.48344 | C72: 10.74 | D72: 6.994 | E72: 5.672 | F72: 16.68 | G72: 14035.3656 | H72: 3.317522321 | I72: -24.75991221 | J72: -30.14014513 | K72: 13.7 | L72: 13.62 | M72: 5.2425 | N72: 4.2525 | O72: 15.23 | P72: 13.23 | Q72: 12.99 | R72: 12.92 | S72: 12.92 | T72: none | U72: 49.66 | V72: 99.91516637 | W72: 1.06 | X72: Dipole | Y72: No | Z72: 795.3710267 | AA72: 2321.89 | AB72: 2345.134277 | AC72: 795.3710267 | AD72: 0.9886896552
A73: IZ1MYT 5 | B73: 4.48344 | C73: 11.04 | D73: 7.235 | E73: 5.977 | F73: 17.02 | G73: 14551.16631 | H73: 4.591565083 | I73: -24.55729725 | J73: -29.93753016 | K73: 14.01 | L73: 13.98 | M73: 5.43 | N73: 4.485 | O73: 15.66 | P73: 13.54 | Q73: 13.27 | R73: 14.15 | S73: 13.84 | T73: none | U73: 49.41 | V73: 98.67648211 | W73: 1.26 | X73: Dipole | Y73: No | Z73: 844.1361915 | AA73: 2352.04 | AB73: 2384.688244 | AC73: 844.1361915 | AD73: 0.9844137931
A74: JK Antennas JK65 | B74: 4.48344 | C74: 10.62 | D74: 6.942 | E74: 5.593 | F74: 16.51 | G74: 15357.96723 | H74: 2.59297916 | I74: -25.33024703 | J74: -30.71047995 | K74: 13.58 | L74: 13.39 | M74: 5.2065 | N74: 4.19475 | O74: 15.24 | P74: 13.14 | Q74: 12.97 | R74: 13.81 | S74: 13.91 | T74: none | U74: 47.65 | V74: 99.67960128 | W74: 1.12 | X74: Dipole | Y74: No | Z74: 920.7915778 | AA74: 2427.75 | AB74: 2446.86428 | AC74: 920.7915778 | AD74: 0.991137931
A75: G0KSC 5el-Q | B75: 4.49539584 | C75: 11.39 | D75: 7.319 | E75: 6.264 | F75: 17.41 | G75: 13103.76357 | H75: 3.645251397 | I75: -23.72801743 | J75: -29.10825034 | K75: 14.37 | L75: 14.38 | M75: 5.49 | N75: 4.695 | O75: 16.25 | P75: 13.88 | Q75: 13.87 | R75: 14.77 | S75: 13.32 | T75: none | U75: 49.1 | V75: 99.38626856 | W75: 1.17 | X75: LFA Vert Loop | Y75: Yes | Z75: 707.0457544 | AA75: 2248.87 | AB75: 2273.492668 | AC75: 707.0457544 | AD75: 0.9875862069
A76: N6CA 4 | B76: 4.5133296 | C76: 10.88 | D76: 7.046 | E76: 5.72 | F76: 16.8 | G76: 13150.01344 | H76: 4.798093102 | I76: -24.33630925 | J76: -29.71654216 | K76: 13.83 | L76: 13.75 | M76: 5.2875 | N76: 4.29 | O76: 15.42 | P76: 13.38 | Q76: 13.16 | R76: 14.25 | S76: 14.24 | T76: none | U76: 19.45 | V76: 97.88881584 | W76: 1.34 | X76: Dipole | Y76: No | Z76: 711.3199047 | AA76: 2244.62 | AB76: 2276.959478 | AC76: 711.3199047 | AD76: 0.9837241379
A77: G0KSC 5 4.6m LFA | B77: 4.5432192 | C77: 10.78 | D77: 6.968 | E77: 5.593 | F77: 16.85 | G77: 10304.92519 | H77: 5.004910902 | I77: -23.22950904 | J77: -28.60974195 | K77: 13.76 | L77: 13.83 | M77: 5.23 | N77: 4.2 | O77: 15.77 | P77: 13.76 | Q77: 13.83 | R77: 18.87 | S77: 18.11 | T77: none | U77: 48.5 | V77: 99.77324263 | W77: 1.1 | X77: LFA Loop | Y77: Yes | Z77: 441.6520908 | AA77: 2028.23 | AB77: 2058.228918 | AC77: 441.6520908 | AD77: 0.9830344828
A78: G0KSC 5 4.7m LFA | B78: 4.7225568 | C78: 10.98 | D78: 7.072 | E78: 5.736 | F78: 16.97 | G78: =Z78/9000*J$8+(1-Z78/9000)*F$8+290*(1/AD78-1) -> 11508.34706 | H78: 3.512023174 | I78: -23.60867969 | J78: -28.9889126 | K78: 13.96 | L78: 13.95 | M78: 5.3 | N78: 4.305 | O78: 15.8 | P78: 13.5 | Q78: 13.37 | R78: 17.08 | S78: 17.08 | T78: none | U78: 50.4 | V78: 99.99019704 | W78: 1.02 | X78: LFA Loop | Y78: Yes | Z78: 555.8499933 | AA78: 2128.59 | AB78: 2150.856106 | AC78: 555.8499933 | AD78: 0.9880344828
A79: Telrex 5 | B79: 4.782336 | C79: 11.03 | D79: 7.235 | E79: 5.977 | F79: 16.98 | G79: 15001.66703 | H79: 3.205034341 | I79: =F79-10*LOG((Z79/9000*J$8+(1-Z79/9000)*F$8)+290*(10^(0.1*P$8)/AD79-1))+10*LOG(1/AD79) -> -24.74963203 | J79: =10*LOG(10^(F79/10)*1E-20/AD79/1.380649E-23/2500/(Z79/9000*J$8+(1-Z79/9000)*F$8+290*(10^(P$8/10)/AD79-1))) -> -30.12986495 | K79: 13.99 | L79: 13.94 | M79: 5.43 | N79: 4.49 | O79: 15.55 | P79: 13.53 | Q79: 13.25 | R79: 13.05 | S79: 12.77 | T79: none | U79: 19.87 | V79: 98.39629298 | W79: 1.29 | X79: Dipole | Y79: No | Z79: 886.9645948 | AA79: 2396.15 | AB79: 2419.426838 | AC79: 886.9645948 | AD79: 0.9890689655
A80: M² 6M5 | B80: 4.782336 | C80: 11.08 | D80: 7.235 | E80: 5.95 | F80: 17.03 | G80: 14918.27695 | H80: 4.880785414 | I80: -24.65085368 | J80: -30.03108659 | K80: 14.03 | L80: 14.03 | M80: 5.43 | N80: 4.46 | O80: 15.7 | P80: 13.54 | Q80: 13.4 | R80: 13.9 | S80: 14.9 | T80: none | U80: 197.8 | V80: =(1-((W80-1)/(W80+1))^2)*10^2 -> 98.09750297 | W80: 1.32 | X80: T Match | Y80: Yes | Z80: 878.9023322 | AA80: 2377.75 | AB80: 2412.887447 | AC80: 878.9023322 | AD80: 0.9834482759
A81: InnoV 6 OP-DES | B81: 4.782336 | C81: 10.93 | D81: 6.981 | E81: 5.578 | F81: 17 | G81: 9872.229752 | H81: =290*(1/AD81-1) -> 3.164151009 | I81: -22.92126675 | J81: -28.30149966 | K81: 14 | L81: 14 | M81: 5.24 | N81: 4.19 | O81: 15.87 | P81: 13.46 | Q81: 13.47 | R81: 17.5 | S81: 17.04 | T81: none | U81: 50.7 | V81: 99.97816011 | W81: 1.03 | X81: Bent Dipole | Y81: No | Z81: 400.8170852 | AA81: 2006.38 | AB81: 2025.107191 | AC81: 400.8170852 | AD81: 0.9892068966
A82: I0JXX 5JXX6 | B82: 4.82418144 | C82: 11.18 | D82: 7.495 | E82: 6.314 | F82: 17.13 | G82: 18317.18444 | H82: 4.035382141 | I82: -25.45169279 | J82: -30.8319257 | K82: 14.13 | L82: 14.1 | M82: 5.625 | N82: 4.732 | O82: 15.39 | P82: 13.64 | Q82: 13.26 | R82: 11.98 | S82: 10.8 | T82: none | U82: 17.77 | V82: 96.86870226 | W82: 1.43 | X82: *Hairpin | Y82: No | Z82: 1201.119856 | AA82: 2641.52 | AB82: 2674.241661 | AC82: 1201.119856 | AD82: 0.9862758621
A83: G0KSC 5 LFA 4.9m | B83: 4.8421152 | C83: 11.02 | D83: 7.02 | E83: 5.69 | F83: 17.03 | G83: 10094.61042 | H83: 4.715447154 | I83: -22.96468198 | J83: -28.34491489 | K83: 13.98 | L83: 14.02 | M83: 5.27 | N83: 4.27 | O83: 15.87 | P83: 13.52 | Q83: 13.47 | R83: 19.3 | S83: 18.7 | T83: none | U83: 49.7 | V83: 99.85207101 | W83: 1.08 | X83: LFA Loop | Y83: Yes | Z83: 421.7465752 | AA83: 2014.05 | AB83: 2042.083333 | AC83: 421.7465752 | AD83: 0.984
A84: G4CQM WS66082 | B84: 4.9018944 | C84: 10.66 | D84: 6.745 | E84: 5.372 | F84: 16.65 | G84: 9635.938791 | H84: 2.420027816 | I84: -23.17762194 | J84: -28.55785485 | K84: 13.63 | L84: 13.62 | M84: 5.0625 | N84: 4.0275 | O84: 15.43 | P84: 13.16 | Q84: 13.05 | R84: 18.77 | S84: 18.8 | T84: none | U84: 49.89 | V84: 99.9405116 | W84: 1.05 | X84: Dipole | Y84: No | Z84: 378.4927219 | AA84: 1992.79 | AB84: 2006.999652 | AC84: 378.4927219 | AD84: 0.9917241379
A85: W5WVO CC A50-5 MOD | B85: 5.2007904 | C85: 11.29 | D85: 7.465 | E85: 6.264 | F85: 17.32 | G85: 14128.2152 | H85: 5.098073617 | I85: -24.12225504 | J85: -29.50248795 | K85: 14.22 | L85: 14.31 | M85: 5.51 | N85: 4.57 | O85: 15.8 | P85: 13.72 | Q85: 13.56 | R85: 12.35 | S85: 11.41 | T85: none | U85: 11.96 | V85: 95.08092477 | W85: 1.57 | X85: *Gamma | Y85: No | Z85: 804.0022551 | AA85: 2316.51 | AB85: 2352.135163 | AC85: =(AB85-1700)*1.232876712 -> 804.0022551 | AD85: 0.9827241379
A86: M² 6M5X | B86: 5.4399072 | C86: 11.54 | D86: 7.59 | E86: 6.39 | F86: 17.51 | G86: 14084.30202 | H86: 7.941687037 | I86: -23.87730407 | J86: -29.25753698 | K86: 14.5 | L86: 14.48 | M86: 5.69 | N86: 4.79 | O86: 16.18 | P86: 14.01 | Q86: 13.85 | R86: 12.7 | S86: 12.58 | T86: none | U86: 13.7 | V86: 96.25390219 | W86: 1.48 | X86: *Hairpin | Y86: No | Z86: 799.5707984 | AA86: 2293.67 | AB86: 2348.540759 | AC86: 799.5707984 | AD86: 0.9733448276
A87: M² 6M5XHP | B87: 5.4399072 | C87: 11.55 | D87: 7.587 | E87: 6.408 | F87: 17.52 | G87: 14139.19063 | H87: 7.541128604 | I87: -23.88994888 | J87: -29.27018179 | K87: 14.51 | L87: 14.48 | M87: 5.69 | N87: 4.808 | O87: 16.19 | P87: 14.02 | Q87: 13.86 | R87: 14.43 | S87: 12.53 | T87: none | U87: 13.69 | V87: 96.12748181 | W87: 1.49 | X87: *Hairpin | Y87: No | Z87: 804.8109257 | AA87: 2300.51 | AB87: 2352.791084 | AC87: 804.8109257 | AD87: 0.9746551724
A88: InnoV 5 LFA-Q | B88: 5.4996864 | C88: 11.91 | D88: 7.713 | E88: 6.879 | F88: 17.93 | G88: 13266.2754 | H88: 5.004910902 | I88: -23.24134416 | J88: -28.62157707 | K88: 14.86 | L88: 14.86 | M88: 5.78 | N88: 5.16 | O88: 16.75 | P88: 14.38 | Q88: 14.36 | R88: 19.7 | S88: 14.6 | T88: none | U88: 28.89 | V88: 98.29867675 | W88: 1.3 | X88: LFA Vert Loop | Y88: Yes | Z88: 722.3192334 | AA88: 2252.02 | AB88: 2285.881156 | AC88: 722.3192334 | AD88: 0.9830344828
A89: Directive DSEJX6-50 | B89: 5.587561824 | C89: 11.23 | D89: 7.436 | E89: 6.214 | F89: 17.27 | G89: 13236.23545 | H89: 9.213719002 | I89: -23.8302767 | J89: -29.21050962 | K89: 14.23 | L89: 14.24 | M89: 5.58 | N89: 4.657 | O89: 16.16 | P89: 13.78 | Q89: 13.73 | R89: 15.3 | S89: 13.3 | T89: none | U89: 200.2 | V89: 94.12304867 | W89: 1.64 | X89: T Match | Y89: Yes | Z89: 719.0732478 | AA89: 2221.87 | AB89: 2283.248301 | AC89: 719.0732478 | AD89: 0.9692068966
A90: Create CL6DX 6el | B90: 5.6192448 | C90: 11.08 | D90: 7.019 | E90: 5.72 | F90: 16.95 | G90: 12169.29871 | H90: 2.084881742 | I90: -23.89114957 | J90: -29.27138248 | K90: 14.09 | L90: 13.93 | M90: 5.27 | N90: 4.29 | O90: 15.51 | P90: 13.51 | Q90: 13.29 | R90: 14.78 | S90: 15.13 | T90: none | U90: 47.8 | V90: 99.9405116 | W90: 1.05 | X90: Dipole | Y90: No | Z90: 618.6281006 | AA90: 2188.13 | AB90: 2201.776126 | AC90: 618.6281006 | AD90: 0.992862069
A91: BQH 5 | B91: 5.6192448 | C91: 11.29 | D91: 7.263 | E91: 5.977 | F91: 17.27 | G91: 11404.9549 | H91: 8.36449427 | I91: -23.19880845 | J91: -28.57904137 | K91: 14.25 | L91: 14.25 | M91: 5.445 | N91: 4.85 | O91: 16.28 | P91: 13.78 | Q91: 13.84 | R91: 17.01 | S91: 16.05 | T91: none | U91: 16.53 | V91: 98.39629298 | W91: 1.29 | X91: Dipole | Y91: No | Z91: 545.5909188 | AA91: 2090.6 | AB91: 2142.534856 | AC91: 545.5909188 | AD91: 0.9719655172
A92: EAntennas 50LFA5L | B92: 5.679024 | C92: 11.22 | D92: 7.072 | E92: 5.753 | F92: 17.15 | G92: 9460.875447 | H92: 4.68446687 | I92: -22.56514543 | J92: -27.94537834 | K92: 14.12 | L92: 14.13 | M92: 5.3 | N92: 4.31 | O92: 16.01 | P92: 13.66 | Q92: 13.59 | R92: 21.3 | S92: 22.34 | T92: none | U92: 48.7 | V92: 98.09750297 | W92: 1.32 | X92: LFA Loop | Y92: Yes | Z92: 361.6861712 | AA92: 1966.29 | AB92: 1993.367672 | AC92: 361.6861712 | AD92: 0.9841034483
A93: Innov 6 LFA MAX5.8m | B93: 5.7985824 | C93: 11.19 | D93: 7.05 | E93: 5.74 | F93: 17.16 | G93: 9350.685982 | H93: 4.086792321 | I93: -22.51333085 | J93: -27.89356376 | K93: 14.16 | L93: 14.2 | M93: 5.29 | N93: 4.31 | O93: 16.11 | P93: 13.69 | Q93: 13.67 | R93: 23.7 | S93: 20.8 | T93: none | U93: 51 | V93: 99.67960128 | W93: 1.12 | X93: LFA Loop | Y93: Yes | Z93: 351.2994177 | AA93: 1961.389 | AB93: 1984.942861 | AC93: 351.2994177 | AD93: 0.9861034483
A94: BV 6-6m | B94: 5.8583616 | C94: 11.63 | D94: 7.745 | E94: 6.583 | F94: 17.61 | G94: 16133.53868 | H94: 4.045662739 | I94: -24.42202356 | J94: -29.80225648 | K94: 14.6 | L94: 14.56 | M94: 5.8125 | N94: 4.935 | O94: 16.28 | P94: 14.13 | Q94: 13.91 | R94: 14.94 | S94: 11.9 | T94: none | U94: 46.98 | V94: 99.51325041 | W94: 1.15 | X94: Dipole | Y94: No | Z94: 994.1600372 | AA94: 2475.88 | AB94: 2506.374253 | AC94: 994.1600372 | AD94: 0.9862413793
A95: Eantenna 50LFA5XL | B95: 5.8583616 | C95: 11.7 | D95: 7.587 | E95: 6.387 | F95: 17.7 | G95: 12870.96835 | H95: 4.385326239 | I95: -23.34961467 | J95: -28.72984759 | K95: 14.67 | L95: 14.65 | M95: 5.69 | N95: 4.79 | O95: 16.47 | P95: 14.21 | Q95: 14.11 | R95: 18.09 | S95: 14.45 | T95: none | U95: 54.26 | V95: 98.58526267 | W95: 1.27 | X95: LFA Loop | Y95: Yes | Z95: 684.9120386 | AA95: 2226.26 | AB95: 2255.539765 | AC95: 684.9120386 | AD95: 0.9851034483
A96: YU7EF EF0606 W1 | B96: 5.9181408 | C96: 11.56 | D96: 7.59 | E96: 6.408 | F96: 17.53 | G96: 14983.12349 | H96: 3.994266937 | I96: -24.18264871 | J96: -29.56288163 | K96: 14.52 | L96: 14.47 | M96: 5.69 | N96: 4.81 | O96: 16 | P96: 14.02 | Q96: 13.73 | R96: 14.1 | S96: 11.73 | T96: none | U96: 50.35 | V96: 99.97816011 | W96: 1.03 | X96: Dipole | Y96: No | Z96: 885.1322979 | AA96: 2389.03 | AB96: 2417.940642 | AC96: 885.1322979 | AD96: 0.9864137931
A97: Cushcraft A50-6S | B97: 5.97792 | C97: 11.05 | D97: 7.019 | E97: 5.769 | F97: 16.9 | G97: 13182.86533 | H97: 2.064594548 | I97: -24.28738842 | J97: -29.66762134 | K97: 13.97 | L97: 13.87 | M97: 5.265 | N97: 4.3275 | O97: 15.4 | P97: 13.48 | Q97: 13.18 | R97: 13.52 | S97: 13.26 | T97: none | U97: 37.43 | V97: 99.96155325 | W97: 1.04 | X97: *Gamma | Y97: No | Z97: 714.6925715 | AA97: 2265.63 | AB97: 2279.695086 | AC97: 714.6925715 | AD97: 0.9929310345
A98: DK7ZB 5 18 ohm | B98: 5.97792 | C98: 11.52 | D98: 7.649 | E98: 6.473 | F98: 17.49 | G98: 14783.70272 | H98: 5.440174243 | I98: -24.14344609 | J98: -29.523679 | K98: 14.48 | L98: 14.44 | M98: 5.74 | N98: 4.86 | O98: 15.86 | P98: 13.98 | Q98: 13.53 | R98: 11.89 | S98: 10.6 | T98: none | U98: 16.89 | V98: 97.450745 | W98: 1.38 | X98: Dipole | Y98: No | Z98: 866.0948074 | AA98: 2363.6 | AB98: 2402.499122 | AC98: 866.0948074 | AD98: 0.9815862069
A99: DK7ZB 5 12.5 ohm | B99: 5.97792 | C99: 11.72 | D99: 7.6818 | E99: 6.473 | F99: 17.68 | G99: 13024.72799 | H99: 5.243110409 | I99: -23.40838652 | J99: -28.78861944 | K99: 14.68 | L99: 14.64 | M99: 5.76 | N99: 4.85 | O99: 16.22 | P99: 14.2 | Q99: 13.89 | R99: 14.3 | S99: 12.1 | T99: none | U99: 13 | V99: 97.450745 | W99: 1.38 | X99: Dipole | Y99: No | Z99: 699.4035792 | AA99: 2232.18 | AB99: 2267.294014 | AC99: 699.4035792 | AD99: 0.9822413793
A100: DK7ZB 6 50 ohm | B100: 5.97792 | C100: 11.62 | D100: 7.78 | E100: 6.61 | F100: 17.63 | G100: 14700.94501 | H100: 6.158044864 | I100: -23.96865815 | J100: -29.34889106 | K100: 14.68 | L100: 14.68 | M100: 5.84 | N100: 4.96 | O100: 16.56 | P100: 14.25 | Q100: 14.09 | R100: 14.56 | S100: 12.17 | T100: none | U100: 50.07 | V100: 98.09750297 | W100: 1.32 | X100: Dipole | Y100: No | Z100: 858.1832634 | AA100: 2352.29 | AB100: 2396.08198 | AC100: 858.1832634 | AD100: 0.9792068966
A101: G0KSC 6 6.0m LFA | B101: 5.97792 | C101: 11.25 | D101: 7.125 | E101: 5.82 | F101: 17.25 | G101: 9317.324588 | H101: 4.086792321 | I101: -22.40790002 | J101: -27.78813293 | K101: 14.23 | L101: 14.25 | M101: 5.35 | N101: 4.37 | O101: 16.17 | P101: 13.77 | Q101: 13.76 | R101: 20.75 | S101: 18.72 | T101: none | U101: 50.8 | V101: 99.77324263 | W101: 1.1 | X101: LFA Loop | Y101: Yes | Z101: 348.1375333 | AA101: 1958.86 | AB101: 1982.378221 | AC101: 348.1375333 | AD101: 0.9861034483
A102: OptiBeam OB6-6 | B102: 6.0376992 | C102: 11.65 | D102: 7.53 | E102: 6.37 | F102: 17.62 | G102: 13345.53283 | H102: 3.358448444 | I102: -23.60131146 | J102: -28.98154437 | K102: 14.6 | L102: 14.58 | M102: 5.65 | N102: 4.78 | O102: 16.22 | P102: 14.12 | Q102: 13.9 | R102: 14.58 | S102: 12.54 | T102: none | U102: 26 | V102: 99.2473051 | W102: 1.19 | X102: Dipole | Y102: No | Z102: 729.9870409 | AA102: 2269.18 | AB102: 2292.1006 | AC102: 729.9870409 | AD102: 0.9885517241
A103: EAntenna 50LFA6S | B103: 6.0974784 | C103: 11.85 | D103: 7.649 | E103: 6.494 | F103: 17.84 | G103: 12162.74857 | H103: 4.643169954 | I103: -22.96112029 | J103: -28.34135321 | K103: 14.8 | L103: 14.81 | M103: 5.74 | N103: 4.87 | O103: 16.62 | P103: 14.36 | Q103: 14.25 | R103: 19.6 | S103: 14.58 | T103: none | U103: 53.9 | V103: 97.67308245 | W103: 1.36 | X103: LFA Loop | Y103: Yes | Z103: 617.7648334 | AA103: 2170.96 | AB103: 2201.075921 | AC103: 617.7648334 | AD103: 0.9842413793
A104: PY1MHZ 6 V1 | B104: 6.15 | C104: 11.55 | D104: 7.56 | E104: 6.325 | F104: 17.57 | G104: 12240.56054 | H104: 6.271766815 | I104: -23.2348601 | J104: -28.61509302 | K104: 14.55 | L104: 14.56 | M104: 5.7 | N104: 4.75 | O104: 16.62 | P104: 14.13 | Q104: 14.14 | R104: 17.84 | S104: 15.36 | T104: none | U104: 51.28 | V104: 97.99406878 | W104: 1.33 | X104: Folded Dipole | Y104: Yes | Z104: 624.9852461 | AA104: 2166.353 | AB104: 2206.932478 | AC104: 624.9852461 | AD104: 0.9788310345
A105: M² 6M5XHG | B105: 6.1572576 | C105: 12.02 | D105: 8.05 | E105: 6.95 | F105: 18.01 | G105: 15400.66516 | H105: 7.63590034 | I105: -23.76831434 | J105: -29.14854725 | K105: 14.99 | L105: 14.96 | M105: 6.04 | N105: 5.21 | O105: 16.59 | P105: 14.5 | Q105: 14.2 | R105: 17.6 | S105: 12 | T105: none | U105: 9 | V105: 94.94621717 | W105: 1.58 | X105: *Hairpin | Y105: No | Z105: 924.3603974 | AA105: 2394.35 | AB105: 2449.758989 | AC105: 924.3603974 | AD105: 0.9743448276
A106: *M² 6M5XHG | B106: 6.1572576 | C106: 12.02 | D106: 7.62 | E106: 7.01 | F106: 17.98 | G106: 15197.59315 | H106: 7.656968925 | I106: -23.74057205 | J106: -29.12080496 | K106: 14.92 | L106: 15 | M106: 5.715 | N106: 5.2575 | O106: 16.45 | P106: 14.39 | Q106: 14.22 | R106: 17.6 | S106: 12 | T106: none | U106: 9 | V106: 94.94621717 | W106: 1.58 | X106: *Hairpin | Y106: No | Z106: 905.1118957 | AA106: 2378.99 | AB106: 2434.146316 | AC106: 905.1118957 | AD106: 0.9742758621
A107: InnoV 6 LFA 6.1m | B107: 6.1572576 | C107: 11.39 | D107: 7.26 | E107: 6 | F107: 17.38 | G107: 10359.45856 | H107: 4.68446687 | I107: -22.7270033 | J107: -28.10723621 | K107: 14.36 | L107: 14.41 | M107: 5.45 | N107: 4.5 | O107: 16.34 | P107: 13.91 | Q107: 13.89 | R107: 24.6 | S107: 18.3 | T107: none | U107: 49.7 | V107: 99.57201502 | W107: 1.14 | X107: LFA Loop | Y107: Yes | Z107: 446.8509565 | AA107: 2034.27 | AB107: 2062.445776 | AC107: 446.8509565 | AD107: 0.9841034483
A108: InnoV 5 LFA 6.2m Ver 3 | B108: 6.19312512 | C108: 11.79 | D108: 7.436 | E108: 6.224 | F108: 17.77 | G108: 10838.96827 | H108: 4.086792321 | I108: -22.54125965 | J108: -27.92149256 | K108: 14.77 | L108: 14.75 | M108: 5.58 | N108: 4.67 | O108: 16.48 | P108: 14.27 | Q108: 14.18 | R108: 21.8 | S108: 15.4 | T108: none | U108: 47.03 | V108: 96 | W108: 1.5 | X108: LFA Loop | Y108: Yes | Z108: 492.3539732 | AA108: 2074.21 | AB108: 2099.353778 | AC108: 492.3539732 | AD108: 0.9861034483
A109: WiMo ZX 6-6 | B109: 6.2170368 | C109: 11.45 | D109: 7.75 | E109: 6.59 | F109: 17.47 | G109: 15866.59379 | H109: 3.36868176 | I109: -24.49978989 | J109: -29.8800228 | K109: 14.43 | L109: 14.44 | M109: 5.81 | N109: 4.94 | O109: 16.43 | P109: 14.01 | Q109: 13.95 | R109: 15.9 | S109: 11.01 | T109: none | U109: 21.4 | V109: 99.88564494 | W109: 1.07 | X109: Dipole | Y109: No | Z109: 968.924031 | AA109: 2460.69 | AB109: 2485.905048 | AC109: 968.924031 | AD109: 0.9885172414
A110: G0KSC 6 6.2m LFA | B110: 6.2170368 | C110: 11.22 | D110: 7.152 | E110: 5.871 | F110: 17.23 | G110: =Z110/9000*J$8+(1-Z110/9000)*F$8+290*(1/AD110-1) -> 9704.287754 | H110: 4.984216065 | I110: -22.59044273 | J110: -27.97067564 | K110: 14.19 | L110: 14.24 | M110: 5.36 | N110: 4.4 | O110: 16.21 | P110: 13.76 | Q110: 13.74 | R110: 29.86 | S110: none | T110: none | U110: 46.8 | V110: 99.51325041 | W110: 1.15 | X110: LFA Loop | Y110: Yes | Z110: 384.7275889 | AA110: 1982.96 | AB110: 2012.056822 | AC110: 384.7275889 | AD110: 0.9831034483
A111: G0KSC 6 6.4m LFA | B111: 6.2170368 | C111: 11.6 | D111: 7.319 | E111: 6.107 | F111: 17.59 | G111: 9832.324237 | H111: 4.705119669 | I111: -22.29113364 | J111: -27.67136656 | K111: 14.56 | L111: 14.58 | M111: 5.49 | N111: 4.58 | O111: 16.36 | P111: 14.09 | Q111: 14 | R111: 20.36 | S111: 16.99 | T111: none | U111: 48.37 | V111: 99.67960128 | W111: 1.12 | X111: LFA Loop | Y111: Yes | Z111: 396.8889223 | AA111: 1994.27 | AB111: 2021.921015 | AC111: 396.8889223 | AD111: 0.9840344828
A112: EAntenna 50LFA6M | B112: 6.276816 | C112: 11.69 | D112: 7.406 | E112: 6.165 | F112: 17.77 | G112: 9835.859599 | H112: 4.653493098 | I112: -22.11344276 | J112: -27.49367567 | K112: 14.67 | L112: 14.7 | M112: 5.56 | N112: 4.63 | O112: 16.61 | P112: 14.23 | Q112: 14.18 | R112: 24.64 | S112: 18.4 | T112: none | U112: 51.76 | V112: 98.49184364 | W112: 1.28 | X112: LFA Loop | Y112: Yes | Z112: 397.2288854 | AA112: 1994.84 | AB112: 2022.196763 | AC112: 397.2288854 | AD112: 0.9842068966
A113: +PY1MHZ 6 V2 | B113: 6.3 | C113: 11.67 | D113: 7.618 | E113: 6.387 | F113: 17.677 | G113: 12267.08238 | H113: 5.105322072 | I113: -23.15427198 | J113: -28.53450489 | K113: 14.65 | L113: 14.65 | M113: 5.71 | N113: 4.79 | O113: 16.59 | P113: 14.21 | Q113: 14.16 | R113: 17.84 | S113: 15.4 | T113: none | U113: 51.28 | V113: 97.99406878 | W113: 1.33 | X113: Folded Dipole | Y113: Yes | Z113: 627.6094519 | AA113: 2011.88 | AB113: 2209.061 | AC113: 627.6094519 | AD113: 0.9827
A114: Cushcraft LFA-6M5EL | B114: 6.32463936 | C114: 11.66 | D114: 7.348 | E114: 6.126 | F114: 17.61 | G114: 9987.009153 | H114: 3.706782147 | I114: -22.35320394 | J114: -27.73343685 | K114: 14.6 | L114: 14.6 | M114: 5.51 | N114: 4.6 | O114: 16.38 | P114: 14.14 | Q114: 14.02 | R114: 21.51 | S114: 17.95 | T114: none | U114: 43.07 | V114: 95.21484375 | W114: 1.56 | X114: LFA Loop | Y114: Yes | Z114: 411.6440747 | AA114: 2011.88 | AB114: 2033.889083 | AC114: 411.6440747 | AD114: 0.9873793103
A115: InnoV 6 LFA 6.4m | B115: 6.4561536 | C115: 11.63 | D115: 7.57 | E115: 6.39 | F115: 17.73 | G115: 11757.22448 | H115: 4.674141556 | I115: -22.92407764 | J115: -28.30431055 | K115: 14.69 | L115: 14.73 | M115: 5.68 | N115: 4.79 | O115: 16.68 | P115: 14.25 | Q115: 14.24 | R115: 24.9 | S115: 15.1 | T115: none | U115: 49.79 | V115: 99.62749895 | W115: 1.13 | X115: LFA Loop | Y115: Yes | Z115: 579.3276438 | AA115: 2140.08 | AB115: 2169.899089 | AC115: 579.3276438 | AD115: 0.984137931
A116: IZ1MYT 6 | B116: 6.5159328 | C116: 12.05 | D116: 7.95 | E116: 6.82 | F116: 18.04 | G116: 13684.81724 | H116: 5.429795904 | I116: -23.25946443 | J116: -28.63969734 | K116: 15.02 | L116: 15 | M116: 5.96 | N116: 5.12 | O116: 16.59 | P116: 14.52 | Q116: 14.24 | R116: 17.15 | S116: 12.04 | T116: none | U116: 53.3 | V116: 99.17355372 | W116: 1.2 | X116: Dipole | Y116: No | Z116: 761.9469983 | AA116: 2280.75 | AB116: 2318.023677 | AC116: 761.9469983 | AD116: 0.9816206897
A117: G0KSC 6el-Q | B117: 6.6952704 | C117: 12.05 | D117: 7.649 | E117: 6.663 | F117: 18.06 | G117: 10523.15367 | H117: 3.512023174 | I117: -22.13195426 | J117: -27.51218718 | K117: 15.03 | L117: 15.05 | M117: 5.7375 | N117: 4.995 | O117: 16.98 | P117: 14.57 | Q117: 14.57 | R117: 24.81 | S117: 16.09 | T117: none | U117: 48.59 | V117: 99.77324263 | W117: 1.1 | X117: LFA Vert Loop | Y117: Yes | Z117: 462.4765676 | AA117: 2053.76 | AB117: 2075.119883 | AC117: 462.4765676 | AD117: 0.9880344828
A118: InnoV 6 LFA 6.83m | B118: 6.8148288 | C118: 11.9 | D118: 7.56 | E118: 6.37 | F118: 17.87 | G118: 10266.10959 | H118: 4.984216065 | I118: -22.19351073 | J118: -27.57374365 | K118: 14.86 | L118: 14.9 | M118: 5.67 | N118: 4.78 | O118: 16.67 | P118: 14.37 | Q118: 14.31 | R118: 27.1 | S118: 16.5 | T118: none | U118: 50.6 | V118: 99.91516637 | W118: 1.06 | X118: LFA Loop | Y118: Yes | Z118: 437.9752357 | AA118: 2025.42 | AB118: 2055.24658 | AC118: 437.9752357 | AD118: 0.9831034483
A119: YU7EF EF0606W1 6.85m | B119: 6.874608 | C119: 11.82 | D119: 7.62 | E119: 6.43 | F119: 17.83 | G119: 11438.17726 | H119: 4.354415316 | I119: -22.7098593 | J119: -28.09009221 | K119: 14.79 | L119: 14.8 | M119: 5.72 | N119: 4.82 | O119: 16.57 | P119: 14.31 | Q119: 14.19 | R119: 19.8 | S119: 14.2 | T119: none | U119: 49 | V119: 99.77324263 | W119: 1.1 | X119: Dipole | Y119: No | Z119: 549.1196887 | AA119: 2117.95 | AB119: 2145.397081 | AC119: =(AB119-1700)*1.232876712 -> 549.1196887 | AD119: 0.9852068966
A120: G4CQM 6CQM7UX | B120: 6.874608 | C120: 11.75 | D120: 7.35 | E120: 6.15 | F120: 17.67 | G120: 9661.665457 | H120: 2.694810845 | I120: -22.16507985 | J120: -27.54531277 | K120: 14.69 | L120: 14.67 | M120: 5.51 | N120: 4.61 | O120: 16.48 | P120: 14.23 | Q120: 13.34 | R120: 23.4 | S120: 20.9 | T120: none | U120: 50.4 | V120: 99.72821814 | W120: 1.11 | X120: Dipole | Y120: No | Z120: 380.9049686 | AA120: 1993.13 | AB120: 2008.956252 | AC120: 380.9049686 | AD120: 0.9907931034
A121: K6STI 5 | B121: 6.874608 | C121: 12.47 | D121: 8.265 | E121: 7.235 | F121: 18.42 | G121: 14379.54531 | H121: 5.939193469 | I121: -23.08622244 | J121: -28.46645535 | K121: 15.42 | L121: 15.4 | M121: 6.2 | N121: 5.43 | O121: 17 | P121: 14.91 | Q121: 14.67 | R121: 17.83 | S121: 12.64 | T121: none | U121: 12 | V121: 93.13598671 | W121: 1.71 | X121: Dipole | Y121: No | Z121: 827.7427868 | AA121: 2329.62 | AB121: 2371.391372 | AC121: 827.7427868 | AD121: 0.9799310345
A122: EAntenna 50LFA6 | B122: 6.874608 | C122: 11.72 | D122: 7.348 | E122: 6.145 | F122: 17.66 | G122: 9243.438484 | H122: 4.973869734 | I122: -21.95052648 | J122: -27.3307594 | K122: 14.62 | L122: 14.64 | M122: 5.51 | N122: 4.61 | O122: 16.52 | P122: 14.17 | Q122: 14.11 | R122: 27.2 | S122: 21.28 | T122: none | U122: 49.58 | V122: 99.77324263 | W122: 1.1 | X122: LFA Loop | Y122: Yes | Z122: 341.0507744 | AA122: 1948.19 | AB122: 1976.630073 | AC122: 341.0507744 | AD122: 0.983137931
A123: YU7EF EF0606 | B123: 6.9941664 | C123: 11.86 | D123: 7.465 | E123: 6.304 | F123: 17.77 | G123: 10786.9604 | H123: 2.694810845 | I123: -22.54097746 | J123: -27.92121038 | K123: 14.79 | L123: 14.75 | M123: 5.6 | N123: 4.73 | O123: 16.37 | P123: 14.3 | Q123: 13.77 | R123: 20.9 | S123: 15.4 | T123: none | U123: 49.6 | V123: 99.96155325 | W123: 1.04 | X123: Dipole | Y123: No | Z123: 487.5567636 | AA123: 2078.84 | AB123: 2095.462708 | AC123: 487.5567636 | AD123: 0.9907931034
A124: Create CL6DXX 7el | B124: 7.1137248 | C124: 11.85 | D124: 7.495 | E124: 6.345 | F124: 17.72 | G124: 11508.75987 | H124: 2.298067566 | I124: -22.8767483 | J124: -28.25698122 | K124: 14.76 | L124: 14.69 | M124: 5.62 | N124: 4.76 | O124: 16.27 | P124: 14.32 | Q124: 14.05 | R124: 17.14 | S124: 13.25 | T124: none | U124: 89.4 | V124: 99.85207101 | W124: 1.08 | X124: Folded Dipole | Y124: No | Z124: 556.0041725 | AA124: 2136.35 | AB124: 2150.981162 | AC124: 556.0041725 | AD124: 0.992137931
A125: DK7ZB 6 50 ohm | B125: 7.1137248 | C125: 12.44 | D125: 8.013 | E125: 6.917 | F125: 18.21 | G125: 13518.93651 | H125: 3.645251397 | I125: -23.06292116 | J125: -28.44315408 | K125: 15.24 | L125: 15.19 | M125: 6.0075 | N125: 5.19 | O125: 16.8 | P125: 14.75 | Q125: 14.5 | R125: 16.57 | S125: 13.72 | T125: none | U125: 47.68 | V125: 97.67308245 | W125: 1.36 | X125: Dipole | Y125: No | Z125: 746.3944955 | AA125: 2280.39 | AB125: 2305.408869 | AC125: 746.3944955 | AD125: 0.9875862069
A126: DK7ZB 6 28 ohm | B126: 7.173504 | C126: 12.34 | D126: 8.048 | E126: 6.968 | F126: 18.29 | G126: 13116.63223 | H126: 4.33381164 | I126: -22.84213351 | J126: -28.22236642 | K126: 15.29 | L126: 15.27 | M126: 6.0375 | N126: 5.2275 | O126: 16.88 | P126: 14.79 | Q126: 14.56 | R126: 19.36 | S126: 13.31 | T126: none | U126: 27.49 | V126: 99.67960128 | W126: 1.12 | X126: Dipole | Y126: No | Z126: 708.2001447 | AA126: 2245.21 | AB126: 2274.429006 | AC126: 708.2001447 | AD126: 0.9852758621
A127: W1JR 6 | B127: 7.20937152 | C127: 12.34 | D127: 7.32 | E127: 6.13 | F127: 17.6 | G127: 11320.53876 | H127: 2.03416904 | I127: -22.92938178 | J127: -28.3096147 | K127: 14.5 | L127: 14.49 | M127: 5.49 | N127: 4.5975 | O127: 15.98 | P127: 14 | Q127: 13.71 | R127: 17.6 | S127: 15.4 | T127: none | U127: 47.18 | V127: 99.81456468 | W127: 1.09 | X127: Dipole | Y127: No | Z127: 538.1901995 | AA127: 2123.67 | AB127: 2136.532051 | AC127: 538.1901995 | AD127: 0.9930344828
A128: EAntenna 50LFA6XL | B128: 7.2332832 | C128: 12.32 | D128: 7.944 | E128: 6.842 | F128: 18.29 | G128: 11483.3238 | H128: 4.416243655 | I128: -22.26597701 | J128: -27.64620993 | K128: 15.27 | L128: 15.27 | M128: 5.96 | N128: 5.13 | O128: 17.01 | P128: 14.79 | Q128: 14.66 | R128: 22.42 | S128: 14.03 | T128: none | U128: 50.99 | V128: 99.88564494 | W128: 1.07 | X128: LFA Loop | Y128: Yes | Z128: 553.3926707 | AA128: 2120.98 | AB128: 2148.862944 | AC128: 553.3926707 | AD128: 0.985
A129: Hygain VB-66DX | B129: 7.25719488 | C129: 11.11 | D129: 7.377 | E129: 6.204 | F129: 16.7 | G129: 19033.96217 | H129: 1.548221591 | I129: -26.08468951 | J129: -31.46492243 | K129: 13.95 | L129: 13.63 | M129: 5.535 | N129: 4.65 | O129: 15.14 | P129: 13.52 | Q129: 13.06 | R129: 14.27 | S129: 10.09 | T129: none | U129: 37.13 | V129: 99.67960128 | W129: 1.12 | X129: *Beta Match | Y129: No | Z129: 1269.289443 | AA129: 2716.58 | AB129: 2729.534771 | AC129: 1269.289443 | AD129: 0.9946896552
A130: Hygain VB-66B | B130: 7.25719488 | C130: 10.48 | D130: 7.046 | E130: 5.803 | F130: 15.76 | G130: 22222.24777 | H130: 1.20498615 | I130: -27.70058636 | J130: -33.08081927 | K130: 13.27 | L130: 12.69 | M130: 5.29 | N130: 4.35 | O130: 14.76 | P130: 12.9 | Q130: 12.7 | R130: 12.89 | S130: 9.79 | T130: none | U130: 45.44 | V130: 99.85207101 | W130: 1.08 | X130: *Beta Match | Y130: No | Z130: 1571.497315 | AA130: 2963.55 | AB130: 2974.658934 | AC130: 1571.497315 | AD130: 0.995862069
A131: Tilton 7 | B131: 7.2930624 | C131: 12.15 | D131: 7.91 | E131: 6.818 | F131: 18.08 | G131: 13896.21266 | H131: 2.786519983 | I131: -23.32464822 | J131: -28.70488113 | K131: 15.09 | L131: 15.04 | M131: 5.93 | N131: 5.115 | O131: 16.56 | P131: 14.59 | Q131: 14.28 | R131: 17.14 | S131: 12.42 | T131: none | U131: 25.88 | V131: 99.09707008 | W131: 1.21 | X131: Dipole | Y131: No | Z131: 782.2328899 | AA131: 2315.02 | AB131: 2334.477789 | AC131: 782.2328899 | AD131: 0.9904827586
A132: N6CA 6 | B132: 7.2930624 | C132: 12.23 | D132: 7.91 | E132: 6.794 | F132: 18.2 | G132: 11767.3396 | H132: 6.900374215 | I132: -22.42526182 | J132: -27.80549473 | K132: 15.19 | L132: 15.19 | M132: 5.94 | N132: 5.1 | O132: 16.97 | P132: 14.71 | Q132: 14.6 | R132: 20.07 | S132: 15.01 | T132: none | U132: 21.29 | V132: 99.38626856 | W132: 1.17 | X132: Dipole | Y132: No | Z132: 580.0753264 | AA132: 2126.8 | AB132: 2170.505543 | AC132: 580.0753264 | AD132: 0.9767586207
A133: G0KSC 6 7.3m LFA | B133: 7.2930624 | C133: 12.3 | D133: 7.876 | E133: 6.789 | F133: 18.27 | G133: 11069.02308 | H133: 5.616717635 | I133: -22.1095917 | J133: -27.48982461 | K133: 15.25 | L133: 15.25 | M133: 5.91 | N133: 5.09 | O133: 17.01 | P133: 14.76 | Q133: 14.66 | R133: 22.14 | S133: 15.25 | T133: none | U133: 50.15 | V133: 99.88564494 | W133: 1.07 | X133: LFA Loop | Y133: Yes | Z133: 514.0128188 | AA133: 2082.21 | AB133: 2116.921509 | AC133: 514.0128188 | AD133: 0.981
A134: M² 6M6LN | B134: 7.30202928 | C134: 11.67 | D134: 7.263 | E134: 6.069 | F134: 17.49 | G134: 10865.92571 | H134: 3.686269032 | I134: -22.83788145 | J134: -28.21811436 | K134: 15.44 | L134: 15.43 | M134: 6.07 | N134: 5.27 | O134: 17.19 | P134: 14.96 | Q134: 14.86 | R134: 19.52 | S134: 17.9 | T134: none | U134: 24.87 | V134: 99.72821814 | W134: 1.11 | X134: *Hairpin | Y134: No | Z134: 494.946872 | AA134: 2078.72 | AB134: 2101.456907 | AC134: 494.946872 | AD134: 0.9874482759
A135: I0JXX 6JXX6 | B135: 7.34088576 | C135: 12.43 | D135: 8.656 | E135: 7.649 | F135: 18.4 | G135: 19136.97123 | H135: 5.004910902 | I135: -24.35702119 | J135: -29.7372541 | K135: 15.38 | L135: 15.38 | M135: 6.49 | N135: 5.74 | O135: 16.88 | P135: 14.82 | Q135: 14.51 | R135: 12.07 | S135: 10.14 | T135: none | U135: 15.22 | V135: 95.3479431 | W135: 1.55 | X135: *Hairpin | Y135: No | Z135: 1278.724693 | AA135: 2695.67 | AB135: 2737.187807 | AC135: 1278.724693 | AD135: 0.9830344828
A136: InnoV 7 OP-DES | B136: 7.4126208 | C136: 12.2 | D136: 7.729 | E136: 6.516 | F136: 18.15 | G136: 9739.241085 | H136: 3.440334962 | I136: -21.70862908 | J136: -27.088862 | K136: 15.14 | L136: 15.14 | M136: 5.7975 | N136: 4.89 | O136: 16.94 | P136: 14.66 | Q136: 14.6 | R136: 24.1 | S136: 17.4 | T136: none | U136: 49.5 | V136: 99.96155325 | W136: 1.04 | X136: Bent Dipole | Y136: Yes | Z136: 388.186676 | AA136: 1994.64 | AB136: 2014.862526 | AC136: 388.186676 | AD136: 0.9882758621
A137: N1DPM 5 HyGain mod | B137: 7.6517376 | C137: 11.91 | D137: 7.465 | E137: 6.284 | F137: 17.66 | G137: 11535.26592 | H137: 3.276607616 | I137: -22.93224589 | J137: -28.31247881 | K137: 14.78 | L137: 14.71 | M137: 5.6 | N137: 4.71 | O137: 16.29 | P137: 14.31 | Q137: 14.09 | R137: 14.48 | S137: 18.85 | T137: none | U137: 14.82 | V137: 96.50340406 | W137: 1.46 | X137: *Beta Match | Y137: No | Z137: 558.4235873 | AA137: 2132.13 | AB137: 2152.943577 | AC137: 558.4235873 | AD137: 0.9888275862
A138: DK7ZB 7 50 ohm | B138: 7.7115168 | C138: 12.32 | D138: 8.119 | E138: 7.072 | F138: 18.29 | G138: 13980.24454 | H138: 3.18459125 | I138: -23.1348507 | J138: -28.51508361 | K138: 15.27 | L138: 15.26 | M138: 6.09 | N138: 5.3 | O138: 16.72 | P138: 14.73 | Q138: 14.42 | R138: 19.68 | S138: 11.21 | T138: none | U138: 48.21 | V138: 99.72821814 | W138: 1.11 | X138: Dipole | Y138: No | Z138: 790.1594311 | AA138: 2318.63 | AB138: 2340.907094 | AC138: 790.1594311 | AD138: 0.989137931
A139: UA9TC 7RV el | B139: 7.771296 | C139: 12.42 | D139: 7.94 | E139: 6.87 | F139: 18.36 | G139: 11411.55181 | H139: 2.267593397 | I139: -22.20053698 | J139: -27.58076989 | K139: 15.35 | L139: 15.34 | M139: 5.96 | N139: 5.15 | O139: 16.97 | P139: 14.83 | Q139: 14.74 | R139: 18.2 | S139: 14.3 | T139: none | U139: 50.6 | V139: 99.99019704 | W139: 1.02 | X139: Dipole | Y139: No | Z139: 546.7939967 | AA139: 2129.13 | AB139: 2143.510686 | AC139: 546.7939967 | AD139: 0.9922413793
A140: N1DPM 7 KLM mod | B140: 7.8310752 | C140: 12.09 | D140: 7.827 | E140: 6.757 | F140: 17.9 | G140: 14293.72469 | H140: 3.522267206 | I140: -23.61580224 | J140: -28.99603515 | K140: 14.98 | L140: 14.89 | M140: 5.87 | N140: 5.07 | O140: 16.37 | P140: 14.5 | Q140: 14.22 | R140: 16.91 | S140: 12.88 | T140: none | U140: *198 | V140: 99.57201502 | W140: 1.14 | X140: *KLM Dual Dip | Y140: No | Z140: 819.8380565 | AA140: 2340.08 | AB140: 2364.979757 | AC140: 819.8380565 | AD140: 0.988
A141: YU7EF EF0607 10-14 el dia | B141: 7.9506336 | C141: 12.18 | D141: 7.78 | E141: 6.68 | F141: 18.04 | G141: 12097.02124 | H141: 3.563250489 | I141: -22.75356886 | J141: -28.13380177 | K141: 15.09 | L141: 15.02 | M141: 5.84 | N141: 5.01 | O141: 16.49 | P141: 14.57 | Q141: 14.32 | R141: 17.07 | S141: 13.72 | T141: none | U141: 51.5 | V141: 99.99019704 | W141: 1.02 | X141: Dipole | Y141: No | Z141: 611.6377627 | AA141: 2172.97 | AB141: 2196.106185 | AC141: 611.6377627 | AD141: 0.987862069
A142: M² 6M7 | B142: 7.9506336 | C142: 12.32 | D142: 7.91 | E142: 6.818 | F142: 18.19 | G142: =Z142/9000*J$8+(1-Z142/9000)*F$8+290*(1/AD142-1) -> 11854.75973 | H142: 7.194147996 | I142: -22.46298002 | J142: -27.84321293 | K142: 15.23 | L142: 15.19 | M142: 5.9325 | N142: 5.115 | O142: 16.97 | P142: 14.77 | Q142: 14.65 | R142: 16.92 | S142: 19.71 | T142: none | U142: 202.1 | V142: 99.17355372 | W142: 1.2 | X142: T Match | Y142: Yes | Z142: 588.3328798 | AA142: 2131.52 | AB142: 2177.203336 | AC142: 588.3328798 | AD142: 0.9757931034
A143: IZ1MYT 7 | B143: 8.0104128 | C143: 12.54 | D143: 8.38 | E143: 7.38 | F143: 18.47 | G143: 16750.54078 | H143: 5.212019096 | I143: =F143-10*LOG((Z143/9000*J$8+(1-Z143/9000)*F$8)+290*(10^(0.1*P$8)/AD143-1))+10*LOG(1/AD143) -> -23.70733204 | J143: =10*LOG(10^(F143/10)*1E-20/AD143/1.380649E-23/2500/(Z143/9000*J$8+(1-Z143/9000)*F$8+290*(10^(P$8/10)/AD143-1))) -> -29.08756495 | K143: 15.48 | L143: 15.45 | M143: 6.29 | N143: 5.54 | O143: 17.05 | P143: 14.95 | Q143: 14.75 | R143: 12.63 | S143: 11.76 | T143: none | U143: 52.6 | V143: 99.01793686 | W143: 1.22 | X143: Dipole | Y143: No | Z143: 1052.526947 | AA143: 2513.75 | AB143: 2553.716302 | AC143: 1052.526947 | AD143: 0.9823448276
A144: InnoV 6 LFA 8.2m Ver 3 | B144: 8.29137504 | C144: 12.83 | D144: 8.191 | E144: 7.152 | F144: 18.72 | G144: 11509.50097 | H144: 4.984216065 | I144: -21.83748843 | J144: -27.21772134 | K144: 15.74 | L144: 15.72 | M144: 6.14 | N144: 5.36 | O144: 17.47 | P144: 15.24 | Q144: 15.17 | R144: 24 | S144: 14.2 | T144: none | U144: 44.9 | V144: =(1-((W144-1)/(W144+1))^2)*10^2 -> 94.67455621 | W144: 1.6 | X144: LFA Loop | Y144: Yes | Z144: 555.8198275 | AA144: 2119.39 | AB144: 2150.831638 | AC144: 555.8198275 | AD144: 0.9831034483
A145: Mosley A507LS | B145: 8.4886464 | C145: 10.26 | D145: 6.722 | E145: 5.43 | F145: 15.58 | G145: 22051.84354 | H145: =290*(1/AD145-1) -> 1.63921351 | I145: -27.84078319 | J145: -33.2210161 | K145: 13.07 | L145: 12.73 | M145: 5.04 | N145: 4.07 | O145: 15.08 | P145: 12.77 | Q145: 12.86 | R145: 13.4 | S145: 13.36 | T145: none | U145: 41.8 | V145: 99.88564494 | W145: 1.07 | X145: *Gamma | Y145: No | Z145: 1555.305802 | AA145: 2946.51 | AB145: 2961.525818 | AC145: 1555.305802 | AD145: 0.9943793103
A146: PY1MHZ 7 V1 | B146: 8.5 | C146: 12.59 | D146: 8.34 | E146: 7.263 | F146: 18.58 | G146: =Z146/9000*J$8+(1-Z146/9000)*F$8+290*(1/AD146-1) -> 12444.44599 | H146: =290*(1/AD146-1) -> 6.874172653 | I146: =F146-10*LOG((Z146/9000*J$8+(1-Z146/9000)*F$8)+290*(10^(0.1*P$8)/AD146-1))+10*LOG(1/AD146) -> -22.2874975 | J146: =10*LOG(10^(F146/10)*1E-20/AD146/1.380649E-23/2500/(Z146/9000*J$8+(1-Z146/9000)*F$8+290*(10^(P$8/10)/AD146-1))) -> -27.66773041 | K146: 15.57 | L146: 15.57 | M146: 6.255 | N146: 5.445 | O146: 17.44 | P146: 15.11 | Q146: 15.02 | R146: 24.2 | S146: 13.5 | T146: none | U146: 49.04 | V146: =(1-((W146-1)/(W146+1))^2)*10^2 -> 97.67308245 | W146: 1.36 | X146: Folded Dipole | Y146: Yes | Z146: 644.2517517 | AA146: 2177.811 | AB146: 2222.559754 | AC146: =(AB146-1700)*1.232876712 -> 644.2517517 | AD146: 0.9768448276
A147: DG7YBN GTV_50 7N MK2 | B147: 8.54 | C147: 12.82 | D147: 8.28 | E147: 7.18 | F147: 18.745 | G147: 10521.67118 | H147: 4.356475842 | I147: -21.43393396 | J147: -26.81416688 | K147: 15.75 | L147: 15.76 | M147: 6.21 | N147: 5.39 | O147: 17.66 | P147: 15.29 | Q147: 15.27 | R147: 23.1 | S147: 16.6 | T147: none | U147: 49.3 | V147: 98.63 | W147: 1.45 | X147: Bent Dipole | Y147: Yes | Z147: 462.2560273 | AA147: 2177.811 | AB147: 2074.941 | AC147: 462.2560273 | AD147: 0.9852
A148: PY1MHZ 7 V2 | B148: 8.55 | C148: 12.6 | D148: 8.302 | E148: 7.235 | F148: 18.58 | G148: 12285.3743 | H148: 5.888174676 | I148: -22.24626016 | J148: -27.62649307 | K148: 15.57 | L148: 15.58 | M148: 6.2265 | N148: 5.4265 | O148: 17.47 | P148: 15.12 | Q148: 15.05 | R148: 26.14 | S148: 14.03 | T148: none | U148: 49.04 | V148: 96.62640566 | W148: 1.45 | X148: Folded Dipole | Y148: Yes | Z148: 629.2689039 | AA148: 2177.811 | AB148: 2210.407 | AC148: 629.2689039 | AD148: 0.9801
A149: PY1MHZ 7 V3 | B149: 8.625 | C149: 12.72 | D149: 8.265 | E149: 7.235 | F149: 18.674 | G149: 11539.0923 | H149: 5.978771178 | I149: -21.88003879 | J149: -27.26027171 | K149: 15.67 | L149: 15.66 | M149: 6.2 | N149: 5.43 | O149: 17.39 | P149: 15.18 | Q149: 15.04 | R149: 23.1 | S149: 14.27 | T149: none | U149: 51.54 | V149: 96.50340406 | W149: 1.46 | X149: Folded Dipole | Y149: Yes | Z149: 558.5301368 | AA149: 2184.13 | AB149: 2153.03 | AC149: 558.5301368 | AD149: 0.9798
A150: Directive DSEJX7-50 | B150: 8.693091264 | C150: 12.83 | D150: 8.417 | E150: 7.41 | F150: 18.79 | G150: 12319.07467 | H150: 4.436858873 | I150: -22.06936173 | J150: -27.44959464 | K150: 15.77 | L150: 15.76 | M150: 6.6315 | N150: 5.5575 | O150: 17.52 | P150: 15.36 | Q150: 15.03 | R150: 15.94 | S150: 13.5 | T150: none | U150: 201.47 | V150: 98.58526267 | W150: 1.27 | X150: T Match | Y150: Yes | Z150: 632.6004663 | AA150: 2184.13 | AB150: 2213.109267 | AC150: 632.6004663 | AD150: 0.9849310345
A151: YU7EF 607 | B151: 8.9071008 | C151: 12.73 | D151: 8.2 | E151: 7.18 | F151: 18.64 | G151: 11510.61341 | H151: 4.117647059 | I151: -21.93062177 | J151: -27.31085468 | K151: 15.66 | L151: 15.63 | M151: 6.15 | N151: 5.39 | O151: 17.16 | P151: 15.14 | Q151: 14.91 | R151: 16.31 | S151: 14.62 | T151: none | U151: 49.56 | V151: 99.97816011 | W151: 1.03 | X151: Dipole | Y151: No | Z151: 556.007391 | AA151: 2124.93 | AB151: 2150.983773 | AC151: 556.007391 | AD151: 0.986
A152: G0KSC 7 8.9m LFA | B152: 8.9071008 | C152: 12.77 | D152: 8.265 | E152: 7.235 | F152: 18.74 | G152: 10883.52422 | H152: 4.643169954 | I152: -21.58081827 | J152: -26.96105119 | K152: 15.73 | L152: 15.73 | M152: 6.2 | N152: 5.43 | O152: 17.62 | P152: 15.23 | Q152: 15.3 | R152: 24.99 | S152: 14.86 | T152: none | U152: 49.12 | V152: 99.67960128 | W152: 1.12 | X152: LFA Loop | Y152: Yes | Z152: 496.5241099 | AA152: 2074.17 | AB152: 2102.736223 | AC152: 496.5241099 | AD152: 0.9842413793
A153: JK Antennas JK67 V2 | B153: 9.0864384 | C153: 13.04 | D153: 8.615 | E153: 7.587 | F153: 18.99 | G153: 12054.6861 | H153: 6.533972709 | I153: -21.74488607 | J153: -27.12511899 | K153: 15.99 | L153: 15.68 | M153: 6.465 | N153: 5.6925 | O153: 17.86 | P153: 15.53 | Q153: 15.45 | R153: 20.53 | S153: 16.21 | T153: 20.93 | U153: 51.71 | V153: 95.48019096 | W153: 1.54 | X153: Dipole | Y153: No | Z153: 607.3438199 | AA153: 2150.7 | AB153: 2192.623321 | AC153: 607.3438199 | AD153: 0.9779655172
A154: Create CL6DXZ 8el | B154: 9.1462176 | C154: 12.82 | D154: 8.31 | E154: 7.29 | F154: 18.73 | G154: 11943.60036 | H154: 3.460813734 | I154: -22.0098998 | J154: -27.39013271 | K154: 15.77 | L154: 15.71 | M154: 6.23 | N154: 5.47 | O154: 17.15 | P154: 15.21 | Q154: 14.95 | R154: 18.26 | S154: 12.8 | T154: none | U154: 85.7 | V154: 99.91516637 | W154: 1.06 | X154: Folded Dipole | Y154: Yes | Z154: 597.106739 | AA154: 2161.98 | AB154: 2184.319911 | AC154: 597.106739 | AD154: 0.9882068966
A155: Directive DS50-7 | B155: 9.3255552 | C155: 13.04 | D155: 8.455 | E155: 7.45 | F155: 18.96 | G155: 11061.60515 | H155: 3.860721898 | I155: -21.44244006 | J155: -26.82267297 | K155: 15.98 | L155: 15.99 | M155: 6.345 | N155: 5.5875 | O155: 17.81 | P155: 15.52 | Q155: 15.42 | R155: 18.69 | S155: 18.69 | T155: 18.69 | U155: 202.7 | V155: 99.81456468 | W155: 1.09 | X155: T Match | Y155: Yes | Z155: 513.476199 | AA155: 2092.49 | AB155: 2116.48625 | AC155: =(AB155-1700)*1.232876712 -> 513.476199 | AD155: 0.986862069
A156: DK7ZB 7 28 ohm | B156: 9.3255552 | C156: 13.05 | D156: 8.574 | E156: 7.587 | F156: 19.01 | G156: 11896.85689 | H156: 4.715447154 | I156: -21.69450632 | J156: -27.07473923 | K156: 16 | L156: 15.99 | M156: 6.43 | N156: 5.69 | O156: 17.64 | P156: 15.49 | Q156: 15.3 | R156: 20.11 | S156: 13.42 | T156: none | U156: 27.31 | V156: 99.57201502 | W156: 1.14 | X156: Dipole | Y156: No | Z156: 592.5576343 | AA156: 2150.38 | AB156: 2180.630081 | AC156: 592.5576343 | AD156: 0.984
A157: M² 6M7JHV | B157: 9.3255552 | C157: 13.11 | D157: 8.534 | E157: 7.556 | F157: 19.06 | G157: 11122.81238 | H157: 5.554384115 | I157: -21.34145096 | J157: -26.72168388 | K157: 16.04 | L157: 16.04 | M157: 6.3975 | N157: 5.67 | O157: 17.68 | P157: 15.55 | Q157: 15.38 | R157: 20.48 | S157: 15.2 | T157: 20.48 | U157: 199.7 | V157: 98.09750297 | W157: 1.32 | X157: T Match | Y157: Yes | Z157: 519.1167018 | AA157: 2086.65 | AB157: 2121.061325 | AC157: 519.1167018 | AD157: 0.9812068966
A158: EAntenna 50LFA7 | B158: 9.3255552 | C158: 12.85 | D158: 8.119 | E158: 7.099 | F158: 18.77 | G158: 9452.306453 | H158: 5.26384159 | I158: -20.93275276 | J158: -26.31298568 | K158: 15.8 | L158: 15.8 | M158: 6.09 | N158: 5.325 | O158: 17.62 | P158: 15.33 | Q158: 15.27 | R158: 26.28 | S158: 17.7 | T158: 27.4 | U158: 49.46 | V158: 99.81456468 | W158: 1.09 | X158: LFA Loop | Y158: Yes | Z158: 360.8191186 | AA158: 1962.31 | AB158: 1992.664396 | AC158: 360.8191186 | AD158: 0.9821724138
A159: I0JXX 7JXX6 | B159: 9.37935648 | C159: 13.53 | D159: 9.419 | E159: 8.534 | F159: 19.53 | G159: 14919.39492 | H159: 7.825625044 | I159: -22.10818303 | J159: -27.48841594 | K159: 16.49 | L159: 16.53 | M159: 7.07 | N159: 6.4 | O159: 18.18 | P159: 15.95 | Q159: 15.79 | R159: 15.04 | S159: 12.36 | T159: 16.15 | U159: 30.36 | V159: 87.70450329 | W159: 2.08 | X159: *Hairpin | Y159: No | Z159: 878.7291872 | AA159: 2356.97 | AB159: 2412.747008 | AC159: 878.7291872 | AD159: 0.9737241379
A160: InnoV 7el-Q | B160: 9.3853344 | C160: 13.62 | D160: 9.37 | E160: 8.595 | F160: 19.57 | G160: 13547.99999 | H160: 5.004910902 | I160: -21.69222895 | J160: -27.07246187 | K160: 16.58 | L160: 16.54 | M160: 7.03 | N160: 6.45 | O160: 18.41 | P160: 16.08 | Q160: 15.96 | R160: 19.3 | S160: 12.7 | T160: 19 | U160: 49.6 | V160: 98.39629298 | W160: 1.29 | X160: LFA Vert Loop | Y160: Yes | Z160: 749.0201739 | AA160: 2273.31 | AB160: 2307.538586 | AC160: 749.0201739 | AD160: 0.9830344828
A161: K1WHS 7 9.4m | B161: 9.398 | C161: 13.385 | D161: 8.455 | E161: 7.436 | F161: 18.982 | G161: 2099.847 | H161: =290*(1/AD161-1) -> 3.047696039 | I161: -21.44461839 | J161: -26.82485131 | K161: 16.02 | L161: 16.01 | M161: 6.345 | N161: 5.58 | O161: 17.82 | P161: 15.55 | Q161: 15.45 | R161: 19.08 | S161: 18.18 | T161: none | U161: 199 | V161: 99.85207101 | W161: 1.08 | X161: T Match | Y161: NEC5 | Z161: 516.51863 | AA161: 2151.2 | AB161: 2118.954 | AC161: 516.51863 | AD161: 0.9896
A162: G4CQM 6M7N50 | B162: 9.6842304 | C162: 13.43 | D162: 8.82 | E162: 7.88 | F162: 18.98 | G162: =Z162/9000*J$8+(1-Z162/9000)*F$8+290*(1/AD162-1) -> 11882.41861 | H162: =290*(1/AD162-1) -> 4.416243655 | I162: -21.72364776 | J162: -27.10388067 | K162: 16.35 | L162: 16.33 | M162: 6.62 | N162: 5.91 | O162: 17.95 | P162: 15.84 | Q162: 15.68 | R162: 18.8 | S162: 15.3 | T162: 20 | U162: 52.1 | V162: 95.61155463 | W162: 1.53 | X162: Dipole | Y162: No | Z162: 591.2175786 | AA162: 2151.2 | AB162: 2179.543147 | AC162: =(AB162-1700)*1.232876712 -> 591.2175786 | AD162: 0.985
A163: InnoV 7 9.54m LFA2 WOS | B163: 9.539 | C163: 12.92 | D163: 8.228 | E163: 7.152 | F163: 18.83 | G163: 9417.320148 | H163: =290*(1/AD163-1) -> 4.715447154 | I163: -20.8647689 | J163: -26.24500181 | K163: 15.86 | L163: 15.34 | M163: 6.17 | N163: 5.364 | O163: 17.71 | P163: 15.4 | Q163: 15.68 | R163: 24.37 | S163: 20.3 | T163: none | U163: 49.17 | V163: 99.85207101 | W163: 1.08 | X163: LFA Loop | Y163: No | Z163: 357.5552054 | AA163: 2151.2 | AB163: 1990.017 | AC163: 357.5552054 | AD163: 0.984
A164: G4CQM 6M7N50 | B164: 9.6842304 | C164: 13.43 | D164: 8.82 | E164: 7.88 | F164: 19.32 | G164: 11882.41861 | H164: 4.416243655 | I164: -21.38364776 | J164: -26.76388067 | K164: 16.35 | L164: 16.33 | M164: 6.62 | N164: 5.91 | O164: 17.95 | P164: 15.84 | Q164: 15.68 | R164: 18.8 | S164: 15.3 | T164: 20 | U164: 52.1 | V164: 95.61155463 | W164: 1.53 | X164: Dipole | Y164: No | Z164: 591.2175786 | AA164: 2151.2 | AB164: 2179.543147 | AC164: 591.2175786 | AD164: 0.985
A165: K6STI 6-6 | B165: 9.6842304 | C165: 13.33 | D165: 8.954 | E165: 8.013 | F165: 19.26 | G165: 13264.95147 | H165: 4.746433954 | I165: -21.91470351 | J165: -27.29493642 | K165: 16.26 | L165: 16.26 | M165: 6.712 | N165: 6.0075 | O165: 17.62 | P165: 15.69 | Q165: 15.4 | R165: 17.2 | S165: 12.11 | T165: 17.18 | U165: 17.14 | V165: 96.37922274 | W165: 1.47 | X165: Dipole | Y165: No | Z165: 722.2182532 | AA165: 2253.66 | AB165: 2285.79925 | AC165: 722.2182532 | AD165: 0.9838965517
A166: G0KSC 7 9.7m LFA | B166: 9.7440096 | C166: 13.15 | D166: 8.5 | E166: 7.5 | F166: 19.08 | G166: 10231.16218 | H166: 5.907955385 | I166: -20.95527626 | J166: -26.33550918 | K166: 16.09 | L166: 16.08 | M166: 6.38 | N166: 5.63 | O166: 17.81 | P166: 15.6 | Q166: 15.49 | R166: 23.9 | S166: 15.3 | T166: 24.1 | U166: 50.2 | V166: 99.88564494 | W166: 1.07 | X166: LFA Loop | Y166: Yes | Z166: 434.575485 | AA166: 2017.3 | AB166: 2052.489005 | AC166: 434.575485 | AD166: 0.9800344828
A167: G0KSC 8 OWL | B167: 9.8037888 | C167: 13.27 | D167: 8.656 | E167: 7.68 | F167: 19.15 | G167: 10912.39411 | H167: 9.298907434 | I167: -21.11452484 | J167: -26.49475775 | K167: 16.17 | L167: 16.15 | M167: 6.495 | N167: 5.76 | O167: 17.91 | P167: 15.69 | Q167: 15.58 | R167: 19.9 | S167: 16 | T167: 20 | U167: 12.4 | V167: 99.67960128 | W167: 1.12 | X167: Folded Dipole | Y167: Yes | Z167: 498.8190482 | AA167: 2048.22 | AB167: 2104.597673 | AC167: 498.8190482 | AD167: 0.9689310345
A168: InnoV 8 OP-DES | B168: 9.863568 | C168: 13.16 | D168: 8.228 | E168: 7.125 | F168: 18.83 | G168: 9406.589905 | H168: 4.220542961 | I168: -20.86710296 | J168: -26.24733587 | K168: 16.07 | L168: 16.05 | M168: 6.17 | N168: 5.34 | O168: 17.82 | P168: 15.59 | Q168: 15.53 | R168: 23.82 | S168: 18.64 | T168: 23.82 | U168: 50.5 | V168: 99.96155325 | W168: 1.04 | X168: Bent Dipole | Y168: No | Z168: 356.5851333 | AA168: 1964.855 | AB168: 1989.230164 | AC168: 356.5851333 | AD168: 0.9856551724
A169: *InnoV 8 OP-DES | B169: 9.863568 | C169: 13.16 | D169: 9.088 | E169: 8.083 | F169: 19.01 | G169: 11778.62249 | H169: 4.306001253 | I169: -21.65734108 | J169: -27.037574 | K169: 16.16 | L169: 16.18 | M169: 6.8175 | N169: 6.06 | O169: 18.39 | P169: 15.78 | Q169: 15.76 | R169: 23.82 | S169: 18.64 | T169: 23.82 | U169: 50.5 | V169: 99.96155325 | W169: 1.04 | X169: Bent Dipole | Y169: No | Z169: 581.3905683 | AA169: 2144.043 | AB169: 2171.57235 | AC169: 581.3905683 | AD169: 0.9853689655
A170: YU7EF EF0608E | B170: 9.9233472 | C170: 13.1 | D170: 8.378 | E170: 7.377 | F170: 18.99 | G170: 10283.26358 | H170: 4.354415316 | I170: -21.08995479 | J170: -26.4701877 | K170: 16.02 | L170: 16 | M170: 6.285 | N170: 5.535 | O170: 15.54 | P170: 15.53 | Q170: 15.41 | R170: 20.35 | S170: 17.9 | T170: 20.4 | U170: 50.29 | V170: 99.91516637 | W170: 1.06 | X170: Dipole | Y170: No | Z170: 439.6607249 | AA170: 2030.48 | AB170: 2056.613699 | AC170: 439.6607249 | AD170: 0.9852068966
A171: G4CQM 6M7N50LY | B171: 9.9233472 | C171: 13.25 | D171: 8.78 | E171: 7.68 | F171: 19.16 | G171: 11741.14054 | H171: 2.817102469 | I171: -21.51548738 | J171: -26.8957203 | K171: 16.19 | L171: 16.15 | M171: 6.59 | N171: 5.76 | O171: 17.66 | P171: 15.66 | Q171: 15.4 | R171: 19.2 | S171: 13.5 | T171: 19.5 | U171: 50.4 | V171: 99.67960128 | W171: 1.12 | X171: Dipole | Y171: No | Z171: 577.9792647 | AA171: 2150.73 | AB171: 2168.805404 | AC171: 577.9792647 | AD171: 0.9903793103
A172: CC 617-6B mod G4CQM 7 | B172: 9.9831264 | C172: 13.32 | D172: 8.739 | E172: 7.777 | F172: 19.23 | G172: 11830.0694 | H172: 2.888486453 | I172: -21.47705099 | J172: -26.8572839 | K172: 16.24 | L172: 16.23 | M172: 6.59 | N172: 5.76 | O172: 17.69 | P172: 15.71 | Q172: 15.46 | R172: 19.2 | S172: 13.38 | T172: 19.2 | U172: 50.4 | V172: 99.62749895 | W172: 1.13 | X172: Dipole | Y172: No | Z172: 586.4008868 | AA172: 2157.04 | AB172: 2175.636275 | AC172: 586.4008868 | AD172: 0.990137931
A173: Cushcraft 617-6B | B173: 10.1026848 | C173: 12.34 | D173: 8.155 | E173: 7.112 | F173: 18.12 | G173: 16357.52367 | H173: 1.305853828 | I173: -24.01221818 | J173: -29.39245109 | K173: 15.23 | L173: 15.13 | M173: 6.12 | N173: 5.36 | O173: 16.23 | P173: 14.7 | Q173: 14.17 | R173: 18.29 | S173: 10.35 | T173: none | U173: 197.36 | V173: 99.38626856 | W173: 1.17 | X173: T Match | Y173: Yes | Z173: 1015.648277 | AA173: 2513.79 | AB173: 2523.803602 | AC173: 1015.648277 | AD173: 0.9955172414
A174: N1DPM 7 CC617-6B mod | B174: 10.1026848 | C174: 13.12 | D174: 8.378 | E174: 7.377 | F174: 19.02 | G174: 10188.63797 | H174: 3.031358885 | I174: -21.03948171 | J174: -26.41971462 | K174: 16.04 | L174: 16.04 | M174: 6.29 | N174: 5.54 | O174: 17.79 | P174: 15.56 | Q174: 15.47 | R174: 20.71 | S174: 17.15 | T174: 22.28 | U174: 20.7 | V174: 98.58526267 | W174: 1.27 | X174: Dipole | Y174: No | Z174: 430.8178129 | AA174: 2031.24 | AB174: 2049.441115 | AC174: 430.8178129 | AD174: 0.9896551724
A175: InnoV 8 OP-DES 4bay | B175: 10.19833152 | C175: 13.55 | D175: 9.088 | E175: 8.083 | F175: 19.5 | G175: 11999.67517 | H175: 4.035382141 | I175: -21.25169276 | J175: -26.63192567 | K175: 15.15 | L175: 15.12 | M175: 6.8175 | N175: 6.06 | O175: 16.9 | P175: 14.67 | Q175: 14.6 | R175: 20.5 | S175: 14.1 | T175: 19 | U175: 50.2 | V175: 99.88564494 | W175: 1.07 | X175: Bent Dipole | Y175: Yes | Z175: 602.3668714 | AA175: 2162.53 | AB175: 2188.586462 | AC175: 602.3668714 | AD175: 0.9862758621
A176: InnoV 7 LFA 10.3m Ver 3 | B176: 10.26289306 | C176: 13.46 | D176: 8.739 | E176: 7.777 | F176: 19.37 | G176: 11238.68697 | H176: 4.674141556 | I176: -21.08912741 | J176: -26.46936032 | K176: 16.39 | L176: 16.38 | M176: 6.56 | N176: 5.84 | O176: 18.05 | P176: 15.88 | Q176: 15.76 | R176: 21.53 | S176: 13.9 | T176: 21 | U176: 47.06 | V176: 98.49184364 | W176: 1.28 | X176: LFA Loop | Y176: Yes | Z176: 530.1823443 | AA176: 2100.85 | AB176: 2130.03679 | AC176: 530.1823443 | AD176: 0.984137931
A177: Cushcraft LFA-6M7EL | B177: 10.42549248 | C177: 13.41 | D177: 8.866 | E177: 7.91 | F177: 19.38 | G177: 11297.81423 | H177: 4.282315068 | I177: -21.10755454 | J177: -26.48778746 | K177: 16.36 | L177: 16.38 | M177: 6.65 | N177: 5.93 | O177: 18.11 | P177: 15.88 | Q177: 15.76 | R177: 21.76 | S177: 13.63 | T177: 22.11 | U177: 66.03 | V177: 96.98791066 | W177: 1.42 | X177: LFA Loop | Y177: Yes | Z177: 535.8233701 | AA177: 2107.77 | AB177: 2134.612289 | AC177: 535.8233701 | AD177: 0.9854482759
A178: YU7EF EF0608 | B178: 11.21457792 | C178: 13.43 | D178: 8.697 | E178: 7.713 | F178: 19.34 | G178: 10272.98687 | H178: 4.364718236 | I178: -20.73548457 | J178: -26.11571748 | K178: 16.36 | L178: 16.35 | M178: 6.522 | N178: 5.784 | O178: 18 | P178: 15.85 | Q178: 15.73 | R178: 20.88 | S178: 15.37 | T178: 20.78 | U178: 49.67 | V178: 99.72821814 | W178: 1.11 | X178: Dipole | Y178: No | Z178: 438.6857561 | AA178: 2029.64 | AB178: 2055.822891 | AC178: 438.6857561 | AD178: 0.9851724138
A179: InnoV 8 LFA 11.71m | B179: 11.7167232 | C179: 13.36 | D179: 8.46 | E179: 7.47 | F179: 19.22 | G179: 8717.065648 | H179: 5.575159034 | I179: -20.12867415 | J179: -25.50890706 | K179: 16.28 | L179: 16.25 | M179: 6.35 | N179: 5.6 | O179: 18.02 | P179: 15.8 | Q179: 15.73 | R179: 29.1 | S179: 20.9 | T179: 25.1 | U179: 50.5 | V179: 99.97816011 | W179: 1.03 | X179: LFA Loop | Y179: Yes | Z179: 291.1058804 | AA179: 1905.07 | AB179: 1936.119214 | AC179: 291.1058804 | AD179: 0.981137931
A180: K5GW 8-6 | B180: 11.7167232 | C180: 13.92 | D180: 9.519 | E180: 8.697 | F180: 19.92 | G180: 12123.92859 | H180: 5.481694891 | I180: -20.85501424 | J180: -26.23524716 | K180: 16.87 | L180: 16.91 | M180: 7.14 | N180: 6.53 | O180: 18.41 | P180: 16.3 | Q180: 16.1 | R180: 19.92 | S180: 12.02 | T180: 17.69 | U180: 52.5 | V180: 99.51325041 | W180: 1.15 | X180: Dipole | Y180: No | Z180: 614.0061296 | AA180: 2162.63 | AB180: 2198.027194 | AC180: 614.0061296 | AD180: 0.9814482759
A181: YU7EF EF0609X | B181: 11.8960608 | C181: 13.75 | D181: 8.998 | E181: 8.048 | F181: 19.67 | G181: 9991.738705 | H181: 4.33999244 | I181: -20.28594741 | J181: -25.66618033 | K181: 16.68 | L181: 16.68 | M181: 6.75 | N181: 6.04 | O181: 18.46 | P181: 16.2 | Q181: 16.13 | R181: 23.2 | S181: 17.9 | T181: 20.6 | U181: 49.75 | V181: 99.88564494 | W181: 1.07 | X181: Dipole | Y181: No | Z181: 412.0323127 | AA181: 2008.486 | AB181: 2034.203987 | AC181: 412.0323127 | AD181: 0.9852551724
A182: BQH 8-6 | B182: 11.95584 | C182: 13.92 | D182: 9.37 | E182: 8.534 | F182: 19.88 | G182: 11215.92837 | H182: 6.638566541 | I182: -20.54165407 | J182: -25.92188699 | K182: 16.85 | L182: 16.88 | M182: 7.0275 | N182: 6.4005 | O182: 18.32 | P182: 16.29 | Q182: 16.08 | R182: 20.22 | S182: 12.97 | T182: 17.13 | U182: 49.75 | V182: 99.72821814 | W182: 1.11 | X182: Dipole | Y182: No | Z182: 527.8391764 | AA182: 2087 | AB182: 2128.136221 | AC182: 527.8391764 | AD182: 0.9776206897
A183: M² 6M2WLC | B183: 11.95584 | C183: 13.88 | D183: 9.274 | E183: 8.378 | F183: 19.79 | G183: 11363.38015 | H183: 5.29494382 | I183: -20.7077173 | J183: -26.08795021 | K183: 16.79 | L183: 16.8 | M183: 6.95 | N183: 6.29 | O183: 18.28 | P183: 16.25 | Q183: 16.08 | R183: 18.7 | S183: 14 | T183: 17 | U183: 197.1 | V183: 98.49184364 | W183: 1.28 | X183: T Match | Y183: Yes | Z183: 541.9415209 | AA183: 2106.41 | AB183: 2139.574789 | AC183: 541.9415209 | AD183: 0.9820689655
A184: *JK Antennas JK68 v2 | B184: 12.1351776 | C184: 14.1 | D184: 8.5 | E184: 8 | F184: 19.67 | G184: 10367.31183 | H184: 5.191295191 | I184: -20.43285358 | J184: -25.81308649 | K184: 16.85 | L184: 16.87 | M184: 6.375 | N184: 6 | O184: 18.05 | P184: 16.29 | Q184: 16.19 | R184: 20.35 | S184: 14.86 | T184: 20.27 | U184: 49.96 | V184: 98.39629298 | W184: 1.29 | X184: Dipole | Y184: No | Z184: 447.5472287 | AA184: 2031.83 | AB184: 2063.01053 | AC184: 447.5472287 | AD184: 0.9824137931
A185: JK Antennas JK68 v2 | B185: 12.14115552 | C185: 14.1 | D185: 9.469 | E185: 8.615 | F185: 19.98 | G185: 10833.48507 | H185: 7.16264443 | I185: -20.28411758 | J185: -25.6643505 | K185: 17.02 | L185: 17.03 | M185: 7.1017 | N185: 6.465 | O185: 18.6 | P185: 16.49 | Q185: 16.33 | R185: 20.35 | S185: 14.86 | T185: 20.27 | U185: 49.96 | V185: 98.39629298 | W185: 1.29 | X185: Dipole | Y185: No | Z185: 491.5427741 | AA185: 2055.1 | AB185: 2098.695806 | AC185: 491.5427741 | AD185: 0.9758965517
A186: DK7ZB 8-6 | B186: 12.254736 | C186: 14.02 | D186: 9.469 | E186: 8.574 | F186: 19.97 | G186: 10993.32065 | H186: 5.939193469 | I186: -20.37522646 | J186: -25.75545937 | K186: 16.97 | L186: 16.97 | M186: 7.1 | N186: 6.43 | O186: 18.52 | P186: 16.42 | Q186: 16.23 | R186: 21.29 | S186: 13.27 | T186: 22.08 | U186: 27.76 | V186: 99.45130316 | W186: 1.16 | X186: Dipole | Y186: No | Z186: 506.8074256 | AA186: 2074.53 | AB186: 2111.077134 | AC186: 506.8074256 | AD186: 0.9799310345
A187: K6STI 7-6 | B187: 12.254736 | C187: 14.29 | D187: 9.995 | E187: 9.134 | F187: 20.27 | G187: 12383.43414 | H187: 6.513062793 | I187: -20.58151069 | J187: -25.96174361 | K187: 17.24 | L187: 17.26 | M187: 7.5 | N187: 6.847 | O187: 18.7 | P187: 16.64 | Q187: 16.43 | R187: 19.27 | S187: 12.3 | T187: 16.83 | U187: 12.57 | V187: 90.95799306 | W187: 1.86 | X187: Dipole | Y187: No | Z187: 638.5034717 | AA187: 2175.55 | AB187: 2217.897261 | AC187: 638.5034717 | AD187: 0.9780344828
A188: InnoV 8 LFA 12.2m Ver 3 | B188: 12.32467766 | C188: 13.96 | D188: 9.134 | E188: 8.228 | F188: 19.86 | G188: 10565.12398 | H188: 4.385326239 | I188: -20.33631557 | J188: -25.71654849 | K188: 16.88 | L188: 16.87 | M188: 6.847 | N188: 6.172 | O188: 18.47 | P188: 16.35 | Q188: 16.23 | R188: 23.78 | S188: 14.43 | T188: 20.4 | U188: 49.76 | V188: 98.85204082 | W188: 1.24 | X188: LFA Loop | Y188: Yes | Z188: 466.3716083 | AA188: 2051.64 | AB188: 2078.279194 | AC188: 466.3716083 | AD188: 0.9851034483
A189: N6CA 8 | B189: 12.3742944 | C189: 14.1 | D189: 9.52 | E189: 8.66 | F189: 20.04 | G189: 10575.00325 | H189: 9.640146792 | I189: -20.08391972 | J189: -25.46415263 | K189: 17.03 | L189: 17.06 | M189: 7.14 | N189: 6.495 | O189: 18.69 | P189: 16.51 | Q189: 16.39 | R189: 21.83 | S189: 21.69 | T189: 30.7 | U189: 21.5 | V189: 99.2473051 | W189: 1.19 | X189: Dipole | Y189: No | Z189: 466.8098985 | AA189: 2021.09 | AB189: 2078.634696 | AC189: 466.8098985 | AD189: 0.9678275862
A190: PY1MHZ 8 | B190: 12.4 | C190: 13.98 | D190: 9.228 | E190: 8.34 | F190: 19.9 | G190: 9731.707915 | H190: 6.762082204 | I190: -19.90667941 | J190: -25.28691232 | K190: 16.92 | L190: 16.92 | M190: 6.921 | N190: 6.255 | O190: 18.66 | P190: 16.42 | Q190: 16.17 | R190: 23.44 | S190: 16.24 | T190: 20.83 | U190: 51.57 | V190: 99.09707008 | W190: 1.21 | X190: LFA Loop | Y190: Yes | Z190: 387.1578822 | AA190: 1974.744 | AB190: 2014.02806 | AC190: 387.1578822 | AD190: 0.9772137931
A191: InnoV 9 OP-DES | B191: 12.4340736 | C191: 13.84 | D191: 8.95 | E191: 7.98 | F191: 19.69 | G191: 9169.457811 | H191: 5.14985611 | I191: -19.88326232 | J191: -25.26349524 | K191: 16.74 | L191: 16.71 | M191: 6.71 | N191: 5.99 | O191: 18.45 | P191: 16.26 | Q191: 16.18 | R191: 24.45 | S191: 17.7 | T191: 24.7 | U191: 49.3 | V191: 99.72821814 | W191: 1.11 | X191: Bent Dipole | Y191: Yes | Z191: 334.0224473 | AA191: 1941.6 | AB191: 1970.929318 | AC191: =(AB191-1700)*1.232876712 -> 334.0224473 | AD191: 0.9825517241
A192: G0KSC 8 12.49m LFA | B192: 12.4938528 | C192: 14.03 | D192: 9.274 | E192: 8.378 | F192: 19.95 | G192: 9544.86946 | H192: 6.513062793 | I192: -19.77659909 | J192: -25.156832 | K192: 16.96 | L192: 16.96 | M192: 6.95 | N192: 6.29 | O192: 18.71 | P192: 16.48 | Q192: 16.4 | R192: 24.37 | S192: 16.33 | T192: 21.24 | U192: 48.8 | V192: 99.62749895 | W192: 1.13 | X192: LFA Loop | Y192: Yes | Z192: 369.4735423 | AA192: 1962.13 | AB192: 1999.684095 | AC192: 369.4735423 | AD192: 0.9780344828
A193: EAntenna 50LFA8 | B193: 12.4938528 | C193: 13.93 | D193: 9.043 | E193: 8.155 | F193: 19.8 | G193: 9258.344438 | H193: 5.212019096 | I193: -19.8139985 | J193: -25.19423141 | K193: 16.84 | L193: 16.83 | M193: 6.78 | N193: 6.12 | O193: 18.49 | P193: 16.33 | Q193: 16.24 | R193: 25.58 | S193: 16.2 | T193: 22.38 | U193: 48.69 | V193: 99.51325041 | W193: 1.15 | X193: LFA Loop | Y193: Yes | Z193: 342.4409412 | AA193: 1947.96 | AB193: 1977.757652 | AC193: 342.4409412 | AD193: 0.9823448276
A194: M² 6M7NAN | B194: 12.4938528 | C194: 14.04 | D194: 9.672 | E194: 8.823 | F194: 19.96 | G194: =Z194/9000*J$8+(1-Z194/9000)*F$8+290*(1/AD194-1) -> 12612.91667 | H194: 8.523356524 | I194: -20.94168497 | J194: -26.32191788 | K194: 16.95 | L194: 16.98 | M194: 7.2525 | N194: 6.615 | O194: 18.27 | P194: 16.35 | Q194: 16.11 | R194: 18.3 | S194: 12.37 | T194: 17.32 | U194: 16.92 | V194: 93.70309585 | W194: 1.67 | X194: *Hairpin | Y194: No | Z194: 660.062551 | AA194: 2179.84 | AB194: 2235.384069 | AC194: 660.062551 | AD194: 0.9714482759
A195: Cushcraft LFA-6M8EL | B195: 12.59547744 | C195: 13.96 | D195: 9.469 | E195: 8.615 | F195: 20.02 | G195: 9674.880457 | H195: 4.68446687 | I195: -19.79172748 | J195: -25.17196039 | K195: 17.01 | L195: 17.03 | M195: 7.1 | N195: 6.46 | O195: 18.86 | P195: 16.53 | Q195: 16.23 | R195: 23.62 | S195: 14.01 | T195: 22.43 | U195: 53.3 | V195: 99.38626856 | W195: 1.17 | X195: LFA Loop | Y195: Yes | Z195: 381.9688702 | AA195: 1982.48 | AB195: 2009.819195 | AC195: 381.9688702 | AD195: 0.9841034483
A196: YU7EF EF0609 | B196: 12.9123072 | C196: 13.99 | D196: 9.134 | E196: 8.265 | F196: 19.89 | G196: 9656.344204 | H196: 4.025102262 | I196: -19.92311914 | J196: -25.30335205 | K196: 16.91 | L196: 16.92 | M196: 6.85 | N196: 6.2 | O196: 18.6 | P196: 16.4 | Q196: 16.32 | R196: 21.56 | S196: 16.84 | T196: 19.56 | U196: 49.19 | V196: 99.81456468 | W196: 1.09 | X196: Dipole | Y196: No | Z196: 380.2745568 | AA196: 1984.92 | AB196: 2008.444918 | AC196: 380.2745568 | AD196: 0.9863103448
A197: DG7YBN 50-9w | B197: 12.9123072 | C197: 13.99 | D197: 9.088 | E197: 8.191 | F197: 19.86 | G197: 9293.189997 | H197: 2.755943886 | I197: -19.80628409 | J197: -25.186517 | K197: 16.9 | L197: 16.88 | M197: 6.82 | N197: 6.04 | O197: 18.66 | P197: 16.49 | Q197: 16.05 | R197: 24.27 | S197: 17.29 | T197: 20.37 | U197: 50.16 | V197: 99.67960128 | W197: 1.12 | X197: Dipole | Y197: No | Z197: 345.9762687 | AA197: 1964.71 | AB197: 1980.625196 | AC197: 345.9762687 | AD197: 0.9905862069
A198: M² 6M8GJ | B198: 13.0318656 | C198: 14.27 | D198: 9.68 | E198: 8.42 | F198: 20.14 | G198: 10545.17934 | H198: 7.078667562 | I198: -20.00880711 | J198: -25.38904003 | K198: 17.2 | L198: 17.14 | M198: 7.26 | N198: 6.32 | O198: 18.63 | P198: 16.65 | Q198: 16.42 | R198: 18.85 | S198: 15.05 | T198: 16.74 | U198: 16.4 | V198: 97.22222222 | W198: 1.4 | X198: *Hairpin | Y198: No | Z198: 464.2260532 | AA198: 2033.97 | AB198: 2076.53891 | AC198: 464.2260532 | AD198: 0.9761724138
A199: *M² 6M8GJ | B199: 13.0318656 | C199: 14.27 | D199: 9.144 | E199: 9.144 | F199: 20.2 | G199: 10786.93667 | H199: 7.120650062 | I199: -20.04612399 | J199: -25.4263569 | K199: 17.2 | L199: 17.14 | M199: 7.26 | N199: 6.32 | O199: 18.63 | P199: 16.65 | Q199: 16.42 | R199: 18.3 | S199: 15.05 | T199: 16.74 | U199: 16.4 | V199: 97.22222222 | W199: 1.4 | X199: *Hairpin | Y199: No | Z199: 487.1350479 | AA199: 2051.86 | AB199: 2095.12065 | AC199: 487.1350479 | AD199: 0.9760344828
A200: ZL3NW 10 | B200: 13.151424 | C200: 13.81 | D200: 9.18 | E200: 8.302 | F200: 19.74 | G200: 11279.12945 | H200: 5.460933108 | I200: -20.72312733 | J200: -26.10336024 | K200: 16.68 | L200: 16.78 | M200: 6.89 | N200: 6.222 | O200: 18.32 | P200: 16.2 | Q200: 16.01 | R200: 16.54 | S200: 15.75 | T200: 19.13 | U200: 64.13 | V200: 99.57201502 | W200: 1.14 | X200: Dipole | Y200: No | Z200: 533.9407816 | AA200: 2099.02 | AB200: 2133.085301 | AC200: 533.9407816 | AD200: 0.9815172414
A201: BQH 9-6D | B201: 13.61172384 | C201: 14.34 | D201: 10.05 | E201: 9.227 | F201: 20.37 | G201: 12075.82704 | H201: 4.488409552 | I201: -20.40238522 | J201: -25.78261813 | K201: 17.37 | L201: 17.39 | M201: 7.46 | N201: 6.82 | O201: 18.95 | P201: 16.81 | Q201: 16.65 | R201: 22.62 | S201: 11.75 | T201: 16.2 | U201: 49.96 | V201: 99.67960128 | W201: 1.12 | X201: Dipole | Y201: No | Z201: 609.541361 | AA201: 2165.38 | AB201: 2194.405771 | AC201: 609.541361 | AD201: 0.9847586207
A202: DK7ZB 9 28 ohm | B202: 13.9883328 | C202: 14.49 | D202: 10.16 | E202: 9.37 | F202: 20.51 | G202: 11163.64213 | H202: 6.795595709 | I202: -19.88917485 | J202: -25.26940776 | K202: 17.46 | L202: 17.5 | M202: 7.62 | N202: 7.027 | O202: 19.19 | P202: 16.92 | Q202: 16.81 | R202: 20.1 | S202: 13.25 | T202: 16.98 | U202: 27.95 | V202: 99.88564494 | W202: 1.07 | X202: Dipole | Y202: No | Z202: 522.8687742 | AA202: 2082.11 | AB202: 2124.104673 | AC202: 522.8687742 | AD202: 0.9771034483
... 165 more rows

Sheet NF Calculator
A2: Receive System NF Calculator
B4: USER INPUT
A6: *Transmission Line1 Loss: | C6: 0.4 | D6: dB
A8: LNA Noise Figure: | C8: 0.5 | D8: dB
A10: LNA Gain: | C10: 22 | D10: dB
A12: Transmission Line2 Loss: | C12: 1 | D12: dB
A14: Receiver Noise Figure: | C14: 6 | D14: dB
A17: CALCULATION RESULT
A19: Receive System NF: | C19: =10*LOG(10^(C6/10)+(10^(C8/10)-1)*10^(C6/10)+(10^(C12/10)-1)*10^(C6/10)/10^(C10/10)+(10^(C14/10)-1)*10^(C6/10)/10^(C10/10)*10^(C12/10)) -> 0.9968897691 | D19: dB
A22: Actual temperature of the transmission lines is 290 K.
A23: *The transmission line contains all the components connected between the antenna terminals and the LNA input (connectors, relays, coaxial cables etc).
A24: If LNA is not used, set LNA Noise Figure = 0 dB, LNA Gain = 0 dB.

Sheet Convergence Correction
B2: Correction of convergence errors
B4: Author: Brian V. Cake KF2YN | F4: ( ... formatted by DG7YBN)
B6: Enter the data from EZNEC or TANT in cells F11 thru F13 and M11 thru M13 (Simply type over the example data)
B7: Excel will automatically compute the true gain, G and the true G/Ta
B9: ZERO Loss: | H9: With Loss:
B11: Gain (Go) | E11: 20.04 | F11: dBi | H11: Gain (Gl) | K11: 20.01 | L11: dBi
B12: Average gain (Ko) | E12: 0.9998 | F12: / | H12: Average gain (Kl) | K12: 0.9924 | L12: /
B13: Pattern temp. (T_Pattern), (Tpo) | E13: 34.749 | F13: K | H13: Pattern temp. (T_Pattern), (Tpl) | K13: 34.751 | L13: K
B16: Corrrected numbers:
B18: Ta, antenna temp (T_total) | E18: =E13*K12/E12+290*(1-K12/E12) -> 36.63823525 | F18: K
D20: Gain | E20: =10*LOG(10^(0.1*E11)*K12/E12^2) -> 20.00860491 | F20: dBi
D21: G/T | E21: =10*LOG(10^(0.1*E11)*K12/E12^2)-10*LOG(E18) -> 4.369259439 | F21: dB
D22: T_loss | E22: =((1-K12/E12))*290 -> 2.146429286 | F22: K
D23: Avg Gain | E23: =K12/E12 -> 0.9925985197 | F23: /
D24: T_pattern | E24: =E13 -> 34.749 | F24: K
B28: Convergence Error Correction Algorithm | K28: 2012-03-11
B30: by Brian Cake, KF2YN
B32: In order to evaluate antenna performance for space communications, it is necessary to compute antenna
B33: temperature, Ta, and the ratio of gain to antenna temperature; G/Ta. NEC is usually the simulation engine,
B34: and YT1NT’s “TANT” software is used to compute the antenna temperature and G/T.
B36: Unfortunately NEC, in either NEC2 or NEC4 versions suffers from convergence problems that can lead to erroneous
B37: results.
B38: The most common problem is the use of insufficient segmentation density. This can normally be corrected of course by
B39: increasing the number of segments. But in the case where element diameters are large, errors still occur if we increase
B40: the density beyond a point at which it becomes too high compared with the diameter of the element. Another problem
B41: occurs when elements of different diameter are joined together, as might occur with elements made of telescoping
B42: tubing. Another more serious problem occurs when elements of equal or different diameter are joined at an acute angle.
B43: Folded dipoles and T-matches can suffer from this effect.
B45: The convergence errors show up as a value of Average Gain (AG) that is not at or very close to unity (in EZNEC the AG
B46: is displayed below the control console). The AG compares the total power radiated over all angles with the input power. If
B47: the elements have zero loss, the returned AG should of course be 1.000. The number 1.000 equals 100 percent of fed
B48: power to be found in the sum of power radiated over all angles of the 3D pattern. For this, the simulated gain is correct.
B49: When element loss is included, the AG should always be <1.000. The effect of an AG >1.000 is to give apparent higher
B50: gain, lower loss temperature and higher G/T than one that is perfectly converged.
B52: The KF2YN convergence error correction algorithm uses modeled data from an antenna having zero loss elements to
B53: correct the gain and antenna temperatures of the same antenna with real-world lossy elements. It corrects poor
B54: convergence by first running the antenna with zero loss elements. Gain and temperature data are entered in the
B55: spreadsheet attached. Second, the antenna is run with actual loss resistance and data are again entered in the
B56: spreadsheet. The spreadsheet calculates the true antenna performance in terms of gain, temperature and G/T.
B58: Note that the algorithm does not correct the SWR data,
B59: which for a badly converged antenna may have very significant errors.

Sheet Charts432MHz_GT
B2: 432 MHz Charts: 4 Antennas G/T | G2: at Tsky = | H2: =' 432.1 MHz Table'!D8 -> 27 | I2: K | J2: Tearth = | K2: =' 432.1 MHz Table'!H8 -> 1800 | L2: K | M2: NF_sys. = | N2: =' 432.1 MHz Table'!M8 -> 0.75 | O2: K

Sheet Charts144MHz_GT
B2: 144 MHz Charts: | D2: 4 Antennas G/T | G2: at Tsky = | H2: ='144.1 MHz Table'!D8 -> 290 | I2: K | J2: Tearth = | K2: ='144.1 MHz Table'!H8 -> 5400 | L2: K | M2: NF_sys. = | N2: ='144.1 MHz Table'!M8 -> 0.75 | O2: K

Sheet Charts50MHz_Gain
B2: 50 MHz Charts: | D2: Antenna Gain (dBd)

Sheet Charts50MHz_GT
B2: 50 MHz Charts: 4 Antennas G/T | D2: Antennas G/T | F2: at Tsky = | G2: ='50.15 MHz Table'!F8 -> 5640 | H2: K | I2: Tearth = | J2: ='50.15 MHz Table'!J8 -> 100600 | K2: K | L2: NF_sys. = | M2: ='50.15 MHz Table'!P8 -> 0.75 | N2: K
